{"text_format":"1","workbook":"xlsx","n_sheets":17,"sheets":["Opciones","Datos_Generales","Resumen","Descripción","Objetivos","Metodología","Estado_del_Arte","Marco_Teorico","Cronograma","PD","Integrantes","Presupuesto","Impactos","Grupo","Biblografia","Imagenes","Normas"],"not_rendered":{"charts":0,"images":3,"macros":0,"external_links":0,"defined_names":69,"comments":14,"pivot_tables":0},"unopened":[],"bounds":{"document_bytes":16777216,"sheet_cells":100000,"rows_first":2000,"rows_last":500,"rows_between":2000,"halvings":0,"cell_chars":16384,"cell_head_chars":4096},"cells_cut":0,"cells_raw":0,"read":"whole","date_system":"1900"}

{"sheet":"Opciones","index":0,"n_rows":310,"n_cols":73,"rows_kept":310,"cut":false,"hidden":true,"merged":[]}
[null,"No ","Min Pts","Max Pts","Valor en Millones","Abreviatura","Clasificación","Tipo de Entidad","Tipo 2","SIoNo","Convocatoria","IDPRY","Tiempo","Max Presu","Tipo de Impacto","SEDES","Tipo de Proyecto:","Tipos de Productos ","Facultad","Nivel Estudios","Vinculo con la UMNG","FuncionProyecto","Tipo De Impacto","NBC","ID NBC",null,null,null,null,null,null,null,null,null,null,null,null,null,null,null,null,null,"http://scienti.colciencias.gov.co:8080/gruplac/jsp/visualiza/visualizagr.jsp?nro="]
[null,1,20,39.9,25,"Articulo Q1","A1","Institución Pública","Centro de investigacion ","Si","Proyecto de Iniciación Cientifica PIC","PIC",5,1,"Ambiental","Bogotá","Investigación Básica","Generación ","Ciencias Básicas y Aplicadas","Técnico ","Doc. Carrera TC","Investigador Principal","Ambiental","Programas y certificaciones básicas",11,null,null,null,null,null,null,null,null,null,null,null,null,null,null,null,null,null,null,null,null,"BB",null,{"$f":"MIN(BD3:BD298)","v":4},{"$f":"MAX(BD3:BD298)","v":298},null,null,null,null,null,null,null,null,null,null,null,null,null,null,null,null,null,null,null,null,null,null,"Clave","VICEINUMNG2014"]
[null,2,40,59.9,50,"Articulo Q2","B","Institución Privada","Centro de desarrollo tecnológico","No","Proyecto de Investigación Científica","INV",12,60,"Salud Humana","Campus Nueva Granada","Investigación Aplicada","Fortalecimiento","Derecho","Pregrado","Doc. Carrera MT","Coinvestigador ","Competividad","Alfabetización y aritmética elemental",21,null,null,null,null,null,null,null,null,null,null,null,null,null,null,"Hoja","FAC","Grupo","COD","Clas","Link","Lineas","Fila Grupo","Min","Max","FAC",null,null,"COD","Linea","Cel","Fila","E:Gp",null,"Código de Grupo"]
[null,3,60,79.900000000000006,75,"Articulo A1","C","Sector Defensa",null,null,"Proyecto de Alto Impacto","IMP",24,200,"Seres Vivos",null,"Desarrollo Tecnológico o Experimental\n","Apropiacion","Estudios a Distancia ","Posgrado","Doc. Ocasional","Asistente Investigación","Económico","Competencias personales y desarrollo",31,null,null,null,null,null,null,null,null,null,null,null,null,1,{"$f":"COUNTIF($AN$4:$AN$73,AL4)","v":1},1,"CIAS","Fitoplasmas y Virus","COL0028687","C","http://scienti.colciencias.gov.co:8085/gruplac/jsp/visualiza/visualizagr.jsp?nro=00000000008436",{"$f":"$AT$2&AV4&\":\"&$AT$2&AW4","v":"BB10:BB11"},{"$f":"ROW()","v":4},{"$f":"MINA(IF(AQ4=$BA$4:$BA$403,$BD$4:$BD$403))","v":10},{"$f":"MAXA(IF(AQ4=$BA$4:$BA$403,$BD$4:$BD$403))","v":11},{"$f":"AO4","v":"CIAS"},null,null,"COL0049659","Medios de comunicación, educación y salud",{"$f":"COUNTIF(BA$4:BA4,BA4)","v":1},{"$f":"ROW()","v":4},{"$f":"COUNTIF($AQ$3:$AQ$83,BA4)","v":1},null,"COL0015722",{"$f":"COUNTIF($AQ$4:$AQ$73,BG4)","v":1}]
[null,4,80,199.9,100,"Articulo A2","D",null,null,null,null,null,null,null,"Económico ",null,"No Aplica",null,"Ciencias Económicas ","Tecnólogia","Estudiante","Joven Investigador","Productividad","Ciencias de la educación",111,null,null,null,null,null,null,null,null,null,null,null,null,2,1,2,"CIAS","Grupo de investigación en Biodiversidad y ecología de abejas silvestres","COL0031959","B","http://scienti.colciencias.gov.co:8085/gruplac/jsp/visualiza/visualizagr.jsp?nro=00000000001366",{"$f":"$AT$2&AV5&\":\"&$AT$2&AW5","v":"BB12:BB16"},{"$f":"ROW()","v":5},{"$f":"MINA(IF(AQ5=$BA$4:$BA$403,$BD$4:$BD$403))","v":12},{"$f":"MAXA(IF(AQ5=$BA$4:$BA$403,$BD$4:$BD$403))","v":16},{"$f":"AO5","v":"CIAS"},null,null,"COL0049659","Salud Pública y Nutrición, Prevención de la Enfermedad y Promoción de la Salud",{"$f":"COUNTIF(BA$4:BA5,BA5)","v":2},{"$f":"ROW()","v":5},1,null,"COL0026486",1]
[null,5,200,1000,{"$f":"125*2","v":250},"Articulo B","Reconocido",null,null,null,null,null,null,null,"Social",null,null,null,"Educación y Humanidades","Especialización","OPS - Prestación Servicios","Estudiante","Social","Formación para docentes de educación pre-primaría",112,null,null,null,null,null,null,null,null,null,null,null,null,3,1,3,"CIAS","MATRIX","COL0039321","C","http://scienti.colciencias.gov.co:8085/gruplac/jsp/visualiza/visualizagr.jsp?nro=00000000002208","BB38:BB42",{"$f":"ROW()","v":6},{"$f":"MINA(IF(AQ6=$BA$4:$BA$403,$BD$4:$BD$403))","v":38},{"$f":"MAXA(IF(AQ6=$BA$4:$BA$403,$BD$4:$BD$403))","v":42},"CIAS",null,null,"COL0062704","Procesos Organizacionales (Prospectiva de las Organizaciones), Programáticos y Políticos para la Promoción del Desarrollo.",{"$f":"COUNTIF(BA$4:BA6,BA6)","v":1},{"$f":"ROW()","v":6},1,null,"COL0027367",1]
[null,6,null,null,null,"Articulo C",null,null,null,null,null,null,null,null,"Otros",null,null,null,"Ingeniería ","Maestria","Externo a la UMNG","Técnico","Institucional","Formación para docentes sin asignatura de especialización",113,null,null,null,null,null,null,null,null,null,null,null,null,4,1,4,"CIAS","Desarrollo e integración de estrategias alternativas para la protección de cultivos de importancia económica, con énfasis en control biológico.","COL0032278","A","http://scienti.colciencias.gov.co:8085/gruplac/jsp/visualiza/visualizagr.jsp?nro=00000000001399","BB64:BB65",{"$f":"ROW()","v":7},{"$f":"MINA(IF(AQ7=$BA$4:$BA$403,$BD$4:$BD$403))","v":64},{"$f":"MAXA(IF(AQ7=$BA$4:$BA$403,$BD$4:$BD$403))","v":65},"CIAS",null,null,"COL0062704","Prospectiva de las Organizaciones",{"$f":"COUNTIF(BA$4:BA7,BA7)","v":2},{"$f":"ROW()","v":7},1,null,"COL0018448",1]
[null,7,null,null,null,"Libro Completo",null,null,null,null,null,null,null,null,null,null,null,null,"Medicina y Ciencias de la Salud","Doctorado",null,"Investigador Principal","Areas de Salud","Formación para docentes con asignatura de especialización",114,null,null,null,null,null,null,null,null,null,null,null,null,5,1,5,"CIAS","Grupo de Micología y Fitopatologia ","COL0013719","A1","http://scienti.colciencias.gov.co:8085/gruplac/jsp/visualiza/visualizagr.jsp?nro=00000000001127","BB107:BB111",{"$f":"ROW()","v":8},{"$f":"MINA(IF(AQ8=$BA$4:$BA$403,$BD$4:$BD$403))","v":107},{"$f":"MAXA(IF(AQ8=$BA$4:$BA$403,$BD$4:$BD$403))","v":111},"CIAS",null,null,"COL0062704","Responsabilidad Ambiental",{"$f":"COUNTIF(BA$4:BA8,BA8)","v":3},{"$f":"ROW()","v":8},1,null,"COL0028767",1]
[null,8,null,null,null,"Cap. de Libro",null,null,null,null,null,null,null,null,null,null,null,null,"Relaciones Intenacionales, Estrategia y Seguridad","Pos doctorado",null,"Coinvestigador ","Innovacion ","Técnicas audiovisuales y producción para medios de comunicación",211,null,null,null,null,null,null,null,null,null,null,null,null,6,1,6,"CIAS","Fitopatologia molecular","COL0086179","C","http://scienti.colciencias.gov.co:8085/gruplac/jsp/visualiza/visualizagr.jsp?nro=00000000007907","BB118:BB120",{"$f":"ROW()","v":9},{"$f":"MINA(IF(AQ9=$BA$4:$BA$403,$BD$4:$BD$403))","v":118},{"$f":"MAXA(IF(AQ9=$BA$4:$BA$403,$BD$4:$BD$403))","v":120},"CIAS",null,null,"COL0062704","Responsabilidad Social Empresarial",{"$f":"COUNTIF(BA$4:BA9,BA9)","v":4},{"$f":"ROW()","v":9},1,null,"COL0028918",1]
[null,9,null,null,null,"Patentes",null,null,null,null,null,null,null,null,null,null,null,null,null,null,null,"Asistente Investigación","Científico ","Diseño industrial, de modas e interiores",212,null,null,null,null,null,null,null,null,null,null,null,null,7,1,7,"CIAS","Estadística, Control y Optimización","COL0136423","B","http://scienti.colciencias.gov.co:8085/gruplac/jsp/visualiza/visualizagr.jsp?nro=00000000013845","BB125:BB129",{"$f":"ROW()","v":10},{"$f":"MINA(IF(AQ10=$BA$4:$BA$403,$BD$4:$BD$403))","v":125},{"$f":"MAXA(IF(AQ10=$BA$4:$BA$403,$BD$4:$BD$403))","v":129},"CIAS",null,null,"COL0028687","Fitoplasmas",{"$f":"COUNTIF(BA$4:BA10,BA10)","v":1},{"$f":"ROW()","v":10},1,null,"COL0031824",1]
[null,10,null,null,null,"Software",null,null,"Caracteres",null,null,null,null,null,null,null,null,null,null,null,null,"Joven Investigador","Tecnológico","Bellas artes",213,null,null,null,null,null,null,null,null,null,null,null,null,8,1,8,"CIAS","Grupo de Ecotoxicología, Evolución, Medio ambiente y conservación (E = mc2)","COL0038084","C","http://scienti.colciencias.gov.co:8085/gruplac/jsp/visualiza/visualizagr.jsp?nro=00000000002068","BB134:BB138",{"$f":"ROW()","v":11},{"$f":"MINA(IF(AQ11=$BA$4:$BA$403,$BD$4:$BD$403))","v":134},{"$f":"MAXA(IF(AQ11=$BA$4:$BA$403,$BD$4:$BD$403))","v":138},"CIAS",null,null,"COL0028687","Virus",{"$f":"COUNTIF(BA$4:BA11,BA11)","v":2},{"$f":"ROW()","v":11},1,null,"COL0031959",1]
[null,11,null,null,null,"Prototipo",null,null,999,null,null,null,null,null,null,null,null,null,null,null,null,"Asis. Graduado MG","Académico","Artesanías",214,null,null,null,null,null,null,null,null,null,null,null,null,9,1,9,"CIAS","Grupo de Investigación en Hidrobiología Aplicada (HIDROBIA)","COL0048492","C","http://scienti.colciencias.gov.co:8085/gruplac/jsp/visualiza/visualizagr.jsp?nro=00000000005664","BB167:BB170",{"$f":"ROW()","v":12},{"$f":"MINA(IF(AQ12=$BA$4:$BA$403,$BD$4:$BD$403))","v":167},{"$f":"MAXA(IF(AQ12=$BA$4:$BA$403,$BD$4:$BD$403))","v":170},"CIAS",null,null,"COL0031959","Análisis de redes de interacción planta-polinizador a partir de técnicas palinológicas",{"$f":"COUNTIF(BA$4:BA12,BA12)","v":1},{"$f":"ROW()","v":12},1,null,"COL0032278",1]
[null,12,null,null,null,"Empresa",null,null,null,null,null,null,null,null,null,null,null,null,null,null,null,"Asis. Graduado Doc","Otros","Música y artes escénicas",215,null,null,null,null,null,null,null,null,null,null,null,null,10,1,10,"CIAS","Agrobiología de especies vegetales promisorias de clima frío","COL0077814","C","http://scienti.colciencias.gov.co:8085/gruplac/jsp/visualiza/visualizagr.jsp?nro=00000000006560","BB171:BB171",{"$f":"ROW()","v":13},{"$f":"MINA(IF(AQ13=$BA$4:$BA$403,$BD$4:$BD$403))","v":171},{"$f":"MAXA(IF(AQ13=$BA$4:$BA$403,$BD$4:$BD$403))","v":171},"CIAS",null,null,"COL0031959","Cría de especies del género Bombus para su utilización como polinizadores en cultivos de la sabana Cundi-boyacense.",{"$f":"COUNTIF(BA$4:BA13,BA13)","v":2},{"$f":"ROW()","v":13},1,null,"COL0033239",1]
[null,13,null,null,null,"OVA",null,null,null,null,null,null,null,null,null,null,null,null,null,null,null,"Estudiante",null,"Religión y Teología",221,null,null,null,null,null,null,null,null,null,null,null,null,11,1,11,"CIAS","Grupo Integrado de Investigaciones en Química y Biología (InQuiBio)","COL0077707","A1","http://scienti.colciencias.gov.co:8085/gruplac/jsp/visualiza/visualizagr.jsp?nro=00000000008358","BB172:BB180",{"$f":"ROW()","v":14},{"$f":"MINA(IF(AQ14=$BA$4:$BA$403,$BD$4:$BD$403))","v":172},{"$f":"MAXA(IF(AQ14=$BA$4:$BA$403,$BD$4:$BD$403))","v":180},"CIAS",null,null,"COL0031959","Diversidad, biología y taxonomia de polinizadores colombianos",{"$f":"COUNTIF(BA$4:BA14,BA14)","v":3},{"$f":"ROW()","v":14},1,null,"COL0036025",1]
[null,14,null,null,null,"AVA",null,null,"Clave",null,null,null,null,null,null,null,null,null,null,null,null,"Técnico",null,"Historia y arqueología",222,null,null,null,null,null,null,null,null,null,null,null,null,12,1,12,"CIAS","Grupo de investigación en química ambiental y tecnologías limpias - QUATELI","COL0110436","C","http://scienti.colciencias.gov.co:8085/gruplac/jsp/visualiza/visualizagr.jsp?nro=00000000011141","BB181:BB185",{"$f":"ROW()","v":15},{"$f":"MINA(IF(AQ15=$BA$4:$BA$403,$BD$4:$BD$403))","v":181},{"$f":"MAXA(IF(AQ15=$BA$4:$BA$403,$BD$4:$BD$403))","v":185},"CIAS",null,null,"COL0031959","Ecología de la polinización: estudios del uso sostenible de especies de abejas silvestres como polinizadores de hortalizas y frutales",{"$f":"COUNTIF(BA$4:BA15,BA15)","v":4},{"$f":"ROW()","v":15},1,null,"COL0038084",1]
[null,15,null,null,null,"Dir. Doctorado","A","Si","Vicein1234",null,"Proyecto de Innovación","INO",12,15,null,null,null,null,null,null,null,"Tutor ",null,"Filosofía y ética",223,null,null,null,null,null,null,null,null,null,null,null,null,13,1,13,"CIAS","ECMU (Evaluacion en Competencias y Matemáticas Universitarias)","COL0110329","C","http://scienti.colciencias.gov.co:8085/gruplac/jsp/visualiza/visualizagr.jsp?nro=00000000011130","BB242:BB244",{"$f":"ROW()","v":16},{"$f":"MINA(IF(AQ16=$BA$4:$BA$403,$BD$4:$BD$403))","v":242},{"$f":"MAXA(IF(AQ16=$BA$4:$BA$403,$BD$4:$BD$403))","v":244},"CIAS",null,null,"COL0031959","Modelos biológicos y ecológicos de insectos benéficos",{"$f":"COUNTIF(BA$4:BA16,BA16)","v":5},{"$f":"ROW()","v":16},1,null,"COL0039321",1]
[null,16,null,null,null,"Dir. Maestria","A1","Si",null,null,"Proyecto de Emprendiemiento - Incubación Fase 0","EMP",6,10,null,null,null,null,null,null,null,"Doc. Acompañante",null,"Adquisición del lenguaje",231,null,null,null,null,null,null,null,null,null,null,null,null,14,1,14,"CIAS","Grupo de Docencia e Investigación en Física","COL0138796","C","http://scienti.colciencias.gov.co:8085/gruplac/jsp/visualiza/visualizagr.jsp?nro=00000000014082","BB250:BB254",{"$f":"ROW()","v":17},{"$f":"MINA(IF(AQ17=$BA$4:$BA$403,$BD$4:$BD$403))","v":250},{"$f":"MAXA(IF(AQ17=$BA$4:$BA$403,$BD$4:$BD$403))","v":254},"CIAS",null,null,"COL0044859","Multimedia Educativa",{"$f":"COUNTIF(BA$4:BA17,BA17)","v":1},{"$f":"ROW()","v":17},1,null,"COL0045848",1]
[null,17,null,null,null,"Dir. Trab. Grado","B","Si",null,null,"Proyecto de Emprendiemiento - Incubación Fase  1","EMP1",36,600,null,null,null,null,null,null,null,"Estudiante",null,"Literatura y lingüística",232,null,null,null,null,null,null,null,null,null,null,null,null,15,1,71,"CIAS","DIVERSITAS","COL0178619","NR","http://scienti.colciencias.gov.co:8085/gruplac/jsp/visualiza/visualizagr.jsp?nro=00000000018063",{"$f":"$AT$2&AV18&\":\"&$AT$2&AW18","v":"BB298:BB303"},{"$f":"ROW()","v":18},{"$f":"MINA(IF(AQ18=$BA$4:$BA$403,$BD$4:$BD$403))","v":298},{"$f":"MAXA(IF(AQ18=$BA$4:$BA$403,$BD$4:$BD$403))","v":303},{"$f":"AO18","v":"CIAS"},null,null,"COL0044859","Procesamiento digital de imágenes y Visión por computador",{"$f":"COUNTIF(BA$4:BA18,BA18)","v":2},{"$f":"ROW()","v":18},1,null,"COL0047566",1]
[null,18,null,null,null,"Dir. PIC","C","Si",null,null,"La Ciencia al servicio de la PAZ","PAZ",12,0,null,null,null,null,null,null,null,"Innovador Principal",null,"Economía",311,null,null,null,null,null,null,null,null,null,null,null,null,16,1,72,"CIAS","Nanofab","COL0179618","NR","http://scienti.colciencias.gov.co:8085/gruplac/jsp/visualiza/visualizagr.jsp?nro=00000000018163",{"$f":"$AT$2&AV19&\":\"&$AT$2&AW19","v":"BB304:BB307"},{"$f":"ROW()","v":19},{"$f":"MINA(IF(AQ19=$BA$4:$BA$403,$BD$4:$BD$403))","v":304},{"$f":"MAXA(IF(AQ19=$BA$4:$BA$403,$BD$4:$BD$403))","v":307},{"$f":"AO19","v":"CIAS"},null,null,"COL0044859","Sistemas Multimedia",{"$f":"COUNTIF(BA$4:BA19,BA19)","v":3},{"$f":"ROW()","v":19},1,null,"COL0047762",1]
[null,19,null,null,null,"Cond. Doctorado","D","Si",null,null,null,null,null,null,null,null,null,null,null,null,null,"Coinnovador",null,"Ciencias políticas y educación cívica",312,null,null,null,null,null,null,null,null,null,null,null,null,17,1,15,"DER","Grupo de derecho público ","COL0028918","B","http://scienti.colciencias.gov.co:8085/gruplac/jsp/visualiza/visualizagr.jsp?nro=00000000001079","BB33:BB37",{"$f":"ROW()","v":20},{"$f":"MINA(IF(AQ20=$BA$4:$BA$403,$BD$4:$BD$403))","v":33},{"$f":"MAXA(IF(AQ20=$BA$4:$BA$403,$BD$4:$BD$403))","v":37},{"$f":"AO20","v":"DER"},null,null,"COL0044859","Visualización y Computación Gráfica",{"$f":"COUNTIF(BA$4:BA20,BA20)","v":4},{"$f":"ROW()","v":20},1,null,"COL0049659",1]
[null,20,null,null,null,"Cond. Maestria","N","No",null,null,null,null,null,null,null,null,null,null,null,null,null,"Asistente",null,"Psicología",313,null,null,null,null,null,null,null,null,null,null,null,null,18,1,16,"DER","Grupo de Derecho Privado","COL0128047","R","http://scienti.colciencias.gov.co:8085/gruplac/jsp/visualiza/visualizagr.jsp?nro=00000000012964","BB198:BB199",{"$f":"ROW()","v":21},{"$f":"MINA(IF(AQ21=$BA$4:$BA$403,$BD$4:$BD$403))","v":198},{"$f":"MAXA(IF(AQ21=$BA$4:$BA$403,$BD$4:$BD$403))","v":199},"DER",null,null,"COL0047762","Desarrollo de modelos de ingeniería de tejido humano",{"$f":"COUNTIF(BA$4:BA21,BA21)","v":1},{"$f":"ROW()","v":21},1,null,"COL0049999",1]
[null,21,null,null,null,"Jov. Investigador","NR","No",null,null,null,null,null,null,null,null,null,null,null,null,null,"Emprendedor Principal ",null,"Sociología y estudios culturales",314,null,null,null,null,null,null,null,null,null,null,null,null,19,1,17,"DER","Red de estudios sociojurídicos comparados y políticas públicas","COL0142449","NR","http://scienti.colciencias.gov.co:8085/gruplac/jsp/visualiza/visualizagr.jsp?nro=00000000014449","BB275:BB280",{"$f":"ROW()","v":22},{"$f":"MINA(IF(AQ22=$BA$4:$BA$403,$BD$4:$BD$403))","v":275},{"$f":"MAXA(IF(AQ22=$BA$4:$BA$403,$BD$4:$BD$403))","v":280},"DER",null,null,"COL0047762","Metabolismo oseo - bone metabolism",{"$f":"COUNTIF(BA$4:BA22,BA22)","v":2},{"$f":"ROW()","v":22},1,null,"COL0050294",1]
[null,22,null,null,null,"Ponencia Inter.",null,null,null,null,null,null,null,null,null,null,null,null,null,null,null,"Coemprendedor",null,"Periodismo y reportajes",321,null,null,null,null,null,null,null,null,null,null,null,null,20,1,18,"DIS","PROPPIO: Procesos organizacionales, programaticos y políticos para la promoción del desarrollo","COL0062704","R","http://scienti.colciencias.gov.co:8085/gruplac/jsp/visualiza/visualizagr.jsp?nro=00000000006477","BB6:BB9",{"$f":"ROW()","v":23},{"$f":"MINA(IF(AQ23=$BA$4:$BA$403,$BD$4:$BD$403))","v":6},{"$f":"MAXA(IF(AQ23=$BA$4:$BA$403,$BD$4:$BD$403))","v":9},"DIS",null,null,"COL0126015","Inmunodermatologia",{"$f":"COUNTIF(BA$4:BA23,BA23)","v":1},{"$f":"ROW()","v":23},1,null,"COL0052163",1]
[null,23,null,null,null,"Ponencia Nac.",null,null,null,null,null,null,null,null,null,null,null,null,null,null,null,"Asistente",null,"Bibliotecología, información y archivología",322,null,null,null,null,null,null,null,null,null,null,null,null,21,1,19,"DIS","INCONDIS","COL0127649","NR","http://scienti.colciencias.gov.co:8085/gruplac/jsp/visualiza/visualizagr.jsp?nro=00000000012918","BB25:BB25",{"$f":"ROW()","v":24},{"$f":"MINA(IF(AQ24=$BA$4:$BA$403,$BD$4:$BD$403))","v":25},{"$f":"MAXA(IF(AQ24=$BA$4:$BA$403,$BD$4:$BD$403))","v":25},"DIS",null,null,"COL0126015","Psoriasis",{"$f":"COUNTIF(BA$4:BA24,BA24)","v":2},{"$f":"ROW()","v":24},1,null,"COL0052181",1]
[null,24,null,null,null,"Ponencia Insti.",null,null,null,null,null,null,null,null,null,null,null,null,null,null,null,null,null,"Contabilidad e impuestos",411,null,null,null,null,null,null,null,null,null,null,null,null,22,1,20,"DIS","\"PYDES\" Pedagogía y didáctica en la educación superior","COL0018448","A","http://scienti.colciencias.gov.co:8085/gruplac/jsp/visualiza/visualizagr.jsp?nro=00000000000929","BB69:BB72",{"$f":"ROW()","v":25},{"$f":"MINA(IF(AQ25=$BA$4:$BA$403,$BD$4:$BD$403))","v":69},{"$f":"MAXA(IF(AQ25=$BA$4:$BA$403,$BD$4:$BD$403))","v":72},"DIS",null,null,"COL0127649","Línea en contabilidad integral",{"$f":"COUNTIF(BA$4:BA25,BA25)","v":1},{"$f":"ROW()","v":25},1,null,"COL0065804",1]
[null,25,null,null,null,"Mat. Divulgativo",null,null,null,null,null,null,null,null,null,null,null,null,null,null,null,null,null,"Gestión financiera, administración bancaria y seguros",412,null,null,null,null,null,null,null,null,null,null,null,null,23,1,21,"DIS","Medios, Mediaciones y Procesos en Educación a Distancia","COL0067504","C","http://scienti.colciencias.gov.co:8085/gruplac/jsp/visualiza/visualizagr.jsp?nro=00000000004308","BB79:BB84",{"$f":"ROW()","v":26},{"$f":"MINA(IF(AQ26=$BA$4:$BA$403,$BD$4:$BD$403))","v":79},{"$f":"MAXA(IF(AQ26=$BA$4:$BA$403,$BD$4:$BD$403))","v":84},"DIS",null,null,"COL0015722","Bioética, biopolítica y biojurídica",{"$f":"COUNTIF(BA$4:BA26,BA26)","v":1},{"$f":"ROW()","v":26},1,null,"COL0066229",1]
[null,26,null,null,null,"Org. Evento Inter.",null,null,null,null,null,null,null,null,null,null,null,null,null,null,null,null,null,"Gestión y administración",413,null,null,null,null,null,null,null,null,null,null,null,null,24,1,22,"DIS","PIREO \"Procesos de Integración, Regionalización y Estructuras Organizacionales\"","COL0066229","C","http://scienti.colciencias.gov.co:8085/gruplac/jsp/visualiza/visualizagr.jsp?nro=00000000004242","BB162:BB164",{"$f":"ROW()","v":27},{"$f":"MINA(IF(AQ27=$BA$4:$BA$403,$BD$4:$BD$403))","v":162},{"$f":"MAXA(IF(AQ27=$BA$4:$BA$403,$BD$4:$BD$403))","v":164},"DIS",null,null,"COL0015722","Liderazgo",{"$f":"COUNTIF(BA$4:BA27,BA27)","v":2},{"$f":"ROW()","v":27},1,null,"COL0066669",1]
[null,27,null,null,null,"Org. Evento Nac.",null,null,null,null,null,null,null,null,null,null,null,null,null,null,null,null,null,"Mercadotecnia y publicidad",414,null,null,null,null,null,null,null,null,null,null,null,null,25,1,23,"DIS","Modelos de simulación ICDIST","COL0069296","C","http://scienti.colciencias.gov.co:8085/gruplac/jsp/visualiza/visualizagr.jsp?nro=00000000004423","BB261:BB261",{"$f":"ROW()","v":28},{"$f":"MINA(IF(AQ28=$BA$4:$BA$403,$BD$4:$BD$403))","v":261},{"$f":"MAXA(IF(AQ28=$BA$4:$BA$403,$BD$4:$BD$403))","v":261},"DIS",null,null,"COL0005439","Modelación numérica",{"$f":"COUNTIF(BA$4:BA28,BA28)","v":1},{"$f":"ROW()","v":28},1,null,"COL0066768",1]
[null,28,null,null,null,"Org. Evento Isnti.",null,null,null,null,null,null,null,null,null,null,null,null,null,null,null,null,null,"Secretariado y trabajo de oficina",415,null,null,null,null,null,null,null,null,null,null,null,null,26,1,24,"DIS","INAMPE","COL0142331","NR","http://scienti.colciencias.gov.co:8085/gruplac/jsp/visualiza/visualizagr.jsp?nro=00000000014438","BB272:BB274",{"$f":"ROW()","v":29},{"$f":"MINA(IF(AQ29=$BA$4:$BA$403,$BD$4:$BD$403))","v":272},{"$f":"MAXA(IF(AQ29=$BA$4:$BA$403,$BD$4:$BD$403))","v":274},"DIS",null,null,"COL0005439","Ordenación del territorio",{"$f":"COUNTIF(BA$4:BA29,BA29)","v":2},{"$f":"ROW()","v":29},1,null,"COL0067504",1]
[null,29,null,null,null,"Premios Inter.",null,null,null,null,null,null,null,null,null,null,null,null,null,null,null,null,null,"Ventas al por mayor y al por menor",416,null,null,null,null,null,null,null,null,null,null,null,null,27,1,25,"ECO","Grupo de Estudios en Ciencias Económicas - CIE","COL0050294","C","http://scienti.colciencias.gov.co:8085/gruplac/jsp/visualiza/visualizagr.jsp?nro=00000000003322","BB43:BB45",{"$f":"ROW()","v":30},{"$f":"MINA(IF(AQ30=$BA$4:$BA$403,$BD$4:$BD$403))","v":43},{"$f":"MAXA(IF(AQ30=$BA$4:$BA$403,$BD$4:$BD$403))","v":45},"ECO",null,null,"COL0005439","Pavimentos",{"$f":"COUNTIF(BA$4:BA30,BA30)","v":3},{"$f":"ROW()","v":30},1,null,"COL0068762",1]
[null,30,null,null,null,"Premios Nac.",null,null,null,null,null,null,null,null,null,null,null,null,null,null,null,null,null,"Competencias laborales",417,null,null,null,null,null,null,null,null,null,null,null,null,28,1,26,"ECO","Grupo de Estudios Macroeconómicos","COL0027367","C","http://scienti.colciencias.gov.co:8085/gruplac/jsp/visualiza/visualizagr.jsp?nro=00000000000855","BB61:BB63",{"$f":"ROW()","v":31},{"$f":"MINA(IF(AQ31=$BA$4:$BA$403,$BD$4:$BD$403))","v":61},{"$f":"MAXA(IF(AQ31=$BA$4:$BA$403,$BD$4:$BD$403))","v":63},"ECO",null,null,"COL0005439","Suelos",{"$f":"COUNTIF(BA$4:BA31,BA31)","v":4},{"$f":"ROW()","v":31},1,null,"COL0069296",1]
[null,31,null,null,null,"Proyecto Coop. Nac.",null,null,null,null,null,null,null,null,null,null,null,null,null,null,null,null,null,"Derecho",421,null,null,null,null,null,null,null,null,null,null,null,null,29,1,27,"ECO","Grupo de estudios contemporáneos en contabilidad, gestión y organizaciones - GECCGO","COL0028767","B","http://scienti.colciencias.gov.co:8085/gruplac/jsp/visualiza/visualizagr.jsp?nro=00000000001069","BB165:BB166",{"$f":"ROW()","v":32},{"$f":"MINA(IF(AQ32=$BA$4:$BA$403,$BD$4:$BD$403))","v":165},{"$f":"MAXA(IF(AQ32=$BA$4:$BA$403,$BD$4:$BD$403))","v":166},"ECO",null,null,"COL0005439","Transportes",{"$f":"COUNTIF(BA$4:BA32,BA32)","v":5},{"$f":"ROW()","v":32},1,null,"COL0048492",1]
[null,32,null,null,null,"Proyecto Coop. Inter.",null,null,null,null,null,null,null,null,null,null,null,null,null,null,null,null,null,"Biología",511,null,null,null,null,null,null,null,null,null,null,null,null,30,1,28,"ECO","GECS (Grupo de Investigación en Contabilidad y Sociedad)","COL0117722","R","http://scienti.colciencias.gov.co:8085/gruplac/jsp/visualiza/visualizagr.jsp?nro=00000000011887","BB266:BB267",{"$f":"ROW()","v":33},{"$f":"MINA(IF(AQ33=$BA$4:$BA$403,$BD$4:$BD$403))","v":266},{"$f":"MAXA(IF(AQ33=$BA$4:$BA$403,$BD$4:$BD$403))","v":267},"ECO",null,null,"COL0028918","Constitución, derecho público y estado",{"$f":"COUNTIF(BA$4:BA33,BA33)","v":1},{"$f":"ROW()","v":33},1,null,"COL0050982",1]
[null,33,null,null,null,"Informe final Proy.",null,null,null,null,null,null,null,null,null,null,null,null,null,null,null,null,null,"Bioquímica",512,null,null,null,null,null,null,null,null,null,null,null,null,31,1,29,"EES","Estudios Internacionales y Políticos","COL0066768","C","http://scienti.colciencias.gov.co:8085/gruplac/jsp/visualiza/visualizagr.jsp?nro=00000000004270","BB73:BB78",{"$f":"ROW()","v":34},{"$f":"MINA(IF(AQ34=$BA$4:$BA$403,$BD$4:$BD$403))","v":73},{"$f":"MAXA(IF(AQ34=$BA$4:$BA$403,$BD$4:$BD$403))","v":78},"EES",null,null,"COL0028918","Derecho historia y filosofía",{"$f":"COUNTIF(BA$4:BA34,BA34)","v":2},{"$f":"ROW()","v":34},1,null,"COL0062704",1]
[null,34,null,null,null,"Informe estudiante",null,null,null,null,null,null,null,null,null,null,null,null,null,null,null,null,null,"Ciencias del medio ambiente",521,null,null,null,null,null,null,null,null,null,null,null,null,32,1,30,"EES","Sociedad, Estrategia y Seguridad","COL0066669","C","http://scienti.colciencias.gov.co:8085/gruplac/jsp/visualiza/visualizagr.jsp?nro=00000000004263","BB223:BB226",{"$f":"ROW()","v":35},{"$f":"MINA(IF(AQ35=$BA$4:$BA$403,$BD$4:$BD$403))","v":223},{"$f":"MAXA(IF(AQ35=$BA$4:$BA$403,$BD$4:$BD$403))","v":226},"EES",null,null,"COL0028918","Derecho internacional, derechos humanos, derecho internacional humanitario",{"$f":"COUNTIF(BA$4:BA35,BA35)","v":3},{"$f":"ROW()","v":35},1,null,"COL0077814",1]
[null,35,null,null,null,"Cartilla",null,null,null,null,null,null,null,null,null,null,null,null,null,null,null,null,null,"Medio ambiente natural y vida silvestre",522,null,null,null,null,null,null,null,null,null,null,null,null,33,{"$f":"COUNTIF($AN$4:$AN$73,AL36)","v":1},31,"HUM","LIDERAZGO","COL0015722","A","http://scienti.colciencias.gov.co:8085/gruplac/jsp/visualiza/visualizagr.jsp?nro=00000000000744","BB26:BB27",{"$f":"ROW()","v":36},{"$f":"MINA(IF(AQ36=$BA$4:$BA$403,$BD$4:$BD$403))","v":26},{"$f":"MAXA(IF(AQ36=$BA$4:$BA$403,$BD$4:$BD$403))","v":27},"HUM",null,null,"COL0028918","Derecho penal y justicia militar",{"$f":"COUNTIF(BA$4:BA36,BA36)","v":4},{"$f":"ROW()","v":36},1,null,"COL0067371",{"$f":"COUNTIF($AQ$4:$AQ$73,BG36)","v":1}]
[null,36,null,null,null,null,null,null,null,null,null,null,null,null,null,null,null,null,null,null,null,null,null,"Química",531,null,null,null,null,null,null,null,null,null,null,null,null,34,1,32,"HUM","HUMANITAS","COL0101099","B","http://scienti.colciencias.gov.co:8085/gruplac/jsp/visualiza/visualizagr.jsp?nro=00000000010165","BB85:BB88",{"$f":"ROW()","v":37},{"$f":"MINA(IF(AQ37=$BA$4:$BA$403,$BD$4:$BD$403))","v":85},{"$f":"MAXA(IF(AQ37=$BA$4:$BA$403,$BD$4:$BD$403))","v":88},"HUM",null,null,"COL0028918","Derecho, educación y sociedad",{"$f":"COUNTIF(BA$4:BA37,BA37)","v":5},{"$f":"ROW()","v":37},1,null,"COL0086179",1]
[null,37,null,null,null,null,null,null,null,null,null,null,null,null,null,null,null,null,null,null,null,null,null,"Ciencias de la tierra",532,null,null,null,null,null,null,null,null,null,null,null,null,35,1,33,"HUM","Cultura y Desarrollo Humano","COL0002896","R","http://scienti.colciencias.gov.co:8085/gruplac/jsp/visualiza/visualizagr.jsp?nro=00000000000740","BB159:BB161",{"$f":"ROW()","v":38},{"$f":"MINA(IF(AQ38=$BA$4:$BA$403,$BD$4:$BD$403))","v":159},{"$f":"MAXA(IF(AQ38=$BA$4:$BA$403,$BD$4:$BD$403))","v":161},"HUM",null,null,"COL0039321","Análisis de matrices",{"$f":"COUNTIF(BA$4:BA38,BA38)","v":1},{"$f":"ROW()","v":38},1,null,"COL0077707",1]
[null,null,null,null,null,null,null,null,null,null,null,null,null,null,null,null,null,null,null,null,null,null,null,"Física",533,null,null,null,null,null,null,null,null,null,null,null,null,36,1,34,"HUM","BioethicsGroup","COL0031824","A","http://scienti.colciencias.gov.co:8085/gruplac/jsp/visualiza/visualizagr.jsp?nro=00000000001353","BB211:BB214",{"$f":"ROW()","v":39},{"$f":"MINA(IF(AQ39=$BA$4:$BA$403,$BD$4:$BD$403))","v":211},{"$f":"MAXA(IF(AQ39=$BA$4:$BA$403,$BD$4:$BD$403))","v":214},"HUM",null,null,"COL0039321","Filosofía de la ciencia: filosofía de la física",{"$f":"COUNTIF(BA$4:BA39,BA39)","v":2},{"$f":"ROW()","v":39},1,null,"COL0028687",1]
[null,null,null,null,null,null,null,null,null,null,null,null,null,null,null,null,null,null,null,null,null,null,null,"Matemáticas",541,null,null,null,null,null,null,null,null,null,null,null,null,37,1,35,"ING","Grupo de Investigación en Multimedia -GIM-","COL0044859","C","http://scienti.colciencias.gov.co:8085/gruplac/jsp/visualiza/visualizagr.jsp?nro=00000000002706","BB17:BB20",{"$f":"ROW()","v":40},{"$f":"MINA(IF(AQ40=$BA$4:$BA$403,$BD$4:$BD$403))","v":17},{"$f":"MAXA(IF(AQ40=$BA$4:$BA$403,$BD$4:$BD$403))","v":20},"ING",null,null,"COL0039321","Leyes de conservación hiperbólica",{"$f":"COUNTIF(BA$4:BA40,BA40)","v":3},{"$f":"ROW()","v":40},1,null,"COL0096032",1]
[null,null,null,null,null,null,null,null,null,null,null,null,null,null,null,null,null,null,null,null,null,null,null,"Estadística",542,null,null,null,null,null,null,null,null,null,null,null,null,38,1,36,"ING","GEOTECNIA","COL0005439","C","http://scienti.colciencias.gov.co:8085/gruplac/jsp/visualiza/visualizagr.jsp?nro=00000000000739","BB28:BB32",{"$f":"ROW()","v":41},{"$f":"MINA(IF(AQ41=$BA$4:$BA$403,$BD$4:$BD$403))","v":28},{"$f":"MAXA(IF(AQ41=$BA$4:$BA$403,$BD$4:$BD$403))","v":32},"ING",null,null,"COL0039321","Matemáticas aplicadas",{"$f":"COUNTIF(BA$4:BA41,BA41)","v":4},{"$f":"ROW()","v":41},1,null,"COL0107771",1]
[null,null,null,null,null,null,null,null,null,null,null,null,null,null,null,null,null,null,null,null,null,null,null,"Uso de computadores",611,null,null,null,null,null,null,null,null,null,null,null,null,39,1,37,"ING","TIGUM: Grupo de Investigacion en Telemedicina Universidad Militar","COL0052181","C","http://scienti.colciencias.gov.co:8085/gruplac/jsp/visualiza/visualizagr.jsp?nro=00000000003508","BB46:BB50",{"$f":"ROW()","v":42},{"$f":"MINA(IF(AQ42=$BA$4:$BA$403,$BD$4:$BD$403))","v":46},{"$f":"MAXA(IF(AQ42=$BA$4:$BA$403,$BD$4:$BD$403))","v":50},"ING",null,null,"COL0039321","Solución numérica de ecuaciones diferenciales parciales",{"$f":"COUNTIF(BA$4:BA42,BA42)","v":5},{"$f":"ROW()","v":42},1,null,"COL0110329",1]
[null,null,null,null,null,null,null,null,null,null,null,null,null,null,null,null,null,null,null,null,null,null,null,"Diseño y administración de redes y bases de datos",612,null,null,null,null,null,null,null,null,null,null,null,null,40,1,38,"ING","VOLTA - GMCDP","COL0065804","A1","http://scienti.colciencias.gov.co:8085/gruplac/jsp/visualiza/visualizagr.jsp?nro=00000000004193","BB56:BB60",{"$f":"ROW()","v":43},{"$f":"MINA(IF(AQ43=$BA$4:$BA$403,$BD$4:$BD$403))","v":56},{"$f":"MAXA(IF(AQ43=$BA$4:$BA$403,$BD$4:$BD$403))","v":60},"ING",null,null,"COL0050294","Economía de la defensa y del conflicto",{"$f":"COUNTIF(BA$4:BA43,BA43)","v":1},{"$f":"ROW()","v":43},1,null,"COL0110436\n",0]
[null,null,null,null,null,null,null,null,null,null,null,null,null,null,null,null,null,null,null,null,null,null,null,"Desarrollo y análisis de software y aplicaciones",613,null,null,null,null,null,null,null,null,null,null,null,null,41,1,39,"ING","PRODUCCION, INNOVACION Y TECNOLOGIA","COL0049999","C","http://scienti.colciencias.gov.co:8085/gruplac/jsp/visualiza/visualizagr.jsp?nro=00000000003290","BB112:BB117",{"$f":"ROW()","v":44},{"$f":"MINA(IF(AQ44=$BA$4:$BA$403,$BD$4:$BD$403))","v":112},{"$f":"MAXA(IF(AQ44=$BA$4:$BA$403,$BD$4:$BD$403))","v":117},"ING",null,null,"COL0050294","Gestión Ambiental",{"$f":"COUNTIF(BA$4:BA44,BA44)","v":2},{"$f":"ROW()","v":44},1,null,"COL0114201",0]
[null,null,null,null,null,null,null,null,null,null,null,null,null,null,null,null,null,null,null,null,null,null,null,"Ingeniería y procesos químicos",711,null,null,null,null,null,null,null,null,null,null,null,null,42,1,40,"ING","GIDAM","COL0116636","C","http://scienti.colciencias.gov.co:8085/gruplac/jsp/visualiza/visualizagr.jsp?nro=00000000011773","BB121:BB124",{"$f":"ROW()","v":45},{"$f":"MINA(IF(AQ45=$BA$4:$BA$403,$BD$4:$BD$403))","v":121},{"$f":"MAXA(IF(AQ45=$BA$4:$BA$403,$BD$4:$BD$403))","v":124},"ING",null,null,"COL0050294","Política Económica",{"$f":"COUNTIF(BA$4:BA45,BA45)","v":3},{"$f":"ROW()","v":45},1,null,"COL0116439",1]
[null,null,null,null,null,null,null,null,null,null,null,null,null,null,null,null,null,null,null,null,null,null,null,"Tecnología de protección del medio ambiente",712,null,null,null,null,null,null,null,null,null,null,null,null,43,1,41,"ING","DAVINCI","COL0036025","A","http://scienti.colciencias.gov.co:8085/gruplac/jsp/visualiza/visualizagr.jsp?nro=00000000001843","BB130:BB133",{"$f":"ROW()","v":46},{"$f":"MINA(IF(AQ46=$BA$4:$BA$403,$BD$4:$BD$403))","v":130},{"$f":"MAXA(IF(AQ46=$BA$4:$BA$403,$BD$4:$BD$403))","v":133},"ING",null,null,"COL0052181","Big Data Analytics",{"$f":"COUNTIF(BA$4:BA46,BA46)","v":1},{"$f":"ROW()","v":46},1,null,"COL0116538",1]
[null,null,"Elección de grupo de investigaccion",null,null,null,{"$f":"73-COUNTIF(H49:H121,0)","v":1},null,null,null,null,null,null,null,null,null,null,null,null,null,null,null,null,"Electricidad y energía",713,null,null,null,null,null,null,null,null,null,null,null,null,44,1,42,"ING","Estructuras y sísmica","COL0016999","C","http://scienti.colciencias.gov.co:8085/gruplac/jsp/visualiza/visualizagr.jsp?nro=00000000000737","BB139:BB143",{"$f":"ROW()","v":47},{"$f":"MINA(IF(AQ47=$BA$4:$BA$403,$BD$4:$BD$403))","v":139},{"$f":"MAXA(IF(AQ47=$BA$4:$BA$403,$BD$4:$BD$403))","v":143},"ING",null,null,"COL0052181","Gestión hospitalaria",{"$f":"COUNTIF(BA$4:BA47,BA47)","v":2},{"$f":"ROW()","v":47},1,null,"COL0116636",1]
[null,"NN","Grupo","Hoja","Auxi1",null,{"$f":"Datos_Generales!C19","v":"Agua y Energía - AyE"},"ID",null,null,null,null,null,null,null,null,null,null,null,null,null,null,null,"Electrónica y automatización",714,null,null,null,null,null,null,null,null,null,null,null,null,45,1,43,"ING","INGENIERÍA, GEOMÁTICA Y EDUCACIÓN (IGE)","COL0047566","C","http://scienti.colciencias.gov.co:8085/gruplac/jsp/visualiza/visualizagr.jsp?nro=00000000003044","BB144:BB149",{"$f":"ROW()","v":48},{"$f":"MINA(IF(AQ48=$BA$4:$BA$403,$BD$4:$BD$403))","v":144},{"$f":"MAXA(IF(AQ48=$BA$4:$BA$403,$BD$4:$BD$403))","v":149},"ING",null,null,"COL0052181","Procesamiento de seńales, datos, imagen y video",{"$f":"COUNTIF(BA$4:BA48,BA48)","v":3},{"$f":"ROW()","v":48},1,null,"COL0117052",1]
[null,{"$f":"IF(E49=1,SUM($E$49:E49),0)","v":0},"\"PYDES\" Pedagogía y didáctica en la educación superior",20,{"$f":"IF(IFERROR(SEARCH(GP,C49,1),0)>0,1,0)","v":0},null,{"$f":"IFERROR(VLOOKUP(ROW()-48,$B$48:$E$121,2,0),\"\")","v":"Agua y Energía - AyE"},{"$f":"IFERROR(VLOOKUP(ROW()-48,$B$48:$E$121,3,0),0)","v":45},null,null,null,null,null,null,null,null,null,null,null,null,null,null,null,"Mecánica y profesiones afines a la metalistería",715,null,null,null,null,null,null,null,null,null,null,null,null,46,1,44,"ING","ACCEDER","COL0036749","C","http://scienti.colciencias.gov.co:8085/gruplac/jsp/visualiza/visualizagr.jsp?nro=00000000012996","BB157:BB158",{"$f":"ROW()","v":49},{"$f":"MINA(IF(AQ49=$BA$4:$BA$403,$BD$4:$BD$403))","v":157},{"$f":"MAXA(IF(AQ49=$BA$4:$BA$403,$BD$4:$BD$403))","v":158},"ING",null,null,"COL0052181","Tele-cardiología y prevención",{"$f":"COUNTIF(BA$4:BA49,BA49)","v":4},{"$f":"ROW()","v":49},1,null,"COL0117722",1]
[null,{"$f":"IF(E50=1,SUM($E$49:E50),0)","v":0},"ACCEDER",44,0,null,{"$f":"IFERROR(VLOOKUP(ROW()-48,$B$48:$E$121,2,0),\"\")","v":""},{"$f":"IFERROR(VLOOKUP(ROW()-48,$B$48:$E$121,3,0),0)","v":0},null,null,null,null,null,null,null,null,null,null,null,null,null,null,null,"Vehículos, barcos y aeronaves motorizadas",716,null,null,null,null,null,null,null,null,null,null,null,null,47,1,45,"ING","Agua y Energía - AyE","COL0026486","C","http://scienti.colciencias.gov.co:8085/gruplac/jsp/visualiza/visualizagr.jsp?nro=00000000000767","BB206:BB210",{"$f":"ROW()","v":50},{"$f":"MINA(IF(AQ50=$BA$4:$BA$403,$BD$4:$BD$403))","v":206},{"$f":"MAXA(IF(AQ50=$BA$4:$BA$403,$BD$4:$BD$403))","v":210},"ING",null,null,"COL0052181","Telemetría (IoT-Routing)",{"$f":"COUNTIF(BA$4:BA50,BA50)","v":5},{"$f":"ROW()","v":50},1,null,"COL0125107",0]
[null,{"$f":"IF(E51=1,SUM($E$49:E51),0)","v":0},"Agrobiología de especies vegetales promisorias de clima frío",10,0,null,"",0,null,null,null,null,null,null,null,null,null,null,null,null,null,null,null,"Procesamiento de alimentos",721,null,null,null,null,null,null,null,null,null,null,null,null,48,1,46,"ING","GISSIC: Grupo de Investigacion en Seguridad y Sistemas de Comunicaciones","COL0052163","A","http://scienti.colciencias.gov.co:8085/gruplac/jsp/visualiza/visualizagr.jsp?nro=00000000003506","BB218:BB222",{"$f":"ROW()","v":51},{"$f":"MINA(IF(AQ51=$BA$4:$BA$403,$BD$4:$BD$403))","v":218},{"$f":"MAXA(IF(AQ51=$BA$4:$BA$403,$BD$4:$BD$403))","v":222},"ING",null,null,"COL0107771","Calidad de Vida de las enfermedades respiratorias en la nińez",{"$f":"COUNTIF(BA$4:BA51,BA51)","v":1},{"$f":"ROW()","v":51},1,null,"COL0125134",1]
[null,{"$f":"IF(E52=1,SUM($E$49:E52),0)","v":0},"BioethicsGroup",34,0,null,"",0,null,null,null,null,null,null,null,null,null,null,null,null,null,null,null,"Materiales (vidrio, papel, plástico y madera)",722,null,null,null,null,null,null,null,null,null,null,null,null,49,1,47,"ING","GAV","COL0068762","A","http://scienti.colciencias.gov.co:8085/gruplac/jsp/visualiza/visualizagr.jsp?nro=00000000004391","BB227:BB232",{"$f":"ROW()","v":52},{"$f":"MINA(IF(AQ52=$BA$4:$BA$403,$BD$4:$BD$403))","v":227},{"$f":"MAXA(IF(AQ52=$BA$4:$BA$403,$BD$4:$BD$403))","v":232},"ING",null,null,"COL0107771","Enfermedad bronquial obstructiva recurrente en nińos (Asma, sibilancias inducidas por virus, sibilancias recurrentes, sibilancias persistentes de múltiples desencadenantes)",{"$f":"COUNTIF(BA$4:BA52,BA52)","v":2},{"$f":"ROW()","v":52},1,null,"COL0126015",1]
[null,{"$f":"IF(E53=1,SUM($E$49:E53),0)","v":0},"BioGenEtica & BioDerecho",67,0,null,"",0,null,null,null,null,null,null,null,null,null,null,null,null,null,null,null,"Producción textiles (ropa, calzado y artículos de cuero)",723,null,null,null,null,null,null,null,null,null,null,null,null,50,1,48,"ING","Energia alternativa, Centro Multidisciplinario de Investigación","COL0117052","C","http://scienti.colciencias.gov.co:8085/gruplac/jsp/visualiza/visualizagr.jsp?nro=00000000011817","BB245:BB249",{"$f":"ROW()","v":53},{"$f":"MINA(IF(AQ53=$BA$4:$BA$403,$BD$4:$BD$403))","v":245},{"$f":"MAXA(IF(AQ53=$BA$4:$BA$403,$BD$4:$BD$403))","v":249},"ING",null,null,"COL0107771","Enfermedad pulmonar obstructiva crónica del Recién Nacido",{"$f":"COUNTIF(BA$4:BA53,BA53)","v":3},{"$f":"ROW()","v":53},1,null,"COL0126777",1]
[null,{"$f":"IF(E54=1,SUM($E$49:E54),0)","v":0},"BONE",53,0,null,"",0,null,null,null,null,null,null,null,null,null,null,null,null,null,null,null,"Minería y extracción",724,null,null,null,null,null,null,null,null,null,null,null,null,51,1,49,"ING","GI-iTEC - Grupo de Investigación e innovación Tecnológica en Electrónica y Comunicaciones","COL0143731","C","http://scienti.colciencias.gov.co:8085/gruplac/jsp/visualiza/visualizagr.jsp?nro=00000000014576","BB258:BB260",{"$f":"ROW()","v":54},{"$f":"MINA(IF(AQ54=$BA$4:$BA$403,$BD$4:$BD$403))","v":258},{"$f":"MAXA(IF(AQ54=$BA$4:$BA$403,$BD$4:$BD$403))","v":260},"ING",null,null,"COL0107771","Enfermedades infecciosas de la infancia (Rinosinusitis, Croup, Bronquiolitis, Neumonía, Tuberculosis, Infección por VIH con afectación pulmonar)",{"$f":"COUNTIF(BA$4:BA54,BA54)","v":4},{"$f":"ROW()","v":54},1,null,"COL0127649",1]
[null,{"$f":"IF(E55=1,SUM($E$49:E55),0)","v":0},"CATCH",52,0,null,"",0,null,null,null,null,null,null,null,null,null,null,null,null,null,null,null,"Arquitectura y urbanismo",731,null,null,null,null,null,null,null,null,null,null,null,null,52,1,50,"ING","LA TRAMOYA","COL0126777","C","http://scienti.colciencias.gov.co:8085/gruplac/jsp/visualiza/visualizagr.jsp?nro=00000000012813","BB268:BB271",{"$f":"ROW()","v":55},{"$f":"MINA(IF(AQ55=$BA$4:$BA$403,$BD$4:$BD$403))","v":268},{"$f":"MAXA(IF(AQ55=$BA$4:$BA$403,$BD$4:$BD$403))","v":271},"ING",null,null,"COL0107771","Fármaco economía de las enfermedades respiratorias en la infancia",{"$f":"COUNTIF(BA$4:BA55,BA55)","v":5},{"$f":"ROW()","v":55},1,null,"COL0128047",1]
[null,{"$f":"IF(E56=1,SUM($E$49:E56),0)","v":0},"Células Stem Adultas",59,0,null,"",0,null,null,null,null,null,null,null,null,null,null,null,null,null,null,null,"Construcción e ingeniería civil",732,null,null,null,null,null,null,null,null,null,null,null,null,53,1,51,"ING","GREST","COL0151789","C","http://scienti.colciencias.gov.co:8085/gruplac/jsp/visualiza/visualizagr.jsp?nro=00000000015386","BB284:BB290",{"$f":"ROW()","v":56},{"$f":"MINA(IF(AQ56=$BA$4:$BA$403,$BD$4:$BD$403))","v":284},{"$f":"MAXA(IF(AQ56=$BA$4:$BA$403,$BD$4:$BD$403))","v":290},"ING",null,null,"COL0065804","Biomecánica",{"$f":"COUNTIF(BA$4:BA56,BA56)","v":1},{"$f":"ROW()","v":56},1,null,"COL0036749",1]
[null,{"$f":"IF(E57=1,SUM($E$49:E57),0)","v":0},"Cultura y Desarrollo Humano",33,0,null,"",0,null,null,null,null,null,null,null,null,null,null,null,null,null,null,null,"Producción agrícola y ganadera",811,null,null,null,null,null,null,null,null,null,null,null,null,54,1,52,"MED","CATCH","COL0049659","C","http://scienti.colciencias.gov.co:8085/gruplac/jsp/visualiza/visualizagr.jsp?nro=00000000003253","BB4:BB5",{"$f":"ROW()","v":57},{"$f":"MINA(IF(AQ57=$BA$4:$BA$403,$BD$4:$BD$403))","v":4},{"$f":"MAXA(IF(AQ57=$BA$4:$BA$403,$BD$4:$BD$403))","v":5},"MED",null,null,"COL0065804","Desarrollos mecatrónicos",{"$f":"COUNTIF(BA$4:BA57,BA57)","v":2},{"$f":"ROW()","v":57},1,null,"COL0129689",1]
[null,{"$f":"IF(E58=1,SUM($E$49:E58),0)","v":0},"DAVINCI",41,0,null,"",0,null,null,null,null,null,null,null,null,null,null,null,null,null,null,null,"Horticultura",812,null,null,null,null,null,null,null,null,null,null,null,null,55,1,53,"MED","BONE","COL0047762","C","http://scienti.colciencias.gov.co:8085/gruplac/jsp/visualiza/visualizagr.jsp?nro=00000000003064","BB21:BB22",{"$f":"ROW()","v":58},{"$f":"MINA(IF(AQ58=$BA$4:$BA$403,$BD$4:$BD$403))","v":21},{"$f":"MAXA(IF(AQ58=$BA$4:$BA$403,$BD$4:$BD$403))","v":22},"MED",null,null,"COL0065804","Energías Renovables",{"$f":"COUNTIF(BA$4:BA58,BA58)","v":3},{"$f":"ROW()","v":58},1,null,"COL0138796",1]
[null,{"$f":"IF(E59=1,SUM($E$49:E59),0)","v":0},"Desarrollo e integración de estrategias alternativas para la protección de cultivos de importancia económica, con énfasis en control biológico.",4,0,null,"",0,null,null,null,null,null,null,null,null,null,null,null,null,null,null,null,"Silvicultura",821,null,null,null,null,null,null,null,null,null,null,null,null,56,1,54,"MED","Grupo de Psoriasis e Inmunodermatologia","COL0126015","C","http://scienti.colciencias.gov.co:8085/gruplac/jsp/visualiza/visualizagr.jsp?nro=00000000012737","BB23:BB24",{"$f":"ROW()","v":59},{"$f":"MINA(IF(AQ59=$BA$4:$BA$403,$BD$4:$BD$403))","v":23},{"$f":"MAXA(IF(AQ59=$BA$4:$BA$403,$BD$4:$BD$403))","v":24},"MED",null,null,"COL0065804","Gerencia Proyectos Ingeniería",{"$f":"COUNTIF(BA$4:BA59,BA59)","v":4},{"$f":"ROW()","v":59},1,null,"COL0142331",1]
[null,{"$f":"IF(E60=1,SUM($E$49:E60),0)","v":0},"DIVERSITAS",71,0,null,"",0,null,null,null,null,null,null,null,null,null,null,null,null,null,null,null,"Pesca",831,null,null,null,null,null,null,null,null,null,null,null,null,57,1,55,"MED","Grupo para el estudio de enfermedades respiratorias en nińos. Respira","COL0107771","C","http://scienti.colciencias.gov.co:8085/gruplac/jsp/visualiza/visualizagr.jsp?nro=00000000010842","BB51:BB55",{"$f":"ROW()","v":60},{"$f":"MINA(IF(AQ60=$BA$4:$BA$403,$BD$4:$BD$403))","v":51},{"$f":"MAXA(IF(AQ60=$BA$4:$BA$403,$BD$4:$BD$403))","v":55},"MED",null,null,"COL0065804","Materiales y Procesos de Manufactura",{"$f":"COUNTIF(BA$4:BA60,BA60)","v":5},{"$f":"ROW()","v":60},1,null,"COL0142449",1]
[null,{"$f":"IF(E61=1,SUM($E$49:E61),0)","v":0},"ECMU (Evaluacion en Competencias y Matemáticas Universitarias)",13,0,null,"",0,null,null,null,null,null,null,null,null,null,null,null,null,null,null,null,"Veterinaria",841,null,null,null,null,null,null,null,null,null,null,null,null,58,1,56,"MED","Salud y Comportamiento","COL0033239","NR","http://scienti.colciencias.gov.co:8085/gruplac/jsp/visualiza/visualizagr.jsp?nro=00000000001536","BB66:BB68",{"$f":"ROW()","v":61},{"$f":"MINA(IF(AQ61=$BA$4:$BA$403,$BD$4:$BD$403))","v":66},{"$f":"MAXA(IF(AQ61=$BA$4:$BA$403,$BD$4:$BD$403))","v":68},"MED",null,null,"COL0027367","Aprendizaje en Economía",{"$f":"COUNTIF(BA$4:BA61,BA61)","v":1},{"$f":"ROW()","v":61},1,null,"COL0016999",1]
[null,{"$f":"IF(E62=1,SUM($E$49:E62),0)","v":0},"EDUMECIS",66,0,null,"",0,null,null,null,null,null,null,null,null,null,null,null,null,null,null,null,"Odontología",911,null,null,null,null,null,null,null,null,null,null,null,null,59,1,57,"MED","GRUPO NEUROCIENCIAS HMC","COL0138698","B","http://scienti.colciencias.gov.co:8085/gruplac/jsp/visualiza/visualizagr.jsp?nro=00000000014072","BB89:BB101",{"$f":"ROW()","v":62},{"$f":"MINA(IF(AQ62=$BA$4:$BA$403,$BD$4:$BD$403))","v":89},{"$f":"MAXA(IF(AQ62=$BA$4:$BA$403,$BD$4:$BD$403))","v":101},"MED",null,null,"COL0027367","Demografía y Economía Laboral",{"$f":"COUNTIF(BA$4:BA62,BA62)","v":2},{"$f":"ROW()","v":62},1,null,"COL0005439",1]
[null,{"$f":"IF(E63=1,SUM($E$49:E63),0)","v":0},"Energia alternativa, Centro Multidisciplinario de Investigación",48,0,null,"",0,null,null,null,null,null,null,null,null,null,null,null,null,null,null,null,"Medicina",912,null,null,null,null,null,null,null,null,null,null,null,null,60,1,58,"MED","Grupo de Investigacion en Dermatologia HMC","COL0116439","C","http://scienti.colciencias.gov.co:8085/gruplac/jsp/visualiza/visualizagr.jsp?nro=00000000011753","BB102:BB106",{"$f":"ROW()","v":63},{"$f":"MINA(IF(AQ63=$BA$4:$BA$403,$BD$4:$BD$403))","v":102},{"$f":"MAXA(IF(AQ63=$BA$4:$BA$403,$BD$4:$BD$403))","v":106},"MED",null,null,"COL0027367","Polětica Monetaria y Desarrollo Financiero",{"$f":"COUNTIF(BA$4:BA63,BA63)","v":3},{"$f":"ROW()","v":63},1,null,"COL0002896",1]
[null,{"$f":"IF(E64=1,SUM($E$49:E64),0)","v":0},"Epidemiología molecular de enfermedades endocrinas",64,0,null,"",0,null,null,null,null,null,null,null,null,null,null,null,null,null,null,null,"Enfermería y partería",913,null,null,null,null,null,null,null,null,null,null,null,null,61,1,59,"MED","Células Stem Adultas","COL0050982","C","http://scienti.colciencias.gov.co:8085/gruplac/jsp/visualiza/visualizagr.jsp?nro=00000000005735","BB150:BB153",{"$f":"ROW()","v":64},{"$f":"MINA(IF(AQ64=$BA$4:$BA$403,$BD$4:$BD$403))","v":150},{"$f":"MAXA(IF(AQ64=$BA$4:$BA$403,$BD$4:$BD$403))","v":153},"MED",null,null,"COL0032278","Biología y Ecología de plagas y enemigos naturales de cultivos de importancia económica",{"$f":"COUNTIF(BA$4:BA64,BA64)","v":1},{"$f":"ROW()","v":64},1,null,"COL0013719",1]
[null,{"$f":"IF(E65=1,SUM($E$49:E65),0)","v":0},"Epidemiología y Salud Colectiva ",70,0,null,"",0,null,null,null,null,null,null,null,null,null,null,null,null,null,null,null,"Tecnología de diagnóstico y tratamiento médico",914,null,null,null,null,null,null,null,null,null,null,null,null,62,1,60,"MED","Grupo de Salud Oral y Cirugia Maxilofacial","COL0129689","C","http://scienti.colciencias.gov.co:8085/gruplac/jsp/visualiza/visualizagr.jsp?nro=00000000013172","BB154:BB156",{"$f":"ROW()","v":65},{"$f":"MINA(IF(AQ65=$BA$4:$BA$403,$BD$4:$BD$403))","v":154},{"$f":"MAXA(IF(AQ65=$BA$4:$BA$403,$BD$4:$BD$403))","v":156},"MED",null,null,"COL0032278","Generación de recomendaciones para el manejo integrado de plagas, mediante el diseńo de modelos de simulación de agroecosistemas",{"$f":"COUNTIF(BA$4:BA65,BA65)","v":2},{"$f":"ROW()","v":65},1,null,"COL0101099",1]
[null,{"$f":"IF(E66=1,SUM($E$49:E66),0)","v":0},"Estadística, Control y Optimización",7,0,null,"",0,null,null,null,null,null,null,null,null,null,null,null,null,null,null,null,"Terapia y rehabilitación",915,null,null,null,null,null,null,null,null,null,null,null,null,63,1,61,"MED","Kokhlias.","COL0125134","C","http://scienti.colciencias.gov.co:8085/gruplac/jsp/visualiza/visualizagr.jsp?nro=00000000012649","BB186:BB192",{"$f":"ROW()","v":66},{"$f":"MINA(IF(AQ66=$BA$4:$BA$403,$BD$4:$BD$403))","v":186},{"$f":"MAXA(IF(AQ66=$BA$4:$BA$403,$BD$4:$BD$403))","v":192},"MED",null,null,"COL0033239","Prevención de la enfermedad y promoción de la salud",{"$f":"COUNTIF(BA$4:BA66,BA66)","v":1},{"$f":"ROW()","v":66},1,null,"COL0044859",1]
[null,{"$f":"IF(E67=1,SUM($E$49:E67),0)","v":0},"Estructuras y sísmica",42,0,null,"",0,null,null,null,null,null,null,null,null,null,null,null,null,null,null,null,"Farmacia",916,null,null,null,null,null,null,null,null,null,null,null,null,64,1,62,"MED","Grupo de Rehabilitacion HOMIC-UMNG","COL0120281","NR","http://scienti.colciencias.gov.co:8085/gruplac/jsp/visualiza/visualizagr.jsp?nro=00000000012152","BB193:BB197",{"$f":"ROW()","v":67},{"$f":"MINA(IF(AQ67=$BA$4:$BA$403,$BD$4:$BD$403))","v":193},{"$f":"MAXA(IF(AQ67=$BA$4:$BA$403,$BD$4:$BD$403))","v":197},"MED",null,null,"COL0033239","Salud Mental y Calidad de Vida",{"$f":"COUNTIF(BA$4:BA67,BA67)","v":2},{"$f":"ROW()","v":67},1,null,"COL0149359",1]
[null,{"$f":"IF(E68=1,SUM($E$49:E68),0)","v":0},"Estudios Internacionales y Políticos",29,0,null,"",0,null,null,null,null,null,null,null,null,null,null,null,null,null,null,null,"Medicina y terapia tradicional y complementaria",917,null,null,null,null,null,null,null,null,null,null,null,null,65,{"$f":"COUNTIF($AN$4:$AN$73,AL68)","v":1},63,"MED","Grupo de Investigacion en Urologia HMC","COL0116538","C","http://scienti.colciencias.gov.co:8085/gruplac/jsp/visualiza/visualizagr.jsp?nro=00000000011763","BB200:BB205",{"$f":"ROW()","v":68},{"$f":"MINA(IF(AQ68=$BA$4:$BA$403,$BD$4:$BD$403))","v":200},{"$f":"MAXA(IF(AQ68=$BA$4:$BA$403,$BD$4:$BD$403))","v":205},"MED",null,null,"COL0033239","Salud Sexual y Reproductiva",{"$f":"COUNTIF(BA$4:BA68,BA68)","v":3},{"$f":"ROW()","v":68},{"$f":"COUNTIF($AQ$3:$AQ$83,BA68)","v":1},null,"COL0143731",{"$f":"COUNTIF($AQ$4:$AQ$73,BG68)","v":1}]
[null,{"$f":"IF(E69=1,SUM($E$49:E69),0)","v":0},"Fitopatologia molecular",6,0,null,"",0,null,null,null,null,null,null,null,null,null,null,null,null,null,null,null,"Asistencia a adultos mayores y discapacitados",921,null,null,null,null,null,null,null,null,null,null,null,null,66,1,64,"MED","Epidemiología molecular de enfermedades endocrinas","COL0045848","NR","http://scienti.colciencias.gov.co:8085/gruplac/jsp/visualiza/visualizagr.jsp?nro=00000000002874","BB215:BB217",{"$f":"ROW()","v":69},{"$f":"MINA(IF(AQ69=$BA$4:$BA$403,$BD$4:$BD$403))","v":215},{"$f":"MAXA(IF(AQ69=$BA$4:$BA$403,$BD$4:$BD$403))","v":217},"MED",null,null,"COL0018448","Ambiente Virtuales de Aprendizaje",{"$f":"COUNTIF(BA$4:BA69,BA69)","v":1},{"$f":"ROW()","v":69},1,null,"\tCOL0151789",0]
[null,{"$f":"IF(E70=1,SUM($E$49:E70),0)","v":0},"Fitoplasmas y Virus",1,0,null,"",0,null,null,null,null,null,null,null,null,null,null,null,null,null,null,null,"Asistencia a la infancia y servicios para jóvenes",922,null,null,null,null,null,null,null,null,null,null,null,null,67,1,65,"MED","Insight","COL0067371","C","http://scienti.colciencias.gov.co:8085/gruplac/jsp/visualiza/visualizagr.jsp?nro=00000000006698","BB233:BB241",{"$f":"ROW()","v":70},{"$f":"MINA(IF(AQ70=$BA$4:$BA$403,$BD$4:$BD$403))","v":233},{"$f":"MAXA(IF(AQ70=$BA$4:$BA$403,$BD$4:$BD$403))","v":241},"MED",null,null,"COL0018448","Formación pedagógica para el posconflicto en Colombia",{"$f":"COUNTIF(BA$4:BA70,BA70)","v":2},{"$f":"ROW()","v":70},1,null,"COL0152472",0]
[null,{"$f":"IF(E71=1,SUM($E$49:E71),0)","v":0},"GAFRED",68,0,null,"",0,null,null,null,null,null,null,null,null,null,null,null,null,null,null,null,"Trabajo social y orientación",923,null,null,null,null,null,null,null,null,null,null,null,null,68,1,66,"MED","EDUMECIS","COL0152463","R","http://scienti.colciencias.gov.co:8085/gruplac/jsp/visualiza/visualizagr.jsp?nro=00000000015421","BB255:BB257",{"$f":"ROW()","v":71},{"$f":"MINA(IF(AQ71=$BA$4:$BA$403,$BD$4:$BD$403))","v":255},{"$f":"MAXA(IF(AQ71=$BA$4:$BA$403,$BD$4:$BD$403))","v":257},"MED",null,null,"COL0018448","Formación pedagógica para el posconflicto en Colombia",{"$f":"COUNTIF(BA$4:BA71,BA71)","v":3},{"$f":"ROW()","v":71},1,null,"COL0152319",0]
[null,{"$f":"IF(E72=1,SUM($E$49:E72),0)","v":0},"GAV",47,0,null,"",0,null,null,null,null,null,null,null,null,null,null,null,null,null,null,null,"Servicios domésticos",1011,null,null,null,null,null,null,null,null,null,null,null,null,69,{"$f":"COUNTIF($AN$4:$AN$73,AL72)","v":0},67,"MED","BioGenEtica & BioDerecho","COL0096032","C","http://scienti.colciencias.gov.co:8085/gruplac/jsp/visualiza/visualizagr.jsp?nro=00000000009651","BB262:BB265",{"$f":"ROW()","v":72},{"$f":"MINA(IF(AQ72=$BA$4:$BA$403,$BD$4:$BD$403))","v":262},{"$f":"MAXA(IF(AQ72=$BA$4:$BA$403,$BD$4:$BD$403))","v":265},"MED",null,null,"COL0018448","Gestión del conocimiento y calidad de la educación superior",{"$f":"COUNTIF(BA$4:BA72,BA72)","v":4},{"$f":"ROW()","v":72},1,null,"COL0152463",1]
[null,{"$f":"IF(E73=1,SUM($E$49:E73),0)","v":0},"GECS (Grupo de Investigación en Contabilidad y Sociedad)",28,0,null,"",0,null,null,null,null,null,null,null,null,null,null,null,null,null,null,null,"Peluquería y tratamientos de belleza",1012,null,null,null,null,null,null,null,null,null,null,null,null,70,0,68,"MED","GAFRED","COL0149359","R","http://scienti.colciencias.gov.co:8085/gruplac/jsp/visualiza/visualizagr.jsp?nro=00000000015141","BB281:BB283",{"$f":"ROW()","v":73},{"$f":"MINA(IF(AQ73=$BA$4:$BA$403,$BD$4:$BD$403))","v":281},{"$f":"MAXA(IF(AQ73=$BA$4:$BA$403,$BD$4:$BD$403))","v":283},"MED",null,null,"COL0066768","Derecho de las relaciones internacionales",{"$f":"COUNTIF(BA$4:BA73,BA73)","v":1},{"$f":"ROW()","v":73},1,null,"COL0138698",1]
[null,{"$f":"IF(E74=1,SUM($E$49:E74),0)","v":0},"GEOTECNIA",36,0,null,"",0,null,null,null,null,null,null,null,null,null,null,null,null,null,null,null,"Hotelería, restaurantes y servicios de banquetes",1013,null,null,null,null,null,null,null,null,null,null,null,null,71,1,69,"MED","Grupo de inmunología Clínica Aplicada (GICA)","COL0152472","C","http://scienti.colciencias.gov.co:8085/gruplac/jsp/visualiza/visualizagr.jsp?nro=00000000015414","BB291:BB292",{"$f":"ROW()","v":74},{"$f":"MINA(IF(AQ74=$BA$4:$BA$403,$BD$4:$BD$403))","v":291},{"$f":"MAXA(IF(AQ74=$BA$4:$BA$403,$BD$4:$BD$403))","v":292},"MED",null,null,"COL0066768","Economía y negocios internacionales",{"$f":"COUNTIF(BA$4:BA74,BA74)","v":2},{"$f":"ROW()","v":74},1,null,"COL0120281",1]
[null,{"$f":"IF(E75=1,SUM($E$49:E75),0)","v":0},"GIDAM",40,0,null,"",0,null,null,null,null,null,null,null,null,null,null,null,null,null,null,null,"Deportes",1014,null,null,null,null,null,null,null,null,null,null,null,null,72,1,70,"MED","Epidemiología y Salud Colectiva ","COL0152319","C","http://scienti.colciencias.gov.co:8085/gruplac/jsp/visualiza/visualizagr.jsp?nro=00000000015438","BB293:BB297",{"$f":"ROW()","v":75},{"$f":"MINA(IF(AQ75=$BA$4:$BA$403,$BD$4:$BD$403))","v":293},{"$f":"MAXA(IF(AQ75=$BA$4:$BA$403,$BD$4:$BD$403))","v":297},"MED",null,null,"COL0066768","Estudios políticos",{"$f":"COUNTIF(BA$4:BA75,BA75)","v":3},{"$f":"ROW()","v":75},1,null,"COL0136423",1]
[null,{"$f":"IF(E76=1,SUM($E$49:E76),0)","v":0},"GI-iTEC - Grupo de Investigación e innovación Tecnológica en Electrónica y Comunicaciones",49,0,null,"",0,null,null,null,null,null,null,null,null,null,null,null,null,null,null,null,"Viajes, turismo y actividades recreativas",1015,null,null,null,null,null,null,null,null,null,null,null,null,73,0,73,"MED","Grupo de investigaciones sobre agentes radiológicos, biológicos y químicos","COL0191078","NR","http://scienti.colciencias.gov.co:8085/gruplac/jsp/visualiza/visualizagr.jsp?nro=00000000019309","BB308:BB310",{"$f":"ROW()","v":76},{"$f":"MINA(IF(AQ76=$BA$4:$BA$403,$BD$4:$BD$403))","v":308},{"$f":"MAXA(IF(AQ76=$BA$4:$BA$403,$BD$4:$BD$403))","v":310},"MED",null,null,"COL0066768","Estudios regionales",{"$f":"COUNTIF(BA$4:BA76,BA76)","v":4},{"$f":"ROW()","v":76},1]
[null,{"$f":"IF(E77=1,SUM($E$49:E77),0)","v":0},"GISSIC: Grupo de Investigacion en Seguridad y Sistemas de Comunicaciones",46,0,null,"",0,null,null,null,null,null,null,null,null,null,null,null,null,null,null,null,"Saneamiento de la comunidad",1021,null,null,null,null,null,null,null,null,null,null,null,null,null,null,null,null,null,null,null,null,null,null,null,null,null,null,null,"COL0066768","Historia internacional",{"$f":"COUNTIF(BA$4:BA77,BA77)","v":5},{"$f":"ROW()","v":77},1]
[null,{"$f":"IF(E78=1,SUM($E$49:E78),0)","v":0},"GREST",51,0,null,"",0,null,null,null,null,null,null,null,null,null,null,null,null,null,null,null,"Salud y protección laboral",1022,null,null,null,null,null,null,null,null,null,null,null,null,null,null,null,null,null,null,null,null,null,null,null,null,null,null,null,"COL0066768","Relaciones internacionales",{"$f":"COUNTIF(BA$4:BA78,BA78)","v":6},{"$f":"ROW()","v":78},1]
[null,{"$f":"IF(E79=1,SUM($E$49:E79),0)","v":0},"Grupo de Derecho Privado",16,0,null,"",0,null,null,null,null,null,null,null,null,null,null,null,null,null,null,null,"Educación militar y de defensa",1031,null,null,null,null,null,null,null,null,null,null,null,null,null,null,null,null,null,null,null,null,null,null,null,null,null,null,null,"COL0067504","Gestión Tecnológica",{"$f":"COUNTIF(BA$4:BA79,BA79)","v":1},{"$f":"ROW()","v":79},1]
[null,{"$f":"IF(E80=1,SUM($E$49:E80),0)","v":0},"Grupo de derecho público ",15,0,null,"",0,null,null,null,null,null,null,null,null,null,null,null,null,null,null,null,"Protección de las personas y de la propiedad",1032,null,null,null,null,null,null,null,null,null,null,null,null,null,null,null,null,null,null,null,null,null,null,null,null,null,null,null,"COL0067504","Gestión del conocimiento",{"$f":"COUNTIF(BA$4:BA80,BA80)","v":2},{"$f":"ROW()","v":80},1]
[null,{"$f":"IF(E81=1,SUM($E$49:E81),0)","v":0},"Grupo de Docencia e Investigación en Física",14,{"$f":"IF(IFERROR(SEARCH(GP,C81,1),0)>0,1,0)","v":0},null,"",0,null,null,null,null,null,null,null,null,null,null,null,null,null,null,null,"Servicios de transporte",1041,null,null,null,null,null,null,null,null,null,null,null,null,null,null,null,null,null,null,null,null,null,null,null,null,null,null,null,"COL0067504","Los Estilos de enseńanza y Aprendizaje",{"$f":"COUNTIF(BA$4:BA81,BA81)","v":3},{"$f":"ROW()","v":81},1]
[null,{"$f":"IF(E82=1,SUM($E$49:E82),0)","v":0},"Grupo de Ecotoxicología, Evolución, Medio ambiente y conservación (E = mc2)",8,0,null,"",0,null,null,null,null,null,null,null,null,null,null,null,null,null,null,null,null,null,null,null,null,null,null,null,null,null,null,null,null,null,null,null,null,null,null,null,null,null,null,null,null,null,null,null,null,"COL0067504","Mercadeo Cuántico",{"$f":"COUNTIF(BA$4:BA82,BA82)","v":4},{"$f":"ROW()","v":82},1]
[null,{"$f":"IF(E83=1,SUM($E$49:E83),0)","v":0},"Grupo de estudios contemporáneos en contabilidad, gestión y organizaciones - GECCGO",27,0,null,"",0,null,null,null,null,null,null,null,null,null,null,null,null,null,null,null,null,null,null,null,null,null,null,null,null,null,null,null,null,null,null,null,null,null,null,null,null,null,null,null,null,null,null,null,null,"COL0067504","Mineria Web",{"$f":"COUNTIF(BA$4:BA83,BA83)","v":5},{"$f":"ROW()","v":83},1]
[null,{"$f":"IF(E84=1,SUM($E$49:E84),0)","v":0},"Grupo de Estudios en Ciencias Económicas - CIE",25,0,null,"",0,null,null,null,null,null,null,null,null,null,null,null,null,null,null,null,null,null,null,null,null,null,null,null,null,null,null,null,null,null,null,null,null,null,null,null,null,null,null,null,null,null,null,null,null,"COL0067504","Salud Pública, Bioética e Ingeniería",{"$f":"COUNTIF(BA$4:BA84,BA84)","v":6},{"$f":"ROW()","v":84},1]
[null,{"$f":"IF(E85=1,SUM($E$49:E85),0)","v":0},"Grupo de Estudios Macroeconómicos",26,0,null,"",0,null,null,null,null,null,null,null,null,null,null,null,null,null,null,null,null,null,null,null,null,null,null,null,null,null,null,null,null,null,null,null,null,null,null,null,null,null,null,null,null,null,null,null,null,"COL0101099","Educación y Sociedad",{"$f":"COUNTIF(BA$4:BA85,BA85)","v":1},{"$f":"ROW()","v":85},1]
[null,{"$f":"IF(E86=1,SUM($E$49:E86),0)","v":0},"Grupo de inmunología Clínica Aplicada (GICA)",69,0,null,"",0,null,null,null,null,null,null,null,null,null,null,null,null,null,null,null,null,null,null,null,null,null,null,null,null,null,null,null,null,null,null,null,null,null,null,null,null,null,null,null,null,null,null,null,null,"COL0101099","Filosofía política y responsabilidad social",{"$f":"COUNTIF(BA$4:BA86,BA86)","v":2},{"$f":"ROW()","v":86},1]
[null,{"$f":"IF(E87=1,SUM($E$49:E87),0)","v":0},"Grupo de investigación en Biodiversidad y ecología de abejas silvestres",2,0,null,"",0,null,null,null,null,null,null,null,null,null,null,null,null,null,null,null,null,null,null,null,null,null,null,null,null,null,null,null,null,null,null,null,null,null,null,null,null,null,null,null,null,null,null,null,null,"COL0101099","Humanidades, cultura y universidad",{"$f":"COUNTIF(BA$4:BA87,BA87)","v":3},{"$f":"ROW()","v":87},1]
[null,{"$f":"IF(E88=1,SUM($E$49:E88),0)","v":0},"Grupo de Investigacion en Dermatologia HMC",58,0,null,"",0,null,null,null,null,null,null,null,null,null,null,null,null,null,null,null,null,null,null,null,null,null,null,null,null,null,null,null,null,null,null,null,null,null,null,null,null,null,null,null,null,null,null,null,null,"COL0101099","Liderazgo y gestión en educación.",{"$f":"COUNTIF(BA$4:BA88,BA88)","v":4},{"$f":"ROW()","v":88},1]
[null,{"$f":"IF(E89=1,SUM($E$49:E89),0)","v":0},"Grupo de Investigación en Hidrobiología Aplicada (HIDROBIA)",9,0,null,"",0,null,null,null,null,null,null,null,null,null,null,null,null,null,null,null,null,null,null,null,null,null,null,null,null,null,null,null,null,null,null,null,null,null,null,null,null,null,null,null,null,null,null,null,null,"COL0138698","Bioetica",{"$f":"COUNTIF(BA$4:BA89,BA89)","v":1},{"$f":"ROW()","v":89},1]
[null,{"$f":"IF(E90=1,SUM($E$49:E90),0)","v":0},"Grupo de Investigación en Multimedia -GIM-",35,0,null,"",0,null,null,null,null,null,null,null,null,null,null,null,null,null,null,null,null,null,null,null,null,null,null,null,null,null,null,null,null,null,null,null,null,null,null,null,null,null,null,null,null,null,null,null,null,"COL0138698","Cerebrovascular",{"$f":"COUNTIF(BA$4:BA90,BA90)","v":2},{"$f":"ROW()","v":90},1]
[null,{"$f":"IF(E91=1,SUM($E$49:E91),0)","v":0},"Grupo de investigación en química ambiental y tecnologías limpias - QUATELI",12,0,null,"",0,null,null,null,null,null,null,null,null,null,null,null,null,null,null,null,null,null,null,null,null,null,null,null,null,null,null,null,null,null,null,null,null,null,null,null,null,null,null,null,null,null,null,null,null,"COL0138698","Demencias",{"$f":"COUNTIF(BA$4:BA91,BA91)","v":3},{"$f":"ROW()","v":91},1]
[null,{"$f":"IF(E92=1,SUM($E$49:E92),0)","v":0},"Grupo de Investigacion en Urologia HMC",63,0,null,"",0,null,null,null,null,null,null,null,null,null,null,null,null,null,null,null,null,null,null,null,null,null,null,null,null,null,null,null,null,null,null,null,null,null,null,null,null,null,null,null,null,null,null,null,null,"COL0138698","Distonias",{"$f":"COUNTIF(BA$4:BA92,BA92)","v":4},{"$f":"ROW()","v":92},1]
[null,{"$f":"IF(E93=1,SUM($E$49:E93),0)","v":0},"Grupo de investigaciones sobre agentes radiológicos, biológicos y químicos",73,0,null,"",0,null,null,null,null,null,null,null,null,null,null,null,null,null,null,null,null,null,null,null,null,null,null,null,null,null,null,null,null,null,null,null,null,null,null,null,null,null,null,null,null,null,null,null,null,"COL0138698","Enfermedades huerfanas",{"$f":"COUNTIF(BA$4:BA93,BA93)","v":5},{"$f":"ROW()","v":93},1]
[null,{"$f":"IF(E94=1,SUM($E$49:E94),0)","v":0},"Grupo de Micología y Fitopatologia ",5,0,null,"",0,null,null,null,null,null,null,null,null,null,null,null,null,null,null,null,null,null,null,null,null,null,null,null,null,null,null,null,null,null,null,null,null,null,null,null,null,null,null,null,null,null,null,null,null,"COL0138698","Epilepsia",{"$f":"COUNTIF(BA$4:BA94,BA94)","v":6},{"$f":"ROW()","v":94},1]
[null,{"$f":"IF(E95=1,SUM($E$49:E95),0)","v":0},"Grupo de Psoriasis e Inmunodermatologia",54,0,null,"",0,null,null,null,null,null,null,null,null,null,null,null,null,null,null,null,null,null,null,null,null,null,null,null,null,null,null,null,null,null,null,null,null,null,null,null,null,null,null,null,null,null,null,null,null,"COL0138698","Esclerosis múltiple",{"$f":"COUNTIF(BA$4:BA95,BA95)","v":7},{"$f":"ROW()","v":95},1]
[null,{"$f":"IF(E96=1,SUM($E$49:E96),0)","v":0},"Grupo de Rehabilitacion HOMIC-UMNG",62,0,null,"",0,null,null,null,null,null,null,null,null,null,null,null,null,null,null,null,null,null,null,null,null,null,null,null,null,null,null,null,null,null,null,null,null,null,null,null,null,null,null,null,null,null,null,null,null,"COL0138698","Movimientos anormales",{"$f":"COUNTIF(BA$4:BA96,BA96)","v":8},{"$f":"ROW()","v":96},1]
[null,{"$f":"IF(E97=1,SUM($E$49:E97),0)","v":0},"Grupo de Salud Oral y Cirugia Maxilofacial",60,0,null,"",0,null,null,null,null,null,null,null,null,null,null,null,null,null,null,null,null,null,null,null,null,null,null,null,null,null,null,null,null,null,null,null,null,null,null,null,null,null,null,null,null,null,null,null,null,"COL0138698","Parálisis cerebral",{"$f":"COUNTIF(BA$4:BA97,BA97)","v":9},{"$f":"ROW()","v":97},1]
[null,{"$f":"IF(E98=1,SUM($E$49:E98),0)","v":0},"Grupo Integrado de Investigaciones en Química y Biología (InQuiBio)",11,0,null,"",0,null,null,null,null,null,null,null,null,null,null,null,null,null,null,null,null,null,null,null,null,null,null,null,null,null,null,null,null,null,null,null,null,null,null,null,null,null,null,null,null,null,null,null,null,"COL0138698","Retardo mental",{"$f":"COUNTIF(BA$4:BA98,BA98)","v":10},{"$f":"ROW()","v":98},1]
[null,{"$f":"IF(E99=1,SUM($E$49:E99),0)","v":0},"GRUPO NEUROCIENCIAS HMC",57,0,null,"",0,null,null,null,null,null,null,null,null,null,null,null,null,null,null,null,null,null,null,null,null,null,null,null,null,null,null,null,null,null,null,null,null,null,null,null,null,null,null,null,null,null,null,null,null,"COL0138698","Salud mental",{"$f":"COUNTIF(BA$4:BA99,BA99)","v":11},{"$f":"ROW()","v":99},1]
[null,{"$f":"IF(E100=1,SUM($E$49:E100),0)","v":0},"Grupo para el estudio de enfermedades respiratorias en nińos. Respira",55,0,null,"",0,null,null,null,null,null,null,null,null,null,null,null,null,null,null,null,null,null,null,null,null,null,null,null,null,null,null,null,null,null,null,null,null,null,null,null,null,null,null,null,null,null,null,null,null,"COL0138698","Sueño",{"$f":"COUNTIF(BA$4:BA100,BA100)","v":12},{"$f":"ROW()","v":100},1]
[null,{"$f":"IF(E101=1,SUM($E$49:E101),0)","v":0},"HUMANITAS",32,0,null,"",0,null,null,null,null,null,null,null,null,null,null,null,null,null,null,null,null,null,null,null,null,null,null,null,null,null,null,null,null,null,null,null,null,null,null,null,null,null,null,null,null,null,null,null,null,"COL0138698","Trastornos del neurodesarrollo",{"$f":"COUNTIF(BA$4:BA101,BA101)","v":13},{"$f":"ROW()","v":101},1]
[null,{"$f":"IF(E102=1,SUM($E$49:E102),0)","v":0},"INAMPE",24,0,null,"",0,null,null,null,null,null,null,null,null,null,null,null,null,null,null,null,null,null,null,null,null,null,null,null,null,null,null,null,null,null,null,null,null,null,null,null,null,null,null,null,null,null,null,null,null,"COL0116439","Cirugía Dermatologica",{"$f":"COUNTIF(BA$4:BA102,BA102)","v":1},{"$f":"ROW()","v":102},1]
[null,{"$f":"IF(E103=1,SUM($E$49:E103),0)","v":0},"INCONDIS",19,0,null,"",0,null,null,null,null,null,null,null,null,null,null,null,null,null,null,null,null,null,null,null,null,null,null,null,null,null,null,null,null,null,null,null,null,null,null,null,null,null,null,null,null,null,null,null,null,"COL0116439","Dermatologia Pediatrica",{"$f":"COUNTIF(BA$4:BA103,BA103)","v":2},{"$f":"ROW()","v":103},1]
[null,{"$f":"IF(E104=1,SUM($E$49:E104),0)","v":0},"INGENIERÍA, GEOMÁTICA Y EDUCACIÓN (IGE)",43,0,null,"",0,null,null,null,null,null,null,null,null,null,null,null,null,null,null,null,null,null,null,null,null,null,null,null,null,null,null,null,null,null,null,null,null,null,null,null,null,null,null,null,null,null,null,null,null,"COL0116439","Fotobiologia y Fototerapia",{"$f":"COUNTIF(BA$4:BA104,BA104)","v":3},{"$f":"ROW()","v":104},1]
[null,{"$f":"IF(E105=1,SUM($E$49:E105),0)","v":0},"Insight",65,0,null,"",0,null,null,null,null,null,null,null,null,null,null,null,null,null,null,null,null,null,null,null,null,null,null,null,null,null,null,null,null,null,null,null,null,null,null,null,null,null,null,null,null,null,null,null,null,"COL0116439","Leishmaniasis",{"$f":"COUNTIF(BA$4:BA105,BA105)","v":4},{"$f":"ROW()","v":105},1]
[null,{"$f":"IF(E106=1,SUM($E$49:E106),0)","v":0},"Kokhlias.",61,0,null,"",0,null,null,null,null,null,null,null,null,null,null,null,null,null,null,null,null,null,null,null,null,null,null,null,null,null,null,null,null,null,null,null,null,null,null,null,null,null,null,null,null,null,null,null,null,"COL0116439","Psoriasis",{"$f":"COUNTIF(BA$4:BA106,BA106)","v":5},{"$f":"ROW()","v":106},1]
[null,{"$f":"IF(E107=1,SUM($E$49:E107),0)","v":0},"LA TRAMOYA",50,0,null,"",0,null,null,null,null,null,null,null,null,null,null,null,null,null,null,null,null,null,null,null,null,null,null,null,null,null,null,null,null,null,null,null,null,null,null,null,null,null,null,null,null,null,null,null,null,"COL0013719","Biología y Epidemiología de hongos patógenos humanos.",{"$f":"COUNTIF(BA$4:BA107,BA107)","v":1},{"$f":"ROW()","v":107},1]
[null,{"$f":"IF(E108=1,SUM($E$49:E108),0)","v":0},"LIDERAZGO",31,0,null,"",0,null,null,null,null,null,null,null,null,null,null,null,null,null,null,null,null,null,null,null,null,null,null,null,null,null,null,null,null,null,null,null,null,null,null,null,null,null,null,null,null,null,null,null,null,"COL0013719","Diversidad, Ecología y Bioprospección",{"$f":"COUNTIF(BA$4:BA108,BA108)","v":2},{"$f":"ROW()","v":108},1]
[null,{"$f":"IF(E109=1,SUM($E$49:E109),0)","v":0},"MATRIX",3,0,null,"",0,null,null,null,null,null,null,null,null,null,null,null,null,null,null,null,null,null,null,null,null,null,null,null,null,null,null,null,null,null,null,null,null,null,null,null,null,null,null,null,null,null,null,null,null,"COL0013719","Fitopatología",{"$f":"COUNTIF(BA$4:BA109,BA109)","v":3},{"$f":"ROW()","v":109},1]
[null,{"$f":"IF(E110=1,SUM($E$49:E110),0)","v":0},"Medios, Mediaciones y Procesos en Educación a Distancia",21,0,null,"",0,null,null,null,null,null,null,null,null,null,null,null,null,null,null,null,null,null,null,null,null,null,null,null,null,null,null,null,null,null,null,null,null,null,null,null,null,null,null,null,null,null,null,null,null,"COL0013719","Genómica y bioinformática",{"$f":"COUNTIF(BA$4:BA110,BA110)","v":4},{"$f":"ROW()","v":110},1]
[null,{"$f":"IF(E111=1,SUM($E$49:E111),0)","v":0},"Modelos de simulación ICDIST",23,0,null,"",0,null,null,null,null,null,null,null,null,null,null,null,null,null,null,null,null,null,null,null,null,null,null,null,null,null,null,null,null,null,null,null,null,null,null,null,null,null,null,null,null,null,null,null,null,"COL0013719","Susceptibilidad a Antifungícos",{"$f":"COUNTIF(BA$4:BA111,BA111)","v":5},{"$f":"ROW()","v":111},1]
[null,{"$f":"IF(E112=1,SUM($E$49:E112),0)","v":0},"Nanofab",72,0,null,"",0,null,null,null,null,null,null,null,null,null,null,null,null,null,null,null,null,null,null,null,null,null,null,null,null,null,null,null,null,null,null,null,null,null,null,null,null,null,null,null,null,null,null,null,null,"COL0049999","Calidad y Gestión en la Educación",{"$f":"COUNTIF(BA$4:BA112,BA112)","v":1},{"$f":"ROW()","v":112},1]
[null,{"$f":"IF(E113=1,SUM($E$49:E113),0)","v":0},"PIREO \"Procesos de Integración, Regionalización y Estructuras Organizacionales\"",22,{"$f":"IF(IFERROR(SEARCH(GP,C113,1),0)>0,1,0)","v":0},null,"",0,null,null,null,null,null,null,null,null,null,null,null,null,null,null,null,null,null,null,null,null,null,null,null,null,null,null,null,null,null,null,null,null,null,null,null,null,null,null,null,null,null,null,null,null,"COL0049999","Gestión y Proyectos",{"$f":"COUNTIF(BA$4:BA113,BA113)","v":2},{"$f":"ROW()","v":113},1]
[null,{"$f":"IF(E114=1,SUM($E$49:E114),0)","v":0},"PRODUCCION, INNOVACION Y TECNOLOGIA",39,0,null,{"$f":"IFERROR(VLOOKUP(ROW()-48,$B$48:$E$121,2,0),\"\")","v":""},{"$f":"IFERROR(VLOOKUP(ROW()-48,$B$48:$E$121,3,0),0)","v":0},null,null,null,null,null,null,null,null,null,null,null,null,null,null,null,null,null,null,null,null,null,null,null,null,null,null,null,null,null,null,null,null,null,null,null,null,null,null,null,null,null,null,null,null,"COL0049999","Innovación",{"$f":"COUNTIF(BA$4:BA114,BA114)","v":3},{"$f":"ROW()","v":114},1]
[null,{"$f":"IF(E115=1,SUM($E$49:E115),0)","v":0},"PROPPIO: Procesos organizacionales, programaticos y políticos para la promoción del desarrollo",18,0,null,"",0,null,null,null,null,null,null,null,null,null,null,null,null,null,null,null,null,null,null,null,null,null,null,null,null,null,null,null,null,null,null,null,null,null,null,null,null,null,null,null,null,null,null,null,null,"COL0049999","Productividad",{"$f":"COUNTIF(BA$4:BA115,BA115)","v":4},{"$f":"ROW()","v":115},1]
[null,{"$f":"IF(E116=1,SUM($E$49:E116),0)","v":0},"Red de estudios sociojurídicos comparados y políticas públicas",17,0,null,"",0,null,null,null,null,null,null,null,null,null,null,null,null,null,null,null,null,null,null,null,null,null,null,null,null,null,null,null,null,null,null,null,null,null,null,null,null,null,null,null,null,null,null,null,null,"COL0049999","Sostenibilidad y Medio Ambiente",{"$f":"COUNTIF(BA$4:BA116,BA116)","v":5},{"$f":"ROW()","v":116},1]
[null,{"$f":"IF(E117=1,SUM($E$49:E117),0)","v":0},"Salud y Comportamiento",56,0,null,"",0,null,null,null,null,null,null,null,null,null,null,null,null,null,null,null,null,null,null,null,null,null,null,null,null,null,null,null,null,null,null,null,null,null,null,null,null,null,null,null,null,null,null,null,null,"COL0049999","Tecnología",{"$f":"COUNTIF(BA$4:BA117,BA117)","v":6},{"$f":"ROW()","v":117},1]
[null,{"$f":"IF(E118=1,SUM($E$49:E118),0)","v":0},"Sociedad, Estrategia y Seguridad",30,0,null,"",0,null,null,null,null,null,null,null,null,null,null,null,null,null,null,null,null,null,null,null,null,null,null,null,null,null,null,null,null,null,null,null,null,null,null,null,null,null,null,null,null,null,null,null,null,"COL0086179","Búsqueda de marcadores genéticos y estudio de genes ligados a la resistencia a Fusarium en clavel.",{"$f":"COUNTIF(BA$4:BA118,BA118)","v":1},{"$f":"ROW()","v":118},1]
[null,{"$f":"IF(E119=1,SUM($E$49:E119),0)","v":0},"TIGUM: Grupo de Investigacion en Telemedicina Universidad Militar",37,0,null,"",0,null,null,null,null,null,null,null,null,null,null,null,null,null,null,null,null,null,null,null,null,null,null,null,null,null,null,null,null,null,null,null,null,null,null,null,null,null,null,null,null,null,null,null,null,"COL0086179","Estudio de la biología del mildeo velloso de la Rosa comercial.",{"$f":"COUNTIF(BA$4:BA119,BA119)","v":2},{"$f":"ROW()","v":119},1]
[null,{"$f":"IF(E120=1,SUM($E$49:E120),0)","v":1},"Agua y Energía - AyE",45,{"$f":"IF(IFERROR(SEARCH(GP,C120,1),0)>0,1,0)","v":1},null,"",0,null,null,null,null,null,null,null,null,null,null,null,null,null,null,null,null,null,null,null,null,null,null,null,null,null,null,null,null,null,null,null,null,null,null,null,null,null,null,null,null,null,null,null,null,"COL0086179","Producción de nuevas variedades de clavel resistentes a parasitos vasculares.",{"$f":"COUNTIF(BA$4:BA120,BA120)","v":3},{"$f":"ROW()","v":120},1]
[null,{"$f":"IF(E121=1,SUM($E$49:E121),0)","v":0},"VOLTA - GMCDP",38,0,null,"",0,null,null,null,null,null,null,null,null,null,null,null,null,null,null,null,null,null,null,null,null,null,null,null,null,null,null,null,null,null,null,null,null,null,null,null,null,null,null,null,null,null,null,null,null,"COL0116636","Desarrollo de software y hardware embebido",{"$f":"COUNTIF(BA$4:BA121,BA121)","v":1},{"$f":"ROW()","v":121},1]
[null,null,null,null,null,null,null,null,null,null,null,null,null,null,null,null,null,null,null,null,null,null,null,null,null,null,null,null,null,null,null,null,null,null,null,null,null,null,null,null,null,null,null,null,null,null,null,null,null,null,null,null,"COL0116636","Procesamiento digital de seńales e imágenes",{"$f":"COUNTIF(BA$4:BA122,BA122)","v":2},{"$f":"ROW()","v":122},1]
[null,null,null,null,null,null,null,null,null,null,null,null,null,null,null,null,null,null,null,null,null,null,null,null,null,null,null,null,null,null,null,null,null,null,null,null,null,null,null,null,null,null,null,null,null,null,null,null,null,null,null,null,"COL0116636","Producción sostenible",{"$f":"COUNTIF(BA$4:BA123,BA123)","v":3},{"$f":"ROW()","v":123},1]
[null,null,null,null,null,null,null,null,null,null,null,null,null,null,null,null,null,null,null,null,null,null,null,null,null,null,null,null,null,null,null,null,null,null,null,null,null,null,null,null,null,null,null,null,null,null,null,null,null,null,null,null,"COL0116636","Robótica",{"$f":"COUNTIF(BA$4:BA124,BA124)","v":4},{"$f":"ROW()","v":124},1]
[null,null,null,null,null,null,null,null,null,null,null,null,null,null,null,null,null,null,null,null,null,null,null,null,null,null,null,null,null,null,null,null,null,null,null,null,null,null,null,null,null,null,null,null,null,null,null,null,null,null,null,null,"COL0136423","Control óptimo estocástico",{"$f":"COUNTIF(BA$4:BA125,BA125)","v":1},{"$f":"ROW()","v":125},1]
[null,null,null,null,null,null,null,null,null,null,null,null,null,null,null,null,null,null,null,null,null,null,null,null,null,null,null,null,null,null,null,null,null,null,null,null,null,null,null,null,null,null,null,null,null,null,null,null,null,null,null,null,"COL0136423","Estadística Multivariada paramétrica y no paramétrica.",{"$f":"COUNTIF(BA$4:BA126,BA126)","v":2},{"$f":"ROW()","v":126},1]
[null,null,null,null,null,null,null,null,null,null,null,null,null,null,null,null,null,null,null,null,null,null,null,null,null,null,null,null,null,null,null,null,null,null,null,null,null,null,null,null,null,null,null,null,null,null,null,null,null,null,null,null,"COL0136423","Métodos estadísticos basados en grafos",{"$f":"COUNTIF(BA$4:BA127,BA127)","v":3},{"$f":"ROW()","v":127},1]
[null,null,null,null,null,null,null,null,null,null,null,null,null,null,null,null,null,null,null,null,null,null,null,null,null,null,null,null,null,null,null,null,null,null,null,null,null,null,null,null,null,null,null,null,null,null,null,null,null,null,null,null,"COL0136423","Optimizacion Semidefinida",{"$f":"COUNTIF(BA$4:BA128,BA128)","v":4},{"$f":"ROW()","v":128},1]
[null,null,null,null,null,null,null,null,null,null,null,null,null,null,null,null,null,null,null,null,null,null,null,null,null,null,null,null,null,null,null,null,null,null,null,null,null,null,null,null,null,null,null,null,null,null,null,null,null,null,null,null,"COL0136423","Optimización Numérica. Máquinas de Vectores de Soportes.",{"$f":"COUNTIF(BA$4:BA129,BA129)","v":5},{"$f":"ROW()","v":129},1]
[null,null,null,null,null,null,null,null,null,null,null,null,null,null,null,null,null,null,null,null,null,null,null,null,null,null,null,null,null,null,null,null,null,null,null,null,null,null,null,null,null,null,null,null,null,null,null,null,null,null,null,null,"COL0036025","Biomecatronica",{"$f":"COUNTIF(BA$4:BA130,BA130)","v":1},{"$f":"ROW()","v":130},1]
[null,null,null,null,null,null,null,null,null,null,null,null,null,null,null,null,null,null,null,null,null,null,null,null,null,null,null,null,null,null,null,null,null,null,null,null,null,null,null,null,null,null,null,null,null,null,null,null,null,null,null,null,"COL0036025","Optimización y Control de sistemas dinámicos",{"$f":"COUNTIF(BA$4:BA131,BA131)","v":2},{"$f":"ROW()","v":131},1]
[null,null,null,null,null,null,null,null,null,null,null,null,null,null,null,null,null,null,null,null,null,null,null,null,null,null,null,null,null,null,null,null,null,null,null,null,null,null,null,null,null,null,null,null,null,null,null,null,null,null,null,null,"COL0036025","Robótica híbrida",{"$f":"COUNTIF(BA$4:BA132,BA132)","v":3},{"$f":"ROW()","v":132},{"$f":"COUNTIF($AQ$3:$AQ$83,BA132)","v":1}]
[null,null,null,null,null,null,null,null,null,null,null,null,null,null,null,null,null,null,null,null,null,null,null,null,null,null,null,null,null,null,null,null,null,null,null,null,null,null,null,null,null,null,null,null,null,null,null,null,null,null,null,null,"COL0036025","Simulacion y Realidad Virtual",{"$f":"COUNTIF(BA$4:BA133,BA133)","v":4},{"$f":"ROW()","v":133},1]
[null,null,null,null,null,null,null,null,null,null,null,null,null,null,null,null,null,null,null,null,null,null,null,null,null,null,null,null,null,null,null,null,null,null,null,null,null,null,null,null,null,null,null,null,null,null,null,null,null,null,null,null,"COL0038084","Acuaponía, recirculación e hidroponí",{"$f":"COUNTIF(BA$4:BA134,BA134)","v":1},{"$f":"ROW()","v":134},1]
[null,null,null,null,null,null,null,null,null,null,null,null,null,null,null,null,null,null,null,null,null,null,null,null,null,null,null,null,null,null,null,null,null,null,null,null,null,null,null,null,null,null,null,null,null,null,null,null,null,null,null,null,"COL0038084","Biología evolutiva de animales",{"$f":"COUNTIF(BA$4:BA135,BA135)","v":2},{"$f":"ROW()","v":135},1]
[null,null,null,null,null,null,null,null,null,null,null,null,null,null,null,null,null,null,null,null,null,null,null,null,null,null,null,null,null,null,null,null,null,null,null,null,null,null,null,null,null,null,null,null,null,null,null,null,null,null,null,null,"COL0038084","Ecotoxicología",{"$f":"COUNTIF(BA$4:BA136,BA136)","v":3},{"$f":"ROW()","v":136},1]
[null,null,null,null,null,null,null,null,null,null,null,null,null,null,null,null,null,null,null,null,null,null,null,null,null,null,null,null,null,null,null,null,null,null,null,null,null,null,null,null,null,null,null,null,null,null,null,null,null,null,null,null,"COL0038084","Energías alternas y recursos ambientales",{"$f":"COUNTIF(BA$4:BA137,BA137)","v":4},{"$f":"ROW()","v":137},1]
[null,null,null,null,null,null,null,null,null,null,null,null,null,null,null,null,null,null,null,null,null,null,null,null,null,null,null,null,null,null,null,null,null,null,null,null,null,null,null,null,null,null,null,null,null,null,null,null,null,null,null,null,"COL0038084","modelamiento de especies bajo escenario de calentamiento global",{"$f":"COUNTIF(BA$4:BA138,BA138)","v":5},{"$f":"ROW()","v":138},1]
[null,null,null,null,null,null,null,null,null,null,null,null,null,null,null,null,null,null,null,null,null,null,null,null,null,null,null,null,null,null,null,null,null,null,null,null,null,null,null,null,null,null,null,null,null,null,null,null,null,null,null,null,"COL0016999","Elementos de concreto y de mampostería",{"$f":"COUNTIF(BA$4:BA139,BA139)","v":1},{"$f":"ROW()","v":139},1]
[null,null,null,null,null,null,null,null,null,null,null,null,null,null,null,null,null,null,null,null,null,null,null,null,null,null,null,null,null,null,null,null,null,null,null,null,null,null,null,null,null,null,null,null,null,null,null,null,null,null,null,null,"COL0016999","Instrumentación estructural y sensórica",{"$f":"COUNTIF(BA$4:BA140,BA140)","v":2},{"$f":"ROW()","v":140},1]
[null,null,null,null,null,null,null,null,null,null,null,null,null,null,null,null,null,null,null,null,null,null,null,null,null,null,null,null,null,null,null,null,null,null,null,null,null,null,null,null,null,null,null,null,null,null,null,null,null,null,null,null,"COL0016999","Materiales alternativos para construcción",{"$f":"COUNTIF(BA$4:BA141,BA141)","v":3},{"$f":"ROW()","v":141},1]
[null,null,null,null,null,null,null,null,null,null,null,null,null,null,null,null,null,null,null,null,null,null,null,null,null,null,null,null,null,null,null,null,null,null,null,null,null,null,null,null,null,null,null,null,null,null,null,null,null,null,null,null,"COL0016999","Modelación Matemática",{"$f":"COUNTIF(BA$4:BA142,BA142)","v":4},{"$f":"ROW()","v":142},1]
[null,null,null,null,null,null,null,null,null,null,null,null,null,null,null,null,null,null,null,null,null,null,null,null,null,null,null,null,null,null,null,null,null,null,null,null,null,null,null,null,null,null,null,null,null,null,null,null,null,null,null,null,"COL0016999","Vulnerabilidad Sísmica",{"$f":"COUNTIF(BA$4:BA143,BA143)","v":5},{"$f":"ROW()","v":143},1]
[null,null,null,null,null,null,null,null,null,null,null,null,null,null,null,null,null,null,null,null,null,null,null,null,null,null,null,null,null,null,null,null,null,null,null,null,null,null,null,null,null,null,null,null,null,null,null,null,null,null,null,null,"COL0047566","Educación en ingeniería",{"$f":"COUNTIF(BA$4:BA144,BA144)","v":1},{"$f":"ROW()","v":144},1]
[null,null,null,null,null,null,null,null,null,null,null,null,null,null,null,null,null,null,null,null,null,null,null,null,null,null,null,null,null,null,null,null,null,null,null,null,null,null,null,null,null,null,null,null,null,null,null,null,null,null,null,null,"COL0047566","Evaluación económica y administrativa en ingeniería",{"$f":"COUNTIF(BA$4:BA145,BA145)","v":2},{"$f":"ROW()","v":145},1]
[null,null,null,null,null,null,null,null,null,null,null,null,null,null,null,null,null,null,null,null,null,null,null,null,null,null,null,null,null,null,null,null,null,null,null,null,null,null,null,null,null,null,null,null,null,null,null,null,null,null,null,null,"COL0047566","Geomatica",{"$f":"COUNTIF(BA$4:BA146,BA146)","v":3},{"$f":"ROW()","v":146},1]
[null,null,null,null,null,null,null,null,null,null,null,null,null,null,null,null,null,null,null,null,null,null,null,null,null,null,null,null,null,null,null,null,null,null,null,null,null,null,null,null,null,null,null,null,null,null,null,null,null,null,null,null,"COL0047566","Gerencia de proyectos",{"$f":"COUNTIF(BA$4:BA147,BA147)","v":4},{"$f":"ROW()","v":147},1]
[null,null,null,null,null,null,null,null,null,null,null,null,null,null,null,null,null,null,null,null,null,null,null,null,null,null,null,null,null,null,null,null,null,null,null,null,null,null,null,null,null,null,null,null,null,null,null,null,null,null,null,null,"COL0047566","Procesos estocásticos",{"$f":"COUNTIF(BA$4:BA148,BA148)","v":5},{"$f":"ROW()","v":148},1]
[null,null,null,null,null,null,null,null,null,null,null,null,null,null,null,null,null,null,null,null,null,null,null,null,null,null,null,null,null,null,null,null,null,null,null,null,null,null,null,null,null,null,null,null,null,null,null,null,null,null,null,null,"COL0047566","Productividad e impacto ambiental en proyectos de ingeniería civil (construcción sostenible)",{"$f":"COUNTIF(BA$4:BA149,BA149)","v":6},{"$f":"ROW()","v":149},1]
[null,null,null,null,null,null,null,null,null,null,null,null,null,null,null,null,null,null,null,null,null,null,null,null,null,null,null,null,null,null,null,null,null,null,null,null,null,null,null,null,null,null,null,null,null,null,null,null,null,null,null,null,"COL0050982","Expansión de Células Stem",{"$f":"COUNTIF(BA$4:BA150,BA150)","v":1},{"$f":"ROW()","v":150},1]
[null,null,null,null,null,null,null,null,null,null,null,null,null,null,null,null,null,null,null,null,null,null,null,null,null,null,null,null,null,null,null,null,null,null,null,null,null,null,null,null,null,null,null,null,null,null,null,null,null,null,null,null,"COL0050982","Inmunoregulación",{"$f":"COUNTIF(BA$4:BA151,BA151)","v":2},{"$f":"ROW()","v":151},1]
[null,null,null,null,null,null,null,null,null,null,null,null,null,null,null,null,null,null,null,null,null,null,null,null,null,null,null,null,null,null,null,null,null,null,null,null,null,null,null,null,null,null,null,null,null,null,null,null,null,null,null,null,"COL0050982","Investigación en Cáncer",{"$f":"COUNTIF(BA$4:BA152,BA152)","v":3},{"$f":"ROW()","v":152},1]
[null,null,null,null,null,null,null,null,null,null,null,null,null,null,null,null,null,null,null,null,null,null,null,null,null,null,null,null,null,null,null,null,null,null,null,null,null,null,null,null,null,null,null,null,null,null,null,null,null,null,null,null,"COL0050982","Mesénquima",{"$f":"COUNTIF(BA$4:BA153,BA153)","v":4},{"$f":"ROW()","v":153},1]
[null,null,null,null,null,null,null,null,null,null,null,null,null,null,null,null,null,null,null,null,null,null,null,null,null,null,null,null,null,null,null,null,null,null,null,null,null,null,null,null,null,null,null,null,null,null,null,null,null,null,null,null,"COL0129689","Cirugía Ortognática y Distracción Osteogénica",{"$f":"COUNTIF(BA$4:BA154,BA154)","v":1},{"$f":"ROW()","v":154},1]
[null,null,null,null,null,null,null,null,null,null,null,null,null,null,null,null,null,null,null,null,null,null,null,null,null,null,null,null,null,null,null,null,null,null,null,null,null,null,null,null,null,null,null,null,null,null,null,null,null,null,null,null,"COL0129689","Implantología y Cirugía Reconstructiva",{"$f":"COUNTIF(BA$4:BA155,BA155)","v":2},{"$f":"ROW()","v":155},1]
[null,null,null,null,null,null,null,null,null,null,null,null,null,null,null,null,null,null,null,null,null,null,null,null,null,null,null,null,null,null,null,null,null,null,null,null,null,null,null,null,null,null,null,null,null,null,null,null,null,null,null,null,"COL0129689","Infecciones, Patología y Cirugía Dentoalveolar",{"$f":"COUNTIF(BA$4:BA156,BA156)","v":3},{"$f":"ROW()","v":156},1]
[null,null,null,null,null,null,null,null,null,null,null,null,null,null,null,null,null,null,null,null,null,null,null,null,null,null,null,null,null,null,null,null,null,null,null,null,null,null,null,null,null,null,null,null,null,null,null,null,null,null,null,null,"COL0036749","Accesibilidad",{"$f":"COUNTIF(BA$4:BA157,BA157)","v":1},{"$f":"ROW()","v":157},1]
[null,null,null,null,null,null,null,null,null,null,null,null,null,null,null,null,null,null,null,null,null,null,null,null,null,null,null,null,null,null,null,null,null,null,null,null,null,null,null,null,null,null,null,null,null,null,null,null,null,null,null,null,"COL0036749","Multimedia Analítica",{"$f":"COUNTIF(BA$4:BA158,BA158)","v":2},{"$f":"ROW()","v":158},1]
[null,null,null,null,null,null,null,null,null,null,null,null,null,null,null,null,null,null,null,null,null,null,null,null,null,null,null,null,null,null,null,null,null,null,null,null,null,null,null,null,null,null,null,null,null,null,null,null,null,null,null,null,"COL0002896","Bioética Educación y Cultura",{"$f":"COUNTIF(BA$4:BA159,BA159)","v":1},{"$f":"ROW()","v":159},1]
[null,null,null,null,null,null,null,null,null,null,null,null,null,null,null,null,null,null,null,null,null,null,null,null,null,null,null,null,null,null,null,null,null,null,null,null,null,null,null,null,null,null,null,null,null,null,null,null,null,null,null,null,"COL0002896","Educación y Sociedad",{"$f":"COUNTIF(BA$4:BA160,BA160)","v":2},{"$f":"ROW()","v":160},1]
[null,null,null,null,null,null,null,null,null,null,null,null,null,null,null,null,null,null,null,null,null,null,null,null,null,null,null,null,null,null,null,null,null,null,null,null,null,null,null,null,null,null,null,null,null,null,null,null,null,null,null,null,"COL0002896","Educación y cultura",{"$f":"COUNTIF(BA$4:BA161,BA161)","v":3},{"$f":"ROW()","v":161},1]
[null,null,null,null,null,null,null,null,null,null,null,null,null,null,null,null,null,null,null,null,null,null,null,null,null,null,null,null,null,null,null,null,null,null,null,null,null,null,null,null,null,null,null,null,null,null,null,null,null,null,null,null,"COL0066229","(EO) Estructuras Organizacionales",{"$f":"COUNTIF(BA$4:BA162,BA162)","v":1},{"$f":"ROW()","v":162},1]
[null,null,null,null,null,null,null,null,null,null,null,null,null,null,null,null,null,null,null,null,null,null,null,null,null,null,null,null,null,null,null,null,null,null,null,null,null,null,null,null,null,null,null,null,null,null,null,null,null,null,null,null,"COL0066229","(PI) Procesos de Integración",{"$f":"COUNTIF(BA$4:BA163,BA163)","v":2},{"$f":"ROW()","v":163},1]
[null,null,null,null,null,null,null,null,null,null,null,null,null,null,null,null,null,null,null,null,null,null,null,null,null,null,null,null,null,null,null,null,null,null,null,null,null,null,null,null,null,null,null,null,null,null,null,null,null,null,null,null,"COL0066229","(R) Regionalización",{"$f":"COUNTIF(BA$4:BA164,BA164)","v":3},{"$f":"ROW()","v":164},1]
[null,null,null,null,null,null,null,null,null,null,null,null,null,null,null,null,null,null,null,null,null,null,null,null,null,null,null,null,null,null,null,null,null,null,null,null,null,null,null,null,null,null,null,null,null,null,null,null,null,null,null,null,"COL0028767","Estudios Contemporáneos en Contabilidad y Finanzas",{"$f":"COUNTIF(BA$4:BA165,BA165)","v":1},{"$f":"ROW()","v":165},1]
[null,null,null,null,null,null,null,null,null,null,null,null,null,null,null,null,null,null,null,null,null,null,null,null,null,null,null,null,null,null,null,null,null,null,null,null,null,null,null,null,null,null,null,null,null,null,null,null,null,null,null,null,"COL0028767","Estudios Contemporáneos en Gestión y Organizaciones",{"$f":"COUNTIF(BA$4:BA166,BA166)","v":2},{"$f":"ROW()","v":166},1]
[null,null,null,null,null,null,null,null,null,null,null,null,null,null,null,null,null,null,null,null,null,null,null,null,null,null,null,null,null,null,null,null,null,null,null,null,null,null,null,null,null,null,null,null,null,null,null,null,null,null,null,null,"COL0048492","Biología Molecular de organismos acuáticos, con énfasis en especies de interés comercial y amenazadas.",{"$f":"COUNTIF(BA$4:BA167,BA167)","v":1},{"$f":"ROW()","v":167},1]
[null,null,null,null,null,null,null,null,null,null,null,null,null,null,null,null,null,null,null,null,null,null,null,null,null,null,null,null,null,null,null,null,null,null,null,null,null,null,null,null,null,null,null,null,null,null,null,null,null,null,null,null,"COL0048492","Dinámica ecológica del zooplancton en el océano pacífico colombiano. Cruceros 2007-2010 de la serie ERFEN (Estudio Regional del Fenómeno el Niño)",{"$f":"COUNTIF(BA$4:BA168,BA168)","v":2},{"$f":"ROW()","v":168},1]
[null,null,null,null,null,null,null,null,null,null,null,null,null,null,null,null,null,null,null,null,null,null,null,null,null,null,null,null,null,null,null,null,null,null,null,null,null,null,null,null,null,null,null,null,null,null,null,null,null,null,null,null,"COL0048492","Estudios Morfológicos, Tróficos, Ecológicos, Bióticos y Abióticos de Humedales Colombianos, con énfasis en la Sabana de Bogotá.",{"$f":"COUNTIF(BA$4:BA169,BA169)","v":3},{"$f":"ROW()","v":169},1]
[null,null,null,null,null,null,null,null,null,null,null,null,null,null,null,null,null,null,null,null,null,null,null,null,null,null,null,null,null,null,null,null,null,null,null,null,null,null,null,null,null,null,null,null,null,null,null,null,null,null,null,null,"COL0048492","Estudios morfológicos, nutricionales, ontogénicos y de cultivo de organismos acuáticos de interés comercial.",{"$f":"COUNTIF(BA$4:BA170,BA170)","v":4},{"$f":"ROW()","v":170},1]
[null,null,null,null,null,null,null,null,null,null,null,null,null,null,null,null,null,null,null,null,null,null,null,null,null,null,null,null,null,null,null,null,null,null,null,null,null,null,null,null,null,null,null,null,null,null,null,null,null,null,null,null,"COL0077814","Producción Hortícola Limpia",{"$f":"COUNTIF(BA$4:BA171,BA171)","v":1},{"$f":"ROW()","v":171},1]
[null,null,null,null,null,null,null,null,null,null,null,null,null,null,null,null,null,null,null,null,null,null,null,null,null,null,null,null,null,null,null,null,null,null,null,null,null,null,null,null,null,null,null,null,null,null,null,null,null,null,null,null,"COL0077707","Biodiversidad y Conservación",{"$f":"COUNTIF(BA$4:BA172,BA172)","v":1},{"$f":"ROW()","v":172},1]
[null,null,null,null,null,null,null,null,null,null,null,null,null,null,null,null,null,null,null,null,null,null,null,null,null,null,null,null,null,null,null,null,null,null,null,null,null,null,null,null,null,null,null,null,null,null,null,null,null,null,null,null,"COL0077707","Bioprospección de Comunidades Vegetales",{"$f":"COUNTIF(BA$4:BA173,BA173)","v":2},{"$f":"ROW()","v":173},1]
[null,null,null,null,null,null,null,null,null,null,null,null,null,null,null,null,null,null,null,null,null,null,null,null,null,null,null,null,null,null,null,null,null,null,null,null,null,null,null,null,null,null,null,null,null,null,null,null,null,null,null,null,"COL0077707","Búsqueda Biodirigida y Síntesis de Sustancias Bioactivas",{"$f":"COUNTIF(BA$4:BA174,BA174)","v":3},{"$f":"ROW()","v":174},1]
[null,null,null,null,null,null,null,null,null,null,null,null,null,null,null,null,null,null,null,null,null,null,null,null,null,null,null,null,null,null,null,null,null,null,null,null,null,null,null,null,null,null,null,null,null,null,null,null,null,null,null,null,"COL0077707","Fitopatología y ecofisiología vegetal",{"$f":"COUNTIF(BA$4:BA175,BA175)","v":4},{"$f":"ROW()","v":175},1]
[null,null,null,null,null,null,null,null,null,null,null,null,null,null,null,null,null,null,null,null,null,null,null,null,null,null,null,null,null,null,null,null,null,null,null,null,null,null,null,null,null,null,null,null,null,null,null,null,null,null,null,null,"COL0077707","Metabolómica",{"$f":"COUNTIF(BA$4:BA176,BA176)","v":5},{"$f":"ROW()","v":176},1]
[null,null,null,null,null,null,null,null,null,null,null,null,null,null,null,null,null,null,null,null,null,null,null,null,null,null,null,null,null,null,null,null,null,null,null,null,null,null,null,null,null,null,null,null,null,null,null,null,null,null,null,null,"COL0077707","Modelado Molecular y Quimioinformática",{"$f":"COUNTIF(BA$4:BA177,BA177)","v":6},{"$f":"ROW()","v":177},1]
[null,null,null,null,null,null,null,null,null,null,null,null,null,null,null,null,null,null,null,null,null,null,null,null,null,null,null,null,null,null,null,null,null,null,null,null,null,null,null,null,null,null,null,null,null,null,null,null,null,null,null,null,"COL0077707","Química Ambiental",{"$f":"COUNTIF(BA$4:BA178,BA178)","v":7},{"$f":"ROW()","v":178},1]
[null,null,null,null,null,null,null,null,null,null,null,null,null,null,null,null,null,null,null,null,null,null,null,null,null,null,null,null,null,null,null,null,null,null,null,null,null,null,null,null,null,null,null,null,null,null,null,null,null,null,null,null,"COL0077707","Química Bioorgánica",{"$f":"COUNTIF(BA$4:BA179,BA179)","v":8},{"$f":"ROW()","v":179},1]
[null,null,null,null,null,null,null,null,null,null,null,null,null,null,null,null,null,null,null,null,null,null,null,null,null,null,null,null,null,null,null,null,null,null,null,null,null,null,null,null,null,null,null,null,null,null,null,null,null,null,null,null,"COL0077707","Redes Tróficas y Agroecología",{"$f":"COUNTIF(BA$4:BA180,BA180)","v":9},{"$f":"ROW()","v":180},1]
[null,null,null,null,null,null,null,null,null,null,null,null,null,null,null,null,null,null,null,null,null,null,null,null,null,null,null,null,null,null,null,null,null,null,null,null,null,null,null,null,null,null,null,null,null,null,null,null,null,null,null,null,"COL0110436","Bioquímica",{"$f":"COUNTIF(BA$4:BA181,BA181)","v":1},{"$f":"ROW()","v":181},1]
[null,null,null,null,null,null,null,null,null,null,null,null,null,null,null,null,null,null,null,null,null,null,null,null,null,null,null,null,null,null,null,null,null,null,null,null,null,null,null,null,null,null,null,null,null,null,null,null,null,null,null,null,"COL0110436","Química Ambiental y Forense",{"$f":"COUNTIF(BA$4:BA182,BA182)","v":2},{"$f":"ROW()","v":182},1]
[null,null,null,null,null,null,null,null,null,null,null,null,null,null,null,null,null,null,null,null,null,null,null,null,null,null,null,null,null,null,null,null,null,null,null,null,null,null,null,null,null,null,null,null,null,null,null,null,null,null,null,null,"COL0110436","Química Inorgánica",{"$f":"COUNTIF(BA$4:BA183,BA183)","v":3},{"$f":"ROW()","v":183},1]
[null,null,null,null,null,null,null,null,null,null,null,null,null,null,null,null,null,null,null,null,null,null,null,null,null,null,null,null,null,null,null,null,null,null,null,null,null,null,null,null,null,null,null,null,null,null,null,null,null,null,null,null,"COL0110436","Química Verde",{"$f":"COUNTIF(BA$4:BA184,BA184)","v":4},{"$f":"ROW()","v":184},1]
[null,null,null,null,null,null,null,null,null,null,null,null,null,null,null,null,null,null,null,null,null,null,null,null,null,null,null,null,null,null,null,null,null,null,null,null,null,null,null,null,null,null,null,null,null,null,null,null,null,null,null,null,"COL0110436","Química de coordinación y catálisis ambiental",{"$f":"COUNTIF(BA$4:BA185,BA185)","v":5},{"$f":"ROW()","v":185},1]
[null,null,null,null,null,null,null,null,null,null,null,null,null,null,null,null,null,null,null,null,null,null,null,null,null,null,null,null,null,null,null,null,null,null,null,null,null,null,null,null,null,null,null,null,null,null,null,null,null,null,null,null,"COL0125134","Ayudas Auditivas Implantables",{"$f":"COUNTIF(BA$4:BA186,BA186)","v":1},{"$f":"ROW()","v":186},1]
[null,null,null,null,null,null,null,null,null,null,null,null,null,null,null,null,null,null,null,null,null,null,null,null,null,null,null,null,null,null,null,null,null,null,null,null,null,null,null,null,null,null,null,null,null,null,null,null,null,null,null,null,"COL0125134","Base de cráneo",{"$f":"COUNTIF(BA$4:BA187,BA187)","v":2},{"$f":"ROW()","v":187},1]
[null,null,null,null,null,null,null,null,null,null,null,null,null,null,null,null,null,null,null,null,null,null,null,null,null,null,null,null,null,null,null,null,null,null,null,null,null,null,null,null,null,null,null,null,null,null,null,null,null,null,null,null,"COL0125134","Cáncer Laríngeo",{"$f":"COUNTIF(BA$4:BA188,BA188)","v":3},{"$f":"ROW()","v":188},1]
[null,null,null,null,null,null,null,null,null,null,null,null,null,null,null,null,null,null,null,null,null,null,null,null,null,null,null,null,null,null,null,null,null,null,null,null,null,null,null,null,null,null,null,null,null,null,null,null,null,null,null,null,"COL0125134","Enfermedad de Meniere",{"$f":"COUNTIF(BA$4:BA189,BA189)","v":4},{"$f":"ROW()","v":189},1]
[null,null,null,null,null,null,null,null,null,null,null,null,null,null,null,null,null,null,null,null,null,null,null,null,null,null,null,null,null,null,null,null,null,null,null,null,null,null,null,null,null,null,null,null,null,null,null,null,null,null,null,null,"COL0125134","Oído Crónico",{"$f":"COUNTIF(BA$4:BA190,BA190)","v":5},{"$f":"ROW()","v":190},1]
[null,null,null,null,null,null,null,null,null,null,null,null,null,null,null,null,null,null,null,null,null,null,null,null,null,null,null,null,null,null,null,null,null,null,null,null,null,null,null,null,null,null,null,null,null,null,null,null,null,null,null,null,"COL0125134","Rinosinusitis Crónica",{"$f":"COUNTIF(BA$4:BA191,BA191)","v":6},{"$f":"ROW()","v":191},1]
[null,null,null,null,null,null,null,null,null,null,null,null,null,null,null,null,null,null,null,null,null,null,null,null,null,null,null,null,null,null,null,null,null,null,null,null,null,null,null,null,null,null,null,null,null,null,null,null,null,null,null,null,"COL0125134","Trauma de guerra en Otorrinolaringología",{"$f":"COUNTIF(BA$4:BA192,BA192)","v":7},{"$f":"ROW()","v":192},1]
[null,null,null,null,null,null,null,null,null,null,null,null,null,null,null,null,null,null,null,null,null,null,null,null,null,null,null,null,null,null,null,null,null,null,null,null,null,null,null,null,null,null,null,null,null,null,null,null,null,null,null,null,"COL0120281","Medicina Electrodiagnostica",{"$f":"COUNTIF(BA$4:BA193,BA193)","v":1},{"$f":"ROW()","v":193},1]
[null,null,null,null,null,null,null,null,null,null,null,null,null,null,null,null,null,null,null,null,null,null,null,null,null,null,null,null,null,null,null,null,null,null,null,null,null,null,null,null,null,null,null,null,null,null,null,null,null,null,null,null,"COL0120281","Rehabilitacion Neurologica",{"$f":"COUNTIF(BA$4:BA194,BA194)","v":2},{"$f":"ROW()","v":194},1]
[null,null,null,null,null,null,null,null,null,null,null,null,null,null,null,null,null,null,null,null,null,null,null,null,null,null,null,null,null,null,null,null,null,null,null,null,null,null,null,null,null,null,null,null,null,null,null,null,null,null,null,null,"COL0120281","Rehabilitacion cardio-pulmonar",{"$f":"COUNTIF(BA$4:BA195,BA195)","v":3},{"$f":"ROW()","v":195},1]
[null,null,null,null,null,null,null,null,null,null,null,null,null,null,null,null,null,null,null,null,null,null,null,null,null,null,null,null,null,null,null,null,null,null,null,null,null,null,null,null,null,null,null,null,null,null,null,null,null,null,null,null,"COL0120281","Rehabilitacion musculo esqueletica",{"$f":"COUNTIF(BA$4:BA196,BA196)","v":4},{"$f":"ROW()","v":196},{"$f":"COUNTIF($AQ$3:$AQ$83,BA196)","v":1}]
[null,null,null,null,null,null,null,null,null,null,null,null,null,null,null,null,null,null,null,null,null,null,null,null,null,null,null,null,null,null,null,null,null,null,null,null,null,null,null,null,null,null,null,null,null,null,null,null,null,null,null,null,"COL0120281","Rehabilitación Infantil",{"$f":"COUNTIF(BA$4:BA197,BA197)","v":5},{"$f":"ROW()","v":197},1]
[null,null,null,null,null,null,null,null,null,null,null,null,null,null,null,null,null,null,null,null,null,null,null,null,null,null,null,null,null,null,null,null,null,null,null,null,null,null,null,null,null,null,null,null,null,null,null,null,null,null,null,null,"COL0128047","Derecho de la responsabilidad y de seguros",{"$f":"COUNTIF(BA$4:BA198,BA198)","v":1},{"$f":"ROW()","v":198},1]
[null,null,null,null,null,null,null,null,null,null,null,null,null,null,null,null,null,null,null,null,null,null,null,null,null,null,null,null,null,null,null,null,null,null,null,null,null,null,null,null,null,null,null,null,null,null,null,null,null,null,null,null,"COL0128047","Derecho económico y de los negocios.",{"$f":"COUNTIF(BA$4:BA199,BA199)","v":2},{"$f":"ROW()","v":199},1]
[null,null,null,null,null,null,null,null,null,null,null,null,null,null,null,null,null,null,null,null,null,null,null,null,null,null,null,null,null,null,null,null,null,null,null,null,null,null,null,null,null,null,null,null,null,null,null,null,null,null,null,null,"COL0116538","Andrologia y Salud sexual",{"$f":"COUNTIF(BA$4:BA200,BA200)","v":1},{"$f":"ROW()","v":200},1]
[null,null,null,null,null,null,null,null,null,null,null,null,null,null,null,null,null,null,null,null,null,null,null,null,null,null,null,null,null,null,null,null,null,null,null,null,null,null,null,null,null,null,null,null,null,null,null,null,null,null,null,null,"COL0116538","Hiperplasia Prostatica",{"$f":"COUNTIF(BA$4:BA201,BA201)","v":2},{"$f":"ROW()","v":201},1]
[null,null,null,null,null,null,null,null,null,null,null,null,null,null,null,null,null,null,null,null,null,null,null,null,null,null,null,null,null,null,null,null,null,null,null,null,null,null,null,null,null,null,null,null,null,null,null,null,null,null,null,null,"COL0116538","Incontinencia Urinaria",{"$f":"COUNTIF(BA$4:BA202,BA202)","v":3},{"$f":"ROW()","v":202},1]
[null,null,null,null,null,null,null,null,null,null,null,null,null,null,null,null,null,null,null,null,null,null,null,null,null,null,null,null,null,null,null,null,null,null,null,null,null,null,null,null,null,null,null,null,null,null,null,null,null,null,null,null,"COL0116538","Litiasis y endourologia",{"$f":"COUNTIF(BA$4:BA203,BA203)","v":4},{"$f":"ROW()","v":203},1]
[null,null,null,null,null,null,null,null,null,null,null,null,null,null,null,null,null,null,null,null,null,null,null,null,null,null,null,null,null,null,null,null,null,null,null,null,null,null,null,null,null,null,null,null,null,null,null,null,null,null,null,null,"COL0116538","Oncologia Urologica",{"$f":"COUNTIF(BA$4:BA204,BA204)","v":5},{"$f":"ROW()","v":204},1]
[null,null,null,null,null,null,null,null,null,null,null,null,null,null,null,null,null,null,null,null,null,null,null,null,null,null,null,null,null,null,null,null,null,null,null,null,null,null,null,null,null,null,null,null,null,null,null,null,null,null,null,null,"COL0116538","Urologia Pediatrica",{"$f":"COUNTIF(BA$4:BA205,BA205)","v":6},{"$f":"ROW()","v":205},1]
[null,null,null,null,null,null,null,null,null,null,null,null,null,null,null,null,null,null,null,null,null,null,null,null,null,null,null,null,null,null,null,null,null,null,null,null,null,null,null,null,null,null,null,null,null,null,null,null,null,null,null,null,"COL0026486","Biorefinerias",{"$f":"COUNTIF(BA$4:BA206,BA206)","v":1},{"$f":"ROW()","v":206},1]
[null,null,null,null,null,null,null,null,null,null,null,null,null,null,null,null,null,null,null,null,null,null,null,null,null,null,null,null,null,null,null,null,null,null,null,null,null,null,null,null,null,null,null,null,null,null,null,null,null,null,null,null,"COL0026486","Ciudades Sostenibles",{"$f":"COUNTIF(BA$4:BA207,BA207)","v":2},{"$f":"ROW()","v":207},{"$f":"COUNTIF($AQ$3:$AQ$83,BA207)","v":1}]
[null,null,null,null,null,null,null,null,null,null,null,null,null,null,null,null,null,null,null,null,null,null,null,null,null,null,null,null,null,null,null,null,null,null,null,null,null,null,null,null,null,null,null,null,null,null,null,null,null,null,null,null,"COL0026486","Ingeniería Offshore.",{"$f":"COUNTIF(BA$4:BA208,BA208)","v":3},{"$f":"ROW()","v":208},1]
[null,null,null,null,null,null,null,null,null,null,null,null,null,null,null,null,null,null,null,null,null,null,null,null,null,null,null,null,null,null,null,null,null,null,null,null,null,null,null,null,null,null,null,null,null,null,null,null,null,null,null,null,"COL0026486","Ingeniería de recursos hídricos y energéticos.",{"$f":"COUNTIF(BA$4:BA209,BA209)","v":4},{"$f":"ROW()","v":209},1]
[null,null,null,null,null,null,null,null,null,null,null,null,null,null,null,null,null,null,null,null,null,null,null,null,null,null,null,null,null,null,null,null,null,null,null,null,null,null,null,null,null,null,null,null,null,null,null,null,null,null,null,null,"COL0026486","Procesos físico-químicos y de oxidación avanzada",{"$f":"COUNTIF(BA$4:BA210,BA210)","v":5},{"$f":"ROW()","v":210},1]
[null,null,null,null,null,null,null,null,null,null,null,null,null,null,null,null,null,null,null,null,null,null,null,null,null,null,null,null,null,null,null,null,null,null,null,null,null,null,null,null,null,null,null,null,null,null,null,null,null,null,null,null,"COL0031824","Bioética Global y Complejidad",{"$f":"COUNTIF(BA$4:BA211,BA211)","v":1},{"$f":"ROW()","v":211},1]
[null,null,null,null,null,null,null,null,null,null,null,null,null,null,null,null,null,null,null,null,null,null,null,null,null,null,null,null,null,null,null,null,null,null,null,null,null,null,null,null,null,null,null,null,null,null,null,null,null,null,null,null,"COL0031824","Bioética Médica y salud pública",{"$f":"COUNTIF(BA$4:BA212,BA212)","v":2},{"$f":"ROW()","v":212},1]
[null,null,null,null,null,null,null,null,null,null,null,null,null,null,null,null,null,null,null,null,null,null,null,null,null,null,null,null,null,null,null,null,null,null,null,null,null,null,null,null,null,null,null,null,null,null,null,null,null,null,null,null,"COL0031824","Bioética, Biopolítica y Biojurídica",{"$f":"COUNTIF(BA$4:BA213,BA213)","v":3},{"$f":"ROW()","v":213},1]
[null,null,null,null,null,null,null,null,null,null,null,null,null,null,null,null,null,null,null,null,null,null,null,null,null,null,null,null,null,null,null,null,null,null,null,null,null,null,null,null,null,null,null,null,null,null,null,null,null,null,null,null,"COL0031824","Bioética, educación y cultura",{"$f":"COUNTIF(BA$4:BA214,BA214)","v":4},{"$f":"ROW()","v":214},1]
[null,null,null,null,null,null,null,null,null,null,null,null,null,null,null,null,null,null,null,null,null,null,null,null,null,null,null,null,null,null,null,null,null,null,null,null,null,null,null,null,null,null,null,null,null,null,null,null,null,null,null,null,"COL0045848","Epidemiología Clínica de Diabetes e Insulino resistencia",{"$f":"COUNTIF(BA$4:BA215,BA215)","v":1},{"$f":"ROW()","v":215},1]
[null,null,null,null,null,null,null,null,null,null,null,null,null,null,null,null,null,null,null,null,null,null,null,null,null,null,null,null,null,null,null,null,null,null,null,null,null,null,null,null,null,null,null,null,null,null,null,null,null,null,null,null,"COL0045848","Genética de diabetes mellitus e insulino resistencia",{"$f":"COUNTIF(BA$4:BA216,BA216)","v":2},{"$f":"ROW()","v":216},1]
[null,null,null,null,null,null,null,null,null,null,null,null,null,null,null,null,null,null,null,null,null,null,null,null,null,null,null,null,null,null,null,null,null,null,null,null,null,null,null,null,null,null,null,null,null,null,null,null,null,null,null,null,"COL0045848","Prevención Cardiovascular",{"$f":"COUNTIF(BA$4:BA217,BA217)","v":3},{"$f":"ROW()","v":217},1]
[null,null,null,null,null,null,null,null,null,null,null,null,null,null,null,null,null,null,null,null,null,null,null,null,null,null,null,null,null,null,null,null,null,null,null,null,null,null,null,null,null,null,null,null,null,null,null,null,null,null,null,null,"COL0052163","Internet de las Cosas",{"$f":"COUNTIF(BA$4:BA218,BA218)","v":1},{"$f":"ROW()","v":218},1]
[null,null,null,null,null,null,null,null,null,null,null,null,null,null,null,null,null,null,null,null,null,null,null,null,null,null,null,null,null,null,null,null,null,null,null,null,null,null,null,null,null,null,null,null,null,null,null,null,null,null,null,null,"COL0052163","Procesamiento de Seńales",{"$f":"COUNTIF(BA$4:BA219,BA219)","v":2},{"$f":"ROW()","v":219},1]
[null,null,null,null,null,null,null,null,null,null,null,null,null,null,null,null,null,null,null,null,null,null,null,null,null,null,null,null,null,null,null,null,null,null,null,null,null,null,null,null,null,null,null,null,null,null,null,null,null,null,null,null,"COL0052163","Seguridad Informática",{"$f":"COUNTIF(BA$4:BA220,BA220)","v":3},{"$f":"ROW()","v":220},1]
[null,null,null,null,null,null,null,null,null,null,null,null,null,null,null,null,null,null,null,null,null,null,null,null,null,null,null,null,null,null,null,null,null,null,null,null,null,null,null,null,null,null,null,null,null,null,null,null,null,null,null,null,"COL0052163","Sistemas bioinspirados",{"$f":"COUNTIF(BA$4:BA221,BA221)","v":4},{"$f":"ROW()","v":221},1]
[null,null,null,null,null,null,null,null,null,null,null,null,null,null,null,null,null,null,null,null,null,null,null,null,null,null,null,null,null,null,null,null,null,null,null,null,null,null,null,null,null,null,null,null,null,null,null,null,null,null,null,null,"COL0052163","Sistemas de comunicaciones",{"$f":"COUNTIF(BA$4:BA222,BA222)","v":5},{"$f":"ROW()","v":222},1]
[null,null,null,null,null,null,null,null,null,null,null,null,null,null,null,null,null,null,null,null,null,null,null,null,null,null,null,null,null,null,null,null,null,null,null,null,null,null,null,null,null,null,null,null,null,null,null,null,null,null,null,null,"COL0066669","Estrategia y Seguridad",{"$f":"COUNTIF(BA$4:BA223,BA223)","v":1},{"$f":"ROW()","v":223},1]
[null,null,null,null,null,null,null,null,null,null,null,null,null,null,null,null,null,null,null,null,null,null,null,null,null,null,null,null,null,null,null,null,null,null,null,null,null,null,null,null,null,null,null,null,null,null,null,null,null,null,null,null,"COL0066669","Paz y Posconflicto",{"$f":"COUNTIF(BA$4:BA224,BA224)","v":2},{"$f":"ROW()","v":224},1]
[null,null,null,null,null,null,null,null,null,null,null,null,null,null,null,null,null,null,null,null,null,null,null,null,null,null,null,null,null,null,null,null,null,null,null,null,null,null,null,null,null,null,null,null,null,null,null,null,null,null,null,null,"COL0066669","Seguridad Física",{"$f":"COUNTIF(BA$4:BA225,BA225)","v":3},{"$f":"ROW()","v":225},1]
[null,null,null,null,null,null,null,null,null,null,null,null,null,null,null,null,null,null,null,null,null,null,null,null,null,null,null,null,null,null,null,null,null,null,null,null,null,null,null,null,null,null,null,null,null,null,null,null,null,null,null,null,"COL0066669","Seguridad de Personas",{"$f":"COUNTIF(BA$4:BA226,BA226)","v":4},{"$f":"ROW()","v":226},1]
[null,null,null,null,null,null,null,null,null,null,null,null,null,null,null,null,null,null,null,null,null,null,null,null,null,null,null,null,null,null,null,null,null,null,null,null,null,null,null,null,null,null,null,null,null,null,null,null,null,null,null,null,"COL0068762","Ingeniería Sostenible",{"$f":"COUNTIF(BA$4:BA227,BA227)","v":1},{"$f":"ROW()","v":227},1]
[null,null,null,null,null,null,null,null,null,null,null,null,null,null,null,null,null,null,null,null,null,null,null,null,null,null,null,null,null,null,null,null,null,null,null,null,null,null,null,null,null,null,null,null,null,null,null,null,null,null,null,null,"COL0068762","Inteligencia artificial y procesamiento de seńales",{"$f":"COUNTIF(BA$4:BA228,BA228)","v":2},{"$f":"ROW()","v":228},1]
[null,null,null,null,null,null,null,null,null,null,null,null,null,null,null,null,null,null,null,null,null,null,null,null,null,null,null,null,null,null,null,null,null,null,null,null,null,null,null,null,null,null,null,null,null,null,null,null,null,null,null,null,"COL0068762","Laboratorios virtuales e instrumentación virtual",{"$f":"COUNTIF(BA$4:BA229,BA229)","v":3},{"$f":"ROW()","v":229},1]
[null,null,null,null,null,null,null,null,null,null,null,null,null,null,null,null,null,null,null,null,null,null,null,null,null,null,null,null,null,null,null,null,null,null,null,null,null,null,null,null,null,null,null,null,null,null,null,null,null,null,null,null,"COL0068762","Sistemas Bioinspirados",{"$f":"COUNTIF(BA$4:BA230,BA230)","v":4},{"$f":"ROW()","v":230},1]
[null,null,null,null,null,null,null,null,null,null,null,null,null,null,null,null,null,null,null,null,null,null,null,null,null,null,null,null,null,null,null,null,null,null,null,null,null,null,null,null,null,null,null,null,null,null,null,null,null,null,null,null,"COL0068762","Tecnologías de la información y las comunicaciones (TIC)",{"$f":"COUNTIF(BA$4:BA231,BA231)","v":5},{"$f":"ROW()","v":231},1]
[null,null,null,null,null,null,null,null,null,null,null,null,null,null,null,null,null,null,null,null,null,null,null,null,null,null,null,null,null,null,null,null,null,null,null,null,null,null,null,null,null,null,null,null,null,null,null,null,null,null,null,null,"COL0068762","Visión de Máquina",{"$f":"COUNTIF(BA$4:BA232,BA232)","v":6},{"$f":"ROW()","v":232},1]
[null,null,null,null,null,null,null,null,null,null,null,null,null,null,null,null,null,null,null,null,null,null,null,null,null,null,null,null,null,null,null,null,null,null,null,null,null,null,null,null,null,null,null,null,null,null,null,null,null,null,null,null,"COL0067371","Desarrollo de diagnósticos físico matemáticos de la morfofisiología celular e histológica con base en geometría fractal y euclidiana.",{"$f":"COUNTIF(BA$4:BA233,BA233)","v":1},{"$f":"ROW()","v":233},1]
[null,null,null,null,null,null,null,null,null,null,null,null,null,null,null,null,null,null,null,null,null,null,null,null,null,null,null,null,null,null,null,null,null,null,null,null,null,null,null,null,null,null,null,null,null,null,null,null,null,null,null,null,"COL0067371","Desarrollo de diagnósticos físico matemáticos de la morfofisiología y la dinámica cardiaca fetal y de adultos",{"$f":"COUNTIF(BA$4:BA234,BA234)","v":2},{"$f":"ROW()","v":234},1]
[null,null,null,null,null,null,null,null,null,null,null,null,null,null,null,null,null,null,null,null,null,null,null,null,null,null,null,null,null,null,null,null,null,null,null,null,null,null,null,null,null,null,null,null,null,null,null,null,null,null,null,null,"COL0067371","Física y matemáticas aplicadas",{"$f":"COUNTIF(BA$4:BA235,BA235)","v":3},{"$f":"ROW()","v":235},1]
[null,null,null,null,null,null,null,null,null,null,null,null,null,null,null,null,null,null,null,null,null,null,null,null,null,null,null,null,null,null,null,null,null,null,null,null,null,null,null,null,null,null,null,null,null,null,null,null,null,null,null,null,"COL0067371","Predicciones en infectología",{"$f":"COUNTIF(BA$4:BA236,BA236)","v":4},{"$f":"ROW()","v":236},1]
[null,null,null,null,null,null,null,null,null,null,null,null,null,null,null,null,null,null,null,null,null,null,null,null,null,null,null,null,null,null,null,null,null,null,null,null,null,null,null,null,null,null,null,null,null,null,null,null,null,null,null,null,"COL0067371","Predicciones físicas y matemáticas en economía",{"$f":"COUNTIF(BA$4:BA237,BA237)","v":5},{"$f":"ROW()","v":237},1]
[null,null,null,null,null,null,null,null,null,null,null,null,null,null,null,null,null,null,null,null,null,null,null,null,null,null,null,null,null,null,null,null,null,null,null,null,null,null,null,null,null,null,null,null,null,null,null,null,null,null,null,null,"COL0067371","Teorías físicas y Matemáticas aplicadas al desarrollo de diagnósticos de la dinámica y morfología cardíaca",{"$f":"COUNTIF(BA$4:BA238,BA238)","v":6},{"$f":"ROW()","v":238},1]
[null,null,null,null,null,null,null,null,null,null,null,null,null,null,null,null,null,null,null,null,null,null,null,null,null,null,null,null,null,null,null,null,null,null,null,null,null,null,null,null,null,null,null,null,null,null,null,null,null,null,null,null,"COL0067371","teorías físicas y Matemáticas aplicadas a la prediccion de epidemias",{"$f":"COUNTIF(BA$4:BA239,BA239)","v":7},{"$f":"ROW()","v":239},1]
[null,null,null,null,null,null,null,null,null,null,null,null,null,null,null,null,null,null,null,null,null,null,null,null,null,null,null,null,null,null,null,null,null,null,null,null,null,null,null,null,null,null,null,null,null,null,null,null,null,null,null,null,"COL0067371","teorías físicas y Matemáticas aplicadas al de diagnósticos de Morfología y fisiología celular",{"$f":"COUNTIF(BA$4:BA240,BA240)","v":8},{"$f":"ROW()","v":240},1]
[null,null,null,null,null,null,null,null,null,null,null,null,null,null,null,null,null,null,null,null,null,null,null,null,null,null,null,null,null,null,null,null,null,null,null,null,null,null,null,null,null,null,null,null,null,null,null,null,null,null,null,null,"COL0067371","teorías físicas y Matemáticas aplicadas al desarrollo de predicciones en inmunología y biología molecular para el desarrollo de vacunas",{"$f":"COUNTIF(BA$4:BA241,BA241)","v":9},{"$f":"ROW()","v":241},1]
[null,null,null,null,null,null,null,null,null,null,null,null,null,null,null,null,null,null,null,null,null,null,null,null,null,null,null,null,null,null,null,null,null,null,null,null,null,null,null,null,null,null,null,null,null,null,null,null,null,null,null,null,"COL0110329","Didáctica de las matemáticas universitarias",{"$f":"COUNTIF(BA$4:BA242,BA242)","v":1},{"$f":"ROW()","v":242},1]
[null,null,null,null,null,null,null,null,null,null,null,null,null,null,null,null,null,null,null,null,null,null,null,null,null,null,null,null,null,null,null,null,null,null,null,null,null,null,null,null,null,null,null,null,null,null,null,null,null,null,null,null,"COL0110329","Diseńo curricular y evaluación en matemáticas universitarias",{"$f":"COUNTIF(BA$4:BA243,BA243)","v":2},{"$f":"ROW()","v":243},1]
[null,null,null,null,null,null,null,null,null,null,null,null,null,null,null,null,null,null,null,null,null,null,null,null,null,null,null,null,null,null,null,null,null,null,null,null,null,null,null,null,null,null,null,null,null,null,null,null,null,null,null,null,"COL0110329","Herramientas virtuales y enseńanza de las matemáticas universitarias",{"$f":"COUNTIF(BA$4:BA244,BA244)","v":3},{"$f":"ROW()","v":244},1]
[null,null,null,null,null,null,null,null,null,null,null,null,null,null,null,null,null,null,null,null,null,null,null,null,null,null,null,null,null,null,null,null,null,null,null,null,null,null,null,null,null,null,null,null,null,null,null,null,null,null,null,null,"COL0117052","Ambiental",{"$f":"COUNTIF(BA$4:BA245,BA245)","v":1},{"$f":"ROW()","v":245},1]
[null,null,null,null,null,null,null,null,null,null,null,null,null,null,null,null,null,null,null,null,null,null,null,null,null,null,null,null,null,null,null,null,null,null,null,null,null,null,null,null,null,null,null,null,null,null,null,null,null,null,null,null,"COL0117052","Arte y Tecnología",{"$f":"COUNTIF(BA$4:BA246,BA246)","v":2},{"$f":"ROW()","v":246},1]
[null,null,null,null,null,null,null,null,null,null,null,null,null,null,null,null,null,null,null,null,null,null,null,null,null,null,null,null,null,null,null,null,null,null,null,null,null,null,null,null,null,null,null,null,null,null,null,null,null,null,null,null,"COL0117052","Energía",{"$f":"COUNTIF(BA$4:BA247,BA247)","v":3},{"$f":"ROW()","v":247},1]
[null,null,null,null,null,null,null,null,null,null,null,null,null,null,null,null,null,null,null,null,null,null,null,null,null,null,null,null,null,null,null,null,null,null,null,null,null,null,null,null,null,null,null,null,null,null,null,null,null,null,null,null,"COL0117052","Gestión e Innovación",{"$f":"COUNTIF(BA$4:BA248,BA248)","v":4},{"$f":"ROW()","v":248},1]
[null,null,null,null,null,null,null,null,null,null,null,null,null,null,null,null,null,null,null,null,null,null,null,null,null,null,null,null,null,null,null,null,null,null,null,null,null,null,null,null,null,null,null,null,null,null,null,null,null,null,null,null,"COL0117052","Materiales",{"$f":"COUNTIF(BA$4:BA249,BA249)","v":5},{"$f":"ROW()","v":249},1]
[null,null,null,null,null,null,null,null,null,null,null,null,null,null,null,null,null,null,null,null,null,null,null,null,null,null,null,null,null,null,null,null,null,null,null,null,null,null,null,null,null,null,null,null,null,null,null,null,null,null,null,null,"COL0138796","Docencia y Didactica de la Física Universitaria",{"$f":"COUNTIF(BA$4:BA250,BA250)","v":1},{"$f":"ROW()","v":250},1]
[null,null,null,null,null,null,null,null,null,null,null,null,null,null,null,null,null,null,null,null,null,null,null,null,null,null,null,null,null,null,null,null,null,null,null,null,null,null,null,null,null,null,null,null,null,null,null,null,null,null,null,null,"COL0138796","Física Atómica, Molecular y de Agregados",{"$f":"COUNTIF(BA$4:BA251,BA251)","v":2},{"$f":"ROW()","v":251},1]
[null,null,null,null,null,null,null,null,null,null,null,null,null,null,null,null,null,null,null,null,null,null,null,null,null,null,null,null,null,null,null,null,null,null,null,null,null,null,null,null,null,null,null,null,null,null,null,null,null,null,null,null,"COL0138796","Magnetismo y Aplicaciones",{"$f":"COUNTIF(BA$4:BA252,BA252)","v":3},{"$f":"ROW()","v":252},1]
[null,null,null,null,null,null,null,null,null,null,null,null,null,null,null,null,null,null,null,null,null,null,null,null,null,null,null,null,null,null,null,null,null,null,null,null,null,null,null,null,null,null,null,null,null,null,null,null,null,null,null,null,"COL0138796","Nanotecnología y Sensórica",{"$f":"COUNTIF(BA$4:BA253,BA253)","v":4},{"$f":"ROW()","v":253},1]
[null,null,null,null,null,null,null,null,null,null,null,null,null,null,null,null,null,null,null,null,null,null,null,null,null,null,null,null,null,null,null,null,null,null,null,null,null,null,null,null,null,null,null,null,null,null,null,null,null,null,null,null,"COL0138796","Uso de radiación ionizante para la producción de imágenes médicas",{"$f":"COUNTIF(BA$4:BA254,BA254)","v":5},{"$f":"ROW()","v":254},1]
[null,null,null,null,null,null,null,null,null,null,null,null,null,null,null,null,null,null,null,null,null,null,null,null,null,null,null,null,null,null,null,null,null,null,null,null,null,null,null,null,null,null,null,null,null,null,null,null,null,null,null,null,"COL0152463","Currículo y evaluación",{"$f":"COUNTIF(BA$4:BA255,BA255)","v":1},{"$f":"ROW()","v":255},1]
[null,null,null,null,null,null,null,null,null,null,null,null,null,null,null,null,null,null,null,null,null,null,null,null,null,null,null,null,null,null,null,null,null,null,null,null,null,null,null,null,null,null,null,null,null,null,null,null,null,null,null,null,"COL0152463","Docencia y pedagogía",{"$f":"COUNTIF(BA$4:BA256,BA256)","v":2},{"$f":"ROW()","v":256},1]
[null,null,null,null,null,null,null,null,null,null,null,null,null,null,null,null,null,null,null,null,null,null,null,null,null,null,null,null,null,null,null,null,null,null,null,null,null,null,null,null,null,null,null,null,null,null,null,null,null,null,null,null,"COL0152463","Investigación clínica",{"$f":"COUNTIF(BA$4:BA257,BA257)","v":3},{"$f":"ROW()","v":257},1]
[null,null,null,null,null,null,null,null,null,null,null,null,null,null,null,null,null,null,null,null,null,null,null,null,null,null,null,null,null,null,null,null,null,null,null,null,null,null,null,null,null,null,null,null,null,null,null,null,null,null,null,null,"COL0143731","Electrónica y Telecomunicaciones en Salud",{"$f":"COUNTIF(BA$4:BA258,BA258)","v":1},{"$f":"ROW()","v":258},1]
[null,null,null,null,null,null,null,null,null,null,null,null,null,null,null,null,null,null,null,null,null,null,null,null,null,null,null,null,null,null,null,null,null,null,null,null,null,null,null,null,null,null,null,null,null,null,null,null,null,null,null,null,"COL0143731","Espectro Radioeléctrico",{"$f":"COUNTIF(BA$4:BA259,BA259)","v":2},{"$f":"ROW()","v":259},1]
[null,null,null,null,null,null,null,null,null,null,null,null,null,null,null,null,null,null,null,null,null,null,null,null,null,null,null,null,null,null,null,null,null,null,null,null,null,null,null,null,null,null,null,null,null,null,null,null,null,null,null,null,"COL0143731","Sistemas virtuales de comunicación",{"$f":"COUNTIF(BA$4:BA260,BA260)","v":3},{"$f":"ROW()","v":260},1]
[null,null,null,null,null,null,null,null,null,null,null,null,null,null,null,null,null,null,null,null,null,null,null,null,null,null,null,null,null,null,null,null,null,null,null,null,null,null,null,null,null,null,null,null,null,null,null,null,null,null,null,null,"COL0069296","Modelos de simulación en Ingeniería Civil",{"$f":"COUNTIF(BA$4:BA261,BA261)","v":1},{"$f":"ROW()","v":261},1]
[null,null,null,null,null,null,null,null,null,null,null,null,null,null,null,null,null,null,null,null,null,null,null,null,null,null,null,null,null,null,null,null,null,null,null,null,null,null,null,null,null,null,null,null,null,null,null,null,null,null,null,null,"COL0096032","Bioetica, Bioderecho, Biomedicina y Biotecnologia",{"$f":"COUNTIF(BA$4:BA262,BA262)","v":1},{"$f":"ROW()","v":262},{"$f":"COUNTIF($AQ$3:$AQ$83,BA262)","v":1}]
[null,null,null,null,null,null,null,null,null,null,null,null,null,null,null,null,null,null,null,null,null,null,null,null,null,null,null,null,null,null,null,null,null,null,null,null,null,null,null,null,null,null,null,null,null,null,null,null,null,null,null,null,"COL0096032","Células Madre & Medicina Regenerativa",{"$f":"COUNTIF(BA$4:BA263,BA263)","v":2},{"$f":"ROW()","v":263},1]
[null,null,null,null,null,null,null,null,null,null,null,null,null,null,null,null,null,null,null,null,null,null,null,null,null,null,null,null,null,null,null,null,null,null,null,null,null,null,null,null,null,null,null,null,null,null,null,null,null,null,null,null,"COL0096032","Genética Humana",{"$f":"COUNTIF(BA$4:BA264,BA264)","v":3},{"$f":"ROW()","v":264},1]
[null,null,null,null,null,null,null,null,null,null,null,null,null,null,null,null,null,null,null,null,null,null,null,null,null,null,null,null,null,null,null,null,null,null,null,null,null,null,null,null,null,null,null,null,null,null,null,null,null,null,null,null,"COL0096032","Medicina Transfusional y Cuidado Crítico",{"$f":"COUNTIF(BA$4:BA265,BA265)","v":4},{"$f":"ROW()","v":265},1]
[null,null,null,null,null,null,null,null,null,null,null,null,null,null,null,null,null,null,null,null,null,null,null,null,null,null,null,null,null,null,null,null,null,null,null,null,null,null,null,null,null,null,null,null,null,null,null,null,null,null,null,null,"COL0117722","Educación y sociedad",{"$f":"COUNTIF(BA$4:BA266,BA266)","v":1},{"$f":"ROW()","v":266},1]
[null,null,null,null,null,null,null,null,null,null,null,null,null,null,null,null,null,null,null,null,null,null,null,null,null,null,null,null,null,null,null,null,null,null,null,null,null,null,null,null,null,null,null,null,null,null,null,null,null,null,null,null,"COL0117722","Estudios Disciplinares en Contabilidad",{"$f":"COUNTIF(BA$4:BA267,BA267)","v":2},{"$f":"ROW()","v":267},1]
[null,null,null,null,null,null,null,null,null,null,null,null,null,null,null,null,null,null,null,null,null,null,null,null,null,null,null,null,null,null,null,null,null,null,null,null,null,null,null,null,null,null,null,null,null,null,null,null,null,null,null,null,"COL0126777","Animación experimental",{"$f":"COUNTIF(BA$4:BA268,BA268)","v":1},{"$f":"ROW()","v":268},1]
[null,null,null,null,null,null,null,null,null,null,null,null,null,null,null,null,null,null,null,null,null,null,null,null,null,null,null,null,null,null,null,null,null,null,null,null,null,null,null,null,null,null,null,null,null,null,null,null,null,null,null,null,"COL0126777","Audio y video",{"$f":"COUNTIF(BA$4:BA269,BA269)","v":2},{"$f":"ROW()","v":269},1]
[null,null,null,null,null,null,null,null,null,null,null,null,null,null,null,null,null,null,null,null,null,null,null,null,null,null,null,null,null,null,null,null,null,null,null,null,null,null,null,null,null,null,null,null,null,null,null,null,null,null,null,null,"COL0126777","Desarrollo Multimedia",{"$f":"COUNTIF(BA$4:BA270,BA270)","v":3},{"$f":"ROW()","v":270},1]
[null,null,null,null,null,null,null,null,null,null,null,null,null,null,null,null,null,null,null,null,null,null,null,null,null,null,null,null,null,null,null,null,null,null,null,null,null,null,null,null,null,null,null,null,null,null,null,null,null,null,null,null,"COL0126777","Narrativas digitales",{"$f":"COUNTIF(BA$4:BA271,BA271)","v":4},{"$f":"ROW()","v":271},1]
[null,null,null,null,null,null,null,null,null,null,null,null,null,null,null,null,null,null,null,null,null,null,null,null,null,null,null,null,null,null,null,null,null,null,null,null,null,null,null,null,null,null,null,null,null,null,null,null,null,null,null,null,"COL0142331","Competitividad industrial",{"$f":"COUNTIF(BA$4:BA272,BA272)","v":1},{"$f":"ROW()","v":272},1]
[null,null,null,null,null,null,null,null,null,null,null,null,null,null,null,null,null,null,null,null,null,null,null,null,null,null,null,null,null,null,null,null,null,null,null,null,null,null,null,null,null,null,null,null,null,null,null,null,null,null,null,null,"COL0142331","Innovación y educación en Ingenierěa",{"$f":"COUNTIF(BA$4:BA273,BA273)","v":2},{"$f":"ROW()","v":273},1]
[null,null,null,null,null,null,null,null,null,null,null,null,null,null,null,null,null,null,null,null,null,null,null,null,null,null,null,null,null,null,null,null,null,null,null,null,null,null,null,null,null,null,null,null,null,null,null,null,null,null,null,null,"COL0142331","Productividad industrial",{"$f":"COUNTIF(BA$4:BA274,BA274)","v":3},{"$f":"ROW()","v":274},1]
[null,null,null,null,null,null,null,null,null,null,null,null,null,null,null,null,null,null,null,null,null,null,null,null,null,null,null,null,null,null,null,null,null,null,null,null,null,null,null,null,null,null,null,null,null,null,null,null,null,null,null,null,"COL0142449","Bioética, derechos humanos y educación",{"$f":"COUNTIF(BA$4:BA275,BA275)","v":1},{"$f":"ROW()","v":275},1]
[null,null,null,null,null,null,null,null,null,null,null,null,null,null,null,null,null,null,null,null,null,null,null,null,null,null,null,null,null,null,null,null,null,null,null,null,null,null,null,null,null,null,null,null,null,null,null,null,null,null,null,null,"COL0142449","Cultura constitucional, paz y justicia transicional",{"$f":"COUNTIF(BA$4:BA276,BA276)","v":2},{"$f":"ROW()","v":276},1]
[null,null,null,null,null,null,null,null,null,null,null,null,null,null,null,null,null,null,null,null,null,null,null,null,null,null,null,null,null,null,null,null,null,null,null,null,null,null,null,null,null,null,null,null,null,null,null,null,null,null,null,null,"COL0142449","Política criminal, derecho penal y criminología",{"$f":"COUNTIF(BA$4:BA277,BA277)","v":3},{"$f":"ROW()","v":277},1]
[null,null,null,null,null,null,null,null,null,null,null,null,null,null,null,null,null,null,null,null,null,null,null,null,null,null,null,null,null,null,null,null,null,null,null,null,null,null,null,null,null,null,null,null,null,null,null,null,null,null,null,null,"COL0142449","Políticas públicas, derecho administrativo y desarrollo",{"$f":"COUNTIF(BA$4:BA278,BA278)","v":4},{"$f":"ROW()","v":278},1]
[null,null,null,null,null,null,null,null,null,null,null,null,null,null,null,null,null,null,null,null,null,null,null,null,null,null,null,null,null,null,null,null,null,null,null,null,null,null,null,null,null,null,null,null,null,null,null,null,null,null,null,null,"COL0142449","Propiedad intelectual y derechos de autor",{"$f":"COUNTIF(BA$4:BA279,BA279)","v":5},{"$f":"ROW()","v":279},1]
[null,null,null,null,null,null,null,null,null,null,null,null,null,null,null,null,null,null,null,null,null,null,null,null,null,null,null,null,null,null,null,null,null,null,null,null,null,null,null,null,null,null,null,null,null,null,null,null,null,null,null,null,"COL0142449","Sociología jurídica, derecho público y teoría jurídica",{"$f":"COUNTIF(BA$4:BA280,BA280)","v":6},{"$f":"ROW()","v":280},1]
[null,null,null,null,null,null,null,null,null,null,null,null,null,null,null,null,null,null,null,null,null,null,null,null,null,null,null,null,null,null,null,null,null,null,null,null,null,null,null,null,null,null,null,null,null,null,null,null,null,null,null,null,"COL0149359","Gestión de la educación y la academia",{"$f":"COUNTIF(BA$4:BA281,BA281)","v":1},{"$f":"ROW()","v":281},1]
[null,null,null,null,null,null,null,null,null,null,null,null,null,null,null,null,null,null,null,null,null,null,null,null,null,null,null,null,null,null,null,null,null,null,null,null,null,null,null,null,null,null,null,null,null,null,null,null,null,null,null,null,"COL0149359","Gestión de la salud publica",{"$f":"COUNTIF(BA$4:BA282,BA282)","v":2},{"$f":"ROW()","v":282},1]
[null,null,null,null,null,null,null,null,null,null,null,null,null,null,null,null,null,null,null,null,null,null,null,null,null,null,null,null,null,null,null,null,null,null,null,null,null,null,null,null,null,null,null,null,null,null,null,null,null,null,null,null,"COL0149359","Gestión de la ética y el conocimiento",{"$f":"COUNTIF(BA$4:BA283,BA283)","v":3},{"$f":"ROW()","v":283},1]
[null,null,null,null,null,null,null,null,null,null,null,null,null,null,null,null,null,null,null,null,null,null,null,null,null,null,null,null,null,null,null,null,null,null,null,null,null,null,null,null,null,null,null,null,null,null,null,null,null,null,null,null,"COL0151789","Aprovechamiento de residuos orgánicos",{"$f":"COUNTIF(BA$4:BA284,BA284)","v":1},{"$f":"ROW()","v":284},1]
[null,null,null,null,null,null,null,null,null,null,null,null,null,null,null,null,null,null,null,null,null,null,null,null,null,null,null,null,null,null,null,null,null,null,null,null,null,null,null,null,null,null,null,null,null,null,null,null,null,null,null,null,"COL0151789","Ecosostenibilidad en procesos de producción",{"$f":"COUNTIF(BA$4:BA285,BA285)","v":2},{"$f":"ROW()","v":285},1]
[null,null,null,null,null,null,null,null,null,null,null,null,null,null,null,null,null,null,null,null,null,null,null,null,null,null,null,null,null,null,null,null,null,null,null,null,null,null,null,null,null,null,null,null,null,null,null,null,null,null,null,null,"COL0151789","Estética del videojuego",{"$f":"COUNTIF(BA$4:BA286,BA286)","v":3},{"$f":"ROW()","v":286},1]
[null,null,null,null,null,null,null,null,null,null,null,null,null,null,null,null,null,null,null,null,null,null,null,null,null,null,null,null,null,null,null,null,null,null,null,null,null,null,null,null,null,null,null,null,null,null,null,null,null,null,null,null,"COL0151789","Ingeniería del terreno, geodesia y geofísica",{"$f":"COUNTIF(BA$4:BA287,BA287)","v":4},{"$f":"ROW()","v":287},1]
[null,null,null,null,null,null,null,null,null,null,null,null,null,null,null,null,null,null,null,null,null,null,null,null,null,null,null,null,null,null,null,null,null,null,null,null,null,null,null,null,null,null,null,null,null,null,null,null,null,null,null,null,"COL0151789","Museología",{"$f":"COUNTIF(BA$4:BA288,BA288)","v":5},{"$f":"ROW()","v":288},1]
[null,null,null,null,null,null,null,null,null,null,null,null,null,null,null,null,null,null,null,null,null,null,null,null,null,null,null,null,null,null,null,null,null,null,null,null,null,null,null,null,null,null,null,null,null,null,null,null,null,null,null,null,"COL0151789","Prevención y control de la contaminación",{"$f":"COUNTIF(BA$4:BA289,BA289)","v":6},{"$f":"ROW()","v":289},1]
[null,null,null,null,null,null,null,null,null,null,null,null,null,null,null,null,null,null,null,null,null,null,null,null,null,null,null,null,null,null,null,null,null,null,null,null,null,null,null,null,null,null,null,null,null,null,null,null,null,null,null,null,"COL0151789","Sensórica y sistemas inteligentes",{"$f":"COUNTIF(BA$4:BA290,BA290)","v":7},{"$f":"ROW()","v":290},1]
[null,null,null,null,null,null,null,null,null,null,null,null,null,null,null,null,null,null,null,null,null,null,null,null,null,null,null,null,null,null,null,null,null,null,null,null,null,null,null,null,null,null,null,null,null,null,null,null,null,null,null,null,"COL0152472","Autoinmunidad y Artritis Reumatoide",{"$f":"COUNTIF(BA$4:BA291,BA291)","v":1},{"$f":"ROW()","v":291},1]
[null,null,null,null,null,null,null,null,null,null,null,null,null,null,null,null,null,null,null,null,null,null,null,null,null,null,null,null,null,null,null,null,null,null,null,null,null,null,null,null,null,null,null,null,null,null,null,null,null,null,null,null,"COL0152472","Espondiloartritis",{"$f":"COUNTIF(BA$4:BA292,BA292)","v":2},{"$f":"ROW()","v":292},1]
[null,null,null,null,null,null,null,null,null,null,null,null,null,null,null,null,null,null,null,null,null,null,null,null,null,null,null,null,null,null,null,null,null,null,null,null,null,null,null,null,null,null,null,null,null,null,null,null,null,null,null,null,"COL0152319","Epidemiología Clínica",{"$f":"COUNTIF(BA$4:BA293,BA293)","v":1},{"$f":"ROW()","v":293},1]
[null,null,null,null,null,null,null,null,null,null,null,null,null,null,null,null,null,null,null,null,null,null,null,null,null,null,null,null,null,null,null,null,null,null,null,null,null,null,null,null,null,null,null,null,null,null,null,null,null,null,null,null,"COL0152319","Epidemiología General.",{"$f":"COUNTIF(BA$4:BA294,BA294)","v":2},{"$f":"ROW()","v":294},1]
[null,null,null,null,null,null,null,null,null,null,null,null,null,null,null,null,null,null,null,null,null,null,null,null,null,null,null,null,null,null,null,null,null,null,null,null,null,null,null,null,null,null,null,null,null,null,null,null,null,null,null,null,"COL0152319","Formación del Recurso Humano en Salud en Epidemiología y Salud Colectiva",{"$f":"COUNTIF(BA$4:BA295,BA295)","v":3},{"$f":"ROW()","v":295},1]
[null,null,null,null,null,null,null,null,null,null,null,null,null,null,null,null,null,null,null,null,null,null,null,null,null,null,null,null,null,null,null,null,null,null,null,null,null,null,null,null,null,null,null,null,null,null,null,null,null,null,null,null,"COL0152319","Las Tecnologías de la Información y de la comunicación en Epidemiología y Salud Colectiva",{"$f":"COUNTIF(BA$4:BA296,BA296)","v":4},{"$f":"ROW()","v":296},1]
[null,null,null,null,null,null,null,null,null,null,null,null,null,null,null,null,null,null,null,null,null,null,null,null,null,null,null,null,null,null,null,null,null,null,null,null,null,null,null,null,null,null,null,null,null,null,null,null,null,null,null,null,"COL0152319","Medicina tradicional complementaria.",{"$f":"COUNTIF(BA$4:BA297,BA297)","v":5},{"$f":"ROW()","v":297},1]
[null,null,null,null,null,null,null,null,null,null,null,null,null,null,null,null,null,null,null,null,null,null,null,null,null,null,null,null,null,null,null,null,null,null,null,null,null,null,null,null,null,null,null,null,null,null,null,null,null,null,null,null,"COL0178619","Administración, conservación, y manejo de Recursos Naturales Renovables",{"$f":"COUNTIF(BA$4:BA298,BA298)","v":1},{"$f":"ROW()","v":298},1]
[null,null,null,null,null,null,null,null,null,null,null,null,null,null,null,null,null,null,null,null,null,null,null,null,null,null,null,null,null,null,null,null,null,null,null,null,null,null,null,null,null,null,null,null,null,null,null,null,null,null,null,null,"COL0178619","Bioinnovación y educación",{"$f":"COUNTIF(BA$4:BA299,BA299)","v":2},{"$f":"ROW()","v":299},1]
[null,null,null,null,null,null,null,null,null,null,null,null,null,null,null,null,null,null,null,null,null,null,null,null,null,null,null,null,null,null,null,null,null,null,null,null,null,null,null,null,null,null,null,null,null,null,null,null,null,null,null,null,"COL0178619","Biología de poblaciones y evolutiva de plantas, animales y microorganismos",{"$f":"COUNTIF(BA$4:BA300,BA300)","v":3},{"$f":"ROW()","v":300},1]
[null,null,null,null,null,null,null,null,null,null,null,null,null,null,null,null,null,null,null,null,null,null,null,null,null,null,null,null,null,null,null,null,null,null,null,null,null,null,null,null,null,null,null,null,null,null,null,null,null,null,null,null,"COL0178619","Cambio climático",{"$f":"COUNTIF(BA$4:BA301,BA301)","v":4},{"$f":"ROW()","v":301},1]
[null,null,null,null,null,null,null,null,null,null,null,null,null,null,null,null,null,null,null,null,null,null,null,null,null,null,null,null,null,null,null,null,null,null,null,null,null,null,null,null,null,null,null,null,null,null,null,null,null,null,null,null,"COL0178619","Ecofisiología vegetal, animal y microbiana",{"$f":"COUNTIF(BA$4:BA302,BA302)","v":5},{"$f":"ROW()","v":302},1]
[null,null,null,null,null,null,null,null,null,null,null,null,null,null,null,null,null,null,null,null,null,null,null,null,null,null,null,null,null,null,null,null,null,null,null,null,null,null,null,null,null,null,null,null,null,null,null,null,null,null,null,null,"COL0178619","Servicios ecosistèmicos",{"$f":"COUNTIF(BA$4:BA303,BA303)","v":6},{"$f":"ROW()","v":303},1]
[null,null,null,null,null,null,null,null,null,null,null,null,null,null,null,null,null,null,null,null,null,null,null,null,null,null,null,null,null,null,null,null,null,null,null,null,null,null,null,null,null,null,null,null,null,null,null,null,null,null,null,null,"COL0179618","Biochips",{"$f":"COUNTIF(BA$4:BA304,BA304)","v":1},{"$f":"ROW()","v":304},1]
[null,null,null,null,null,null,null,null,null,null,null,null,null,null,null,null,null,null,null,null,null,null,null,null,null,null,null,null,null,null,null,null,null,null,null,null,null,null,null,null,null,null,null,null,null,null,null,null,null,null,null,null,"COL0179618","Diseño y fabricación de sistemas para producción de nanomateriales",{"$f":"COUNTIF(BA$4:BA305,BA305)","v":2},{"$f":"ROW()","v":305},1]
[null,null,null,null,null,null,null,null,null,null,null,null,null,null,null,null,null,null,null,null,null,null,null,null,null,null,null,null,null,null,null,null,null,null,null,null,null,null,null,null,null,null,null,null,null,null,null,null,null,null,null,null,"COL0179618","Nanofotónica, sensórica y nanotecnología",{"$f":"COUNTIF(BA$4:BA306,BA306)","v":3},{"$f":"ROW()","v":306},1]
[null,null,null,null,null,null,null,null,null,null,null,null,null,null,null,null,null,null,null,null,null,null,null,null,null,null,null,null,null,null,null,null,null,null,null,null,null,null,null,null,null,null,null,null,null,null,null,null,null,null,null,null,"COL0179618","Termo-electrónica",{"$f":"COUNTIF(BA$4:BA307,BA307)","v":4},{"$f":"ROW()","v":307},1]
[null,null,null,null,null,null,null,null,null,null,null,null,null,null,null,null,null,null,null,null,null,null,null,null,null,null,null,null,null,null,null,null,null,null,null,null,null,null,null,null,null,null,null,null,null,null,null,null,null,null,null,null,"COL0191078","Tomografia óptica coherente",{"$f":"COUNTIF(BA$4:BA308,BA308)","v":1},{"$f":"ROW()","v":308},1]
[null,null,null,null,null,null,null,null,null,null,null,null,null,null,null,null,null,null,null,null,null,null,null,null,null,null,null,null,null,null,null,null,null,null,null,null,null,null,null,null,null,null,null,null,null,null,null,null,null,null,null,null,"COL0191078","Enfermedades agudas y cronicas por exposición a agentes químicos y radiológicos",{"$f":"COUNTIF(BA$4:BA309,BA309)","v":2},{"$f":"ROW()","v":309},1]
[null,null,null,null,null,null,null,null,null,null,null,null,null,null,null,null,null,null,null,null,null,null,null,null,null,null,null,null,null,null,null,null,null,null,null,null,null,null,null,null,null,null,null,null,null,null,null,null,null,null,null,null,"COL0191078","Toxinología",{"$f":"COUNTIF(BA$4:BA310,BA310)","v":3},{"$f":"ROW()","v":310},1]

{"sheet":"Datos_Generales","index":1,"n_rows":68,"n_cols":14,"rows_kept":68,"cut":false,"hidden":false,"merged":[[2,1,3,7],[45,2,45,3],[21,3,21,7],[9,3,9,7],[10,4,10,7],[35,4,35,6],[15,6,15,7],[13,3,13,4],[13,6,13,7],[14,3,14,4],[15,3,15,4],[11,3,11,7],[23,6,23,7],[44,2,44,3],[44,4,44,7]]}
[10,11,"2016-07-07"]
[]
[null,"PRESENTACIÓN DE PROYECTOS \nDE INICIACIÓN CIENTIFÍCA 2020 - 1"]
[]
[null,null,null,null,null,null,null,null,null,null,"No","Hoja ","Validacion","Pendientes"]
[null,null,"Datos digilenciados VICIEIN.",null,"Código :",null,"Radicado :",null,null,null,1,"Datos Generales","Datos Generales sin llenar. = > >",{"$f":"SUM(I8:I45)","v":6}]
[]
[null,"1.","INFORMACION GENERAL DEL PROYECTO:",null,null,"Vrs.05.21","Facultad  :",null,{"$f":"IF(H8=0,1,\"\")","v":1},null,2,"Resumen","Hay textos en resumen",{"$f":"IF(Resumen!K4>0,\"OK :\"&Resumen!K4&\" Lt:\"&Resumen!K5,\"Falta\")","v":"Falta"}]
[]
[null,null,"Título",null,null,null,null,null,{"$f":"IF(D10=0,1,\"\")","v":1}]
[null,"2.","Tutor del proyecto",null,null,null,null,null,null,null,3,"Descripcion","Hay Textos en Descripcion ",{"$f":"IF(Descripción!K5>0,\"OK :\"&Descripción!K5&\" Lt:\"&Descripción!K6,\"Falta\")","v":"Falta"}]
[null,null,"Nombre :",null,null,null,null,null,{"$f":"IF(E12=0,1,\"\")","v":1}]
[]
[null,null,"Dirección: ",null,null,"Tipo de Convocatoria:","Proyecto de Iniciación Cientifica PIC",null,{"$f":"IF(G14=0,1,\"\")","v":""},null,4,"Objevos ","Hay Objetivo General ",{"$f":"IF(Objetivos!K9>0,\"OK\",\"Falta\")","v":"Falta"}]
[null,null,"Teléfonos: ",null,null,null,"Fax: ",null,null,null,5,"Objevos ","Hay Objetivos Especificos ",{"$f":"IF(Objetivos!K11>0,\"OK\",\"Falta\")","v":"Falta"}]
[null,null,"Ciudad: ",null,null,"E-mail:",null,null,{"$f":"IF(G16=0,1,\"\")","v":1}]
[null,null,null,null,null,null,null,null,null,null,6,"Metodologia","Hay textos en Metodología.",{"$f":"IF(Metodología!K5>0,\"OK\",\"Falta\")","v":"Falta"}]
[null,"3.","Nombre del Grupo de Investigación:"]
[null,null,"Agua y Energía - AyE",null,null,null,"Reconocido:",{"$f":"IFERROR(VLOOKUP($H$20,Opciones!$G$16:$H$22,2,0),\"NA\")","v":"Si"},{"$f":"IF(C19=0,1,\"\")","v":""},{"$f":"VLOOKUP($C$19,Opciones!AP3:AQ73,2,0)","v":"COL0026486"},7,"Estado del Arte","Hay textos en estado del arte.",{"$f":"IF(Estado_del_Arte!K5>0,\"OK\",\"Falta\")","v":"Falta"}]
[null,null,null,null,null,null,"Clasificación: ",{"$f":"IFERROR(VLOOKUP($C$19,Opciones!$AP$3:$AR$73,3,0),\"NR\")","v":"C"}]
[]
[null,null,"Línea de investigación: ","Procesos físico-químicos y de oxidación avanzada",null,null,null,null,{"$f":"IF(AND(E22=0,E23=0),1,\"\")","v":1},{"$f":"VLOOKUP($C$19,Opciones!AP3:AW73,5,0)","v":"BB206:BB210"},null,{"$f":"IF(J23=0,D22,\" \")","v":" "}]
[null,null,null,null,null,null,null,null,null,{"$f":"COUNTIF($L$57:$L$68,D22)","v":1},8,"Cronograma","Hay actividades de Cronograma",{"$f":"IF(Cronograma!K10=0,\"Falta\",Cronograma!K10)","v":"Falta"}]
[null,null,"Programa o Departamento de la UMNG al cual pertenece el tutor:",null,null,null,null,null,{"$f":"IF(G24=0,1,\"\")","v":1},null,9,"Cronograma","Hay fechas que superen vigencias",{"$f":"IF(N23=\"Falta\",\"NA\",IF(Cronograma!L10>0,\"Ojo Tiene :\"&Cronograma!L10,\"OK\"))","v":"NA"}]
[]
[null,null,null,null,null,null,null,null,null,null,10,"Productos",{"$f":"\"No. Producción en Categoría \"&PD!$C36&\" :\"","v":"No. Producción en Categoría GNC :"},{"$f":"PD!$H36","v":0}]
[null,null,null,null,null,null,null,null,null,null,11,"Productos",{"$f":"\"No. Producción en Categoría \"&PD!$C37&\" :\"","v":"No. Producción en Categoría FRH :"},{"$f":"PD!$H37","v":0}]
[null,null,null,null,null,null,null,null,null,null,12,"Productos",{"$f":"\"No. Producción en Categoría \"&PD!$C38&\" :\"","v":"No. Producción en Categoría SAC :"},{"$f":"PD!$H38","v":0}]
[null,null,null,null,null,null,null,null,null,null,13,"Productos",{"$f":"\"No. Producción en Categoría \"&PD!$C39&\" :\"","v":"No. Producción en Categoría GI :"},{"$f":"PD!$H39","v":0}]
[]
[null,null,null,null,null,null,null,null,null,null,14,"Productos","No. Productos sin llenar datos.",{"$f":"PD!L7","v":0}]
[]
[null,null,null,null,null,null,null,null,null,null,15,"Integrantes","Investigadores Principales",{"$f":"Integrantes!Q33","v":0}]
[null,4,"Productividad comprometida",null,null,{"$f":"VLOOKUP(C35,Opciones!#REF!,2,0)","v":{"$error":"#REF!"}}]
[null,null,null,null,null,null,null,null,null,null,16,"Integrantes","No. Coinvestigadores :",{"$f":"Integrantes!#REF!","v":{"$error":"#REF!"}}]
[null,null,"Producto a generar:"]
[null,null,null,null,null,null,null,null,null,null,17,"Integrantes","No. Asistente Investigación",{"$f":"Integrantes!#REF!","v":{"$error":"#REF!"}}]
[null,null,"Articulo Sometido",null,"Productos Obligatorios:",null,null,null,null,null,18,"Integrantes","No. Joven Investigador",{"$f":"Integrantes!#REF!","v":{"$error":"#REF!"}}]
[null,null,"Cartilla",null,"1,. Informe Final del Proyecto en el formato dispuesto para tal fin."]
[null,null,"Manual ",null,"2,. Carta anexa con conclusiones y experiencias del estudiante.",null,null,null,null,null,19,"Integrantes","No. Asistente Graduado",{"$f":"Integrantes!#REF!","v":{"$error":"#REF!"}}]
[null,null,"Ponencia",null,null,null,null,null,null,null,20,"Integrantes","No. Tutor ",{"$f":"Integrantes!#REF!","v":{"$error":"#REF!"}}]
[null,null,"Participacion Ciudadana",null,null,null,null,null,null,null,21,"Integrantes","No. Tutores",{"$f":"Integrantes!O10","v":1}]
[null,5,"Detalles de ejecución de proyecto",null,null,null,null,null,null,null,22,"Presupuesto ","No. Doc. Acompañantes",{"$f":"Integrantes!O11","v":0}]
[null,null,null,null,null,null,null,null,null,null,22,"Presupuesto ","No. Estudiante",{"$f":"Integrantes!O12","v":0}]
[null,null,"Sede de Ejecución del Proyecto:",null,"Bogotá",null,null,null,{"$f":"IF(E45=0,1,\"\")","v":""}]
[null,null,"Duración del Proyecto (en meses):",null,5,null,"Presup. VICEIN : $",{"$f":"Presupuesto","v":0},null,null,18,"Impactos",{"$f":"\"Se Regitran:\"&Impactos!L6&\", con No Letras :\"","v":"Se Regitran:0, con No Letras :"},{"$f":"Impactos!L5","v":0}]
[null,null,null,null,null,null,null,null,null,null,19,"Grupos ","Hay registros sin diligenciar en Grupos",{"$f":"Grupo!L5","v":9}]
[null,null,null,null,null,null,"",null,null,null,20,"BiblioGrafica","Datos de referencia bibliografica",{"$f":"Biblografia!L4","v":0}]
[]
[]
[null,null,"Grupo"]
[null,null,null,null,null,null,null,null,null,null,null,"Presupuesto por parte de la Facultad:"]
[null,null,null,null,null,null,null,null,null,null,null,{"$f":"Presupuesto!H80","v":0}]
[]
[null,null,"Version : 01 Nov 2021"]
[null,null,null,null,null,null,null,null,null,"Lineas","BB",{"$f":"VLOOKUP($J19,Opciones!$AQ$3:$AW$73,6,0)","v":206},{"$f":"VLOOKUP($J19,Opciones!$AQ$3:$AW$73,7,0)","v":210},{"$f":"M56-L56","v":4}]
[null,null,"Anterior Version :  04 Oct 2017",null,null,null,null,null,null,{"$f":"J19","v":"COL0026486"},0,{"$f":"INDIRECT(\"opciones!\"&$K$56&(L$56+$K57),1)","v":"Biorefinerias"}]
[null,null,null,null,null,null,null,null,null,{"$f":"J22","v":"BB206:BB210"},{"$f":"IF(K57<$N$56,K57+1,\"x\")","v":1},{"$f":"IFERROR(INDIRECT(\"opciones!\"&$K$56&(L$56+$K58),1),\" x\")","v":"Ciudades Sostenibles"}]
[null,null,"Version : 21 May 2019",null,null,null,null,null,null,null,{"$f":"IF(K58<$N$56,K58+1,\"x\")","v":2},"Ingeniería Offshore."]
[null,null,null,null,null,null,null,null,null,null,3,"Ingeniería de recursos hídricos y energéticos."]
[null,null,null,null,null,null,null,null,null,null,4,"Procesos físico-químicos y de oxidación avanzada"]
[null,null,null,null,null,null,null,null,null,null,{"$f":"IF(K61<$N$56,K61+1,\"x\")","v":"x"}," x"]
[null,null,null,null,null,null,null,null,null,null,"x",{"$f":"IFERROR(INDIRECT(\"opciones!\"&$K$56&(L$56+$K63),1),\" x\")","v":" x"}]
[null,null,null,null,null,null,null,null,null,null,"x"," x"]
[null,null,null,null,null,null,null,null,null,null,"x"," x"]
[null,null,null,null,null,null,null,null,null,null,"x"," x"]
[null,null,null,null,null,null,null,null,null,null,"x"," x"]
[null,null,null,null,null,null,null,null,null,null,"x"," x"]

{"sheet":"Resumen","index":2,"n_rows":18,"n_cols":12,"rows_kept":18,"cut":false,"hidden":false,"merged":[[3,1,4,7],[17,2,17,7],[16,2,16,7],[8,2,8,7],[9,2,9,7],[11,2,11,7],[10,2,10,7],[12,2,12,7],[13,2,13,7],[14,2,14,7],[15,2,15,7]]}
[]
[]
[]
[null,{"$f":"Datos_Generales!B3","v":"PRESENTACIÓN DE PROYECTOS \nDE INICIACIÓN CIENTIFÍCA 2020 - 1"},null,null,null,null,null,null,null,null,{"$f":"COUNTIF(C9:H80,\"<>\"&\"\")","v":0},"=> Numero de resgistros de resumenes diligenciados."]
[null,null,null,null,null,null,null,null,null,null,{"$f":"SUM(K9:K80)","v":0},"=> Numero de caracteres diligenciados"]
[null,null,null,null,null,null,null,null,null,null,"Tener en cuenta "]
[null,"6.","Resumen de Proyecto - Maximo 500 Caracteres.",null,null,null,null,null,null,null,"No debe tener mas de 999 caracteres por celda o de largo"]
[null,null,null,null,null,null,null,null,null,null,"Validación en número de caracteres"]
[null,1,null,null,null,null,null,null,null,null,{"$f":"LEN(C9)","v":0}]
[null,2,null,null,null,null,null,null,null,null,{"$f":"LEN(C10)","v":0}]
[null,3,null,null,null,null,null,null,null,null,{"$f":"LEN(C11)","v":0}]
[null,4,null,null,null,null,null,null,null,null,{"$f":"LEN(C12)","v":0}]
[null,5,null,null,null,null,null,null,null,null,0]
[null,6,null,null,null,null,null,null,null,null,0]
[null,7,null,null,null,null,null,null,null,null,0]
[null,8,null,null,null,null,null,null,null,null,0]
[null,9,null,null,null,null,null,null,null,null,0]
[null,null,null,null,null,null,null,null,null,null,0]

{"sheet":"Descripción","index":3,"n_rows":25,"n_cols":12,"rows_kept":25,"cut":false,"hidden":false,"merged":[[24,2,24,7],[9,2,9,7],[10,2,10,7],[11,2,11,7],[12,2,12,7],[17,2,17,7],[18,2,18,7],[19,2,19,7],[20,2,20,7],[21,2,21,7],[22,2,22,7],[23,2,23,7],[13,2,13,7],[14,2,14,7],[15,2,15,7],[16,2,16,7],[3,1,4,7]]}
[]
[]
[]
[null,{"$f":"Resumen!B4","v":"PRESENTACIÓN DE PROYECTOS \nDE INICIACIÓN CIENTIFÍCA 2020 - 1"}]
[null,null,null,null,null,null,null,null,null,null,{"$f":"COUNTIF(C10:H81,\"<>\"&\"\")","v":0},"=> Numero de resgistros de descripción diligenciados."]
[null,null,null,null,null,null,null,null,null,null,{"$f":"SUM(K10:K81)","v":0},"=> Numero de caracteres diligenciados"]
[null,"7.","ESTRUCTURA DEL PROYECTO",null,null,null,null,null,null,null,"Tener en cuenta "]
[null,"a.","Descripción y Justificación del Proyecto ",null,null,null,null,null,null,null,"Tener en cuenta "]
[null,null,null,null,null,null,null,null,null,null,"No debe tener mas de 999 caracteres o de largo"]
[null,null,null,null,null,null,null,null,null,null,{"$f":"LEN(C10)","v":0}]
[null,null,null,null,null,null,null,null,null,null,{"$f":"LEN(C11)","v":0}]
[null,null,null,null,null,null,null,null,null,null,0]
[null,null,null,null,null,null,null,null,null,null,0]
[null,null,null,null,null,null,null,null,null,null,0]
[null,null,null,null,null,null,null,null,null,null,0]
[null,null,null,null,null,null,null,null,null,null,0]
[null,null,null,null,null,null,null,null,null,null,0]
[null,null,null,null,null,null,null,null,null,null,0]
[null,null,null,null,null,null,null,null,null,null,0]
[null,null,null,null,null,null,null,null,null,null,0]
[null,null,null,null,null,null,null,null,null,null,0]
[null,null,null,null,null,null,null,null,null,null,0]
[null,null,null,null,null,null,null,null,null,null,0]
[null,null,null,null,null,null,null,null,null,null,0]
[null,null,null,null,null,null,null,null,null,null,0]

{"sheet":"Objetivos","index":4,"n_rows":28,"n_cols":11,"rows_kept":28,"cut":false,"hidden":false,"merged":[[8,2,8,7],[12,2,12,7],[13,2,13,7],[14,2,14,7],[2,1,4,7],[15,2,15,7],[27,2,27,7],[16,2,16,7],[17,2,17,7],[18,2,18,7],[19,2,19,7],[20,2,20,7],[21,2,21,7],[22,2,22,7],[23,2,23,7],[24,2,24,7],[25,2,25,7],[26,2,26,7]]}
[]
[]
[null,{"$f":"Resumen!B4","v":"PRESENTACIÓN DE PROYECTOS \nDE INICIACIÓN CIENTIFÍCA 2020 - 1"}]
[]
[]
[null,null,null,null,null,null,null,null,null,null,"Tener en cuenta "]
[null,"8.a","Información Objetivo -  General ",null,null,null,null,{"$f":"PD!J7","v":"PIC"},null,null,"Tener en cuenta "]
[null,null,null,null,null,null,null,null,null,null,"No debe tener mas de 999 caracteres o de largo"]
[null,">>",null,null,null,null,null,null,null,null,{"$f":"LEN(C9)","v":0}]
[]
[null,"8.b","Información Objetivos -  Especificos",null,null,null,null,null,null,null,{"$f":"SUM(K14:K43)","v":0}]
[]
[null,"No ","Detalle del Objetivo"]
[null,1,null,null,null,null,null,null,null,null,{"$f":"LEN(C14)","v":0}]
[null,2,null,null,null,null,null,null,null,null,0]
[null,3,null,null,null,null,null,null,null,null,0]
[null,4,null,null,null,null,null,null,null,null,0]
[null,5,null,null,null,null,null,null,null,null,0]
[null,6,null,null,null,null,null,null,null,null,0]
[null,7,null,null,null,null,null,null,null,null,0]
[null,8,null,null,null,null,null,null,null,null,0]
[null,9,null,null,null,null,null,null,null,null,0]
[null,10,null,null,null,null,null,null,null,null,0]
[null,11,null,null,null,null,null,null,null,null,0]
[null,12,null,null,null,null,null,null,null,null,0]
[null,13,null,null,null,null,null,null,null,null,0]
[null,14,null,null,null,null,null,null,null,null,0]
[null,15,null,null,null,null,null,null,null,null,0]

{"sheet":"Metodología","index":5,"n_rows":22,"n_cols":11,"rows_kept":22,"cut":false,"hidden":false,"merged":[[21,2,21,7],[3,1,4,7],[17,2,17,7],[18,2,18,7],[19,2,19,7],[20,2,20,7],[14,2,14,7],[15,2,15,7],[16,2,16,7],[13,2,13,7],[9,2,9,7],[10,2,10,7],[11,2,11,7],[12,2,12,7]]}
[]
[]
[]
[null,{"$f":"Datos_Generales!B3","v":"PRESENTACIÓN DE PROYECTOS \nDE INICIACIÓN CIENTIFÍCA 2020 - 1"}]
[null,null,null,null,null,null,null,null,null,null,{"$f":"SUM(K10:K133)","v":0}]
[]
[null,"9.","ESTRUCTURA DEL PROYECTO",null,null,null,null,null,null,null,"Tener en cuenta "]
[null,"a.","Metodología propuesta para alcanzar cada uno de los objetivos específicos propuestos",null,null,null,null,null,null,null,"No debe tener mas de 999 caracteres por celda o de largo"]
[null,null,null,null,null,null,null,null,null,null,"Validación en número de caracteres"]
[null,1,null,null,null,null,null,null,null,null,{"$f":"LEN(C10)","v":0}]
[null,{"$f":"B10+1","v":2},null,null,null,null,null,null,null,null,{"$f":"LEN(C11)","v":0}]
[null,{"$f":"B11+1","v":3},null,null,null,null,null,null,null,null,0]
[null,4,null,null,null,null,null,null,null,null,0]
[null,5,null,null,null,null,null,null,null,null,0]
[null,6,null,null,null,null,null,null,null,null,0]
[null,7,null,null,null,null,null,null,null,null,0]
[null,8,null,null,null,null,null,null,null,null,0]
[null,9,null,null,null,null,null,null,null,null,0]
[null,10,null,null,null,null,null,null,null,null,0]
[null,11,null,null,null,null,null,null,null,null,0]
[null,12,null,null,null,null,null,null,null,null,0]
[null,13,null,null,null,null,null,null,null,null,0]

{"sheet":"Estado_del_Arte","index":6,"n_rows":25,"n_cols":11,"rows_kept":25,"cut":false,"hidden":false,"merged":[[15,1,15,7],[16,1,16,7],[17,1,17,7],[18,1,18,7],[24,1,24,7],[19,1,19,7],[20,1,20,7],[21,1,21,7],[22,1,22,7],[23,1,23,7],[3,1,4,7],[14,1,14,7],[13,1,13,7],[9,1,9,7],[10,1,10,7],[11,1,11,7],[12,1,12,7]]}
[]
[]
[]
[null,{"$f":"Datos_Generales!B3","v":"PRESENTACIÓN DE PROYECTOS \nDE INICIACIÓN CIENTIFÍCA 2020 - 1"}]
[null,null,null,null,null,null,null,null,null,null,{"$f":"SUM(K10:K313)","v":0}]
[]
[null,"10.","ESTRUCTURA DEL PROYECTO",null,null,null,null,null,null,null,"Tener en cuenta "]
[null,"b.","Estado del arte de la investigación, innovacion o emprendimiento",null,null,null,null,null,null,null,"No debe tener mas de 999 caracteres por celda o de largo"]
[null,null,null,null,null,null,null,null,null,null,"Validación en número de caracteres"]
[null,null,null,null,null,null,null,null,null,null,{"$f":"LEN(B10)","v":0}]
[null,null,null,null,null,null,null,null,null,null,{"$f":"LEN(B11)","v":0}]
[null,null,null,null,null,null,null,null,null,null,0]
[null,null,null,null,null,null,null,null,null,null,0]
[null,null,null,null,null,null,null,null,null,null,0]
[null,null,null,null,null,null,null,null,null,null,0]
[null,null,null,null,null,null,null,null,null,null,0]
[null,null,null,null,null,null,null,null,null,null,0]
[null,null,null,null,null,null,null,null,null,null,0]
[null,null,null,null,null,null,null,null,null,null,0]
[null,null,null,null,null,null,null,null,null,null,0]
[null,null,null,null,null,null,null,null,null,null,0]
[null,null,null,null,null,null,null,null,null,null,0]
[null,null,null,null,null,null,null,null,null,null,0]
[null,null,null,null,null,null,null,null,null,null,0]
[null,null,null,null,null,null,null,null,null,null,0]

{"sheet":"Marco_Teorico","index":7,"n_rows":25,"n_cols":11,"rows_kept":25,"cut":false,"hidden":false,"merged":[[19,1,19,7],[3,1,4,5],[9,1,9,7],[10,1,10,7],[11,1,11,7],[12,1,12,7],[13,1,13,7],[14,1,14,7],[15,1,15,7],[16,1,16,7],[17,1,17,7],[18,1,18,7],[20,1,20,7],[21,1,21,7],[22,1,22,7],[23,1,23,7],[24,1,24,7]]}
[]
[]
[]
[null,{"$f":"Datos_Generales!B3","v":"PRESENTACIÓN DE PROYECTOS \nDE INICIACIÓN CIENTIFÍCA 2020 - 1"},null,null,null,null,"Fecha de Emisión: 2014/07/31","IN-IV-F-14"]
[null,null,null,null,null,null,"Revision N°:\n1","Marco Teorico",null,null,{"$f":"SUM(K10:K313)","v":0}]
[]
[null,"9.","ESTRUCTURA DEL PROYECTO",null,null,null,null,null,null,null,"Tener en cuenta "]
[null,"c.","Marco Teorico",null,null,null,null,null,null,null,"No debe tener mas de 999 caracteres por celda o de largo"]
[null,null,null,null,null,null,null,null,null,null,"Validación en número de caracteres"]
[null,null,null,null,null,null,null,null,null,null,{"$f":"LEN(B10)","v":0}]
[null,null,null,null,null,null,null,null,null,null,{"$f":"LEN(B11)","v":0}]
[null,null,null,null,null,null,null,null,null,null,0]
[null,null,null,null,null,null,null,null,null,null,0]
[null,null,null,null,null,null,null,null,null,null,0]
[null,null,null,null,null,null,null,null,null,null,0]
[null,null,null,null,null,null,null,null,null,null,0]
[null,null,null,null,null,null,null,null,null,null,0]
[null,null,null,null,null,null,null,null,null,null,0]
[null,null,null,null,null,null,null,null,null,null,0]
[null,null,null,null,null,null,null,null,null,null,0]
[null,null,null,null,null,null,null,null,null,null,0]
[null,null,null,null,null,null,null,null,null,null,0]
[null,null,null,null,null,null,null,null,null,null,0]
[null,null,null,null,null,null,null,null,null,null,0]
[null,null,null,null,null,null,null,null,null,null,0]

{"sheet":"Cronograma","index":8,"n_rows":24,"n_cols":12,"rows_kept":24,"cut":false,"hidden":false,"merged":[[3,1,4,7],[24,2,24,7],[10,2,10,5],[11,2,11,5],[12,2,12,5],[13,2,13,5],[14,2,14,5],[15,2,15,5],[16,2,16,5],[17,2,17,5],[18,2,18,5],[19,2,19,5],[20,2,20,5],[21,2,21,5],[22,2,22,5],[23,2,23,5]]}
[]
[]
[]
[null,{"$f":"Datos_Generales!B3","v":"PRESENTACIÓN DE PROYECTOS \nDE INICIACIÓN CIENTIFÍCA 2020 - 1"},null,null,null,null,null,null,null,null,"Se pasan de Vigencia :",{"$f":"COUNTIF(L12:L24,\">\"&meses)","v":0}]
[]
[]
[null,"T","Tiempo total maximo de ejecucion por convocatoria (Meses): ",null,null,null,{"$f":"IFERROR(VLOOKUP(Elec_Conv,Conv_Opc,3,0),\"\")","v":5},null,null,null,"Tener en cuenta "]
[null,null,null,null,null,null,null,null,null,null,"No debe tener mas de 999 caracteres por celda o de largo"]
[null,"11.","Cronograma de Actividades ",null,null,null,null,null,null,null,"Validación en número de caracteres"]
[null,null,null,null,null,null,null,null,null,null,{"$f":"COUNTIF(K12:K26,\">\"&0)","v":0},{"$f":"COUNTIF(L12:L24,\">\"&meses)","v":0}]
[null,"No","Descripción de la(s) actividad(es) asociada(s) a cada objetivo específico",null,null,null,"Mes de Inicio","Meses de Duracion",null,null,"Validación en número de caracteres","Validación en Número de meses"]
[null,1,null,null,null,null,null,null,null,null,{"$f":"LEN(C12)","v":0},{"$f":"G12+H12","v":0}]
[null,{"$f":"B12+1","v":2},null,null,null,null,null,null,null,null,0,0]
[null,{"$f":"B13+1","v":3},null,null,null,null,null,null,null,null,0,0]
[null,4,null,null,null,null,null,null,null,null,0,0]
[null,5,null,null,null,null,null,null,null,null,0,0]
[null,6,null,null,null,null,null,null,null,null,0,0]
[null,7,null,null,null,null,null,null,null,null,{"$f":"LEN(C18)","v":0},{"$f":"G18+H18","v":0}]
[null,8,null,null,null,null,null,null,null,null,0,0]
[null,9,null,null,null,null,null,null,null,null,0,0]
[null,10,null,null,null,null,null,null,null,null,0,0]
[null,11,null,null,null,null,null,null,null,null,0,0]
[null,12,null,null,null,null,null,null,null,null,0,0]
[null,"T",{"$f":"IF(L4>0,\"Nota : Tiene \"&L4&\" que sobrepasan la duración del proyecto\",\"\")","v":""},null,null,null,null,null,null,null,0,0]

{"sheet":"PD","index":9,"n_rows":49,"n_cols":26,"rows_kept":49,"cut":false,"hidden":false,"merged":[[24,2,24,3],[24,8,24,9],[28,2,28,3],[28,8,28,9],[29,2,29,3],[29,8,29,9],[25,2,25,3],[25,8,25,9],[26,2,26,3],[26,8,26,9],[27,2,27,3],[27,8,27,9],[21,2,21,3],[21,8,21,9],[22,2,22,3],[22,8,22,9],[23,2,23,3],[23,8,23,9],[18,2,18,3],[18,8,18,9],[19,2,19,3],[19,8,19,9],[20,2,20,3],[20,8,20,9],[15,2,15,3],[15,8,15,9],[16,2,16,3],[16,8,16,9],[17,2,17,3],[17,8,17,9],[12,8,12,9],[13,2,13,3],[13,8,13,9],[14,2,14,3],[14,8,14,9],[3,6,3,7],[4,6,4,7],[3,1,4,5],[30,8,30,9],[7,15,7,20],[3,8,3,9],[4,8,4,9],[8,2,8,3],[8,8,8,9],[9,2,9,3],[9,8,9,9],[10,2,10,3],[10,8,10,9],[11,2,11,3],[11,8,11,9],[12,2,12,3]]}
[]
[]
[]
[null,{"$f":"Datos_Generales!B3","v":"PRESENTACIÓN DE PROYECTOS \nDE INICIACIÓN CIENTIFÍCA 2020 - 1"},null,null,null,null,"Fecha de Emisión: 2014/07/31",null,"IN-IV-F-14"]
[null,null,null,null,null,null,"Revision N°:\n1",null,"Productividad",null,null,null,null,null,null,"INV","IMP","PIC","INO","PRO","EMP"]
[null,null,null,null,null,null,null,null,null,null,null,null,null,null,null,3,{"$f":"P6+1","v":4},{"$f":"Q6+1","v":5},{"$f":"R6+1","v":6},{"$f":"S6+1","v":7},{"$f":"T6+1","v":8}]
[null,"11.","Información de productividad comprometida del proyecto.",null,null,null,null,{"$f":"HLOOKUP(J7,P5:U7,2,0)","v":5},{"$f":"H31","v":0},{"$f":"IFERROR(Integrantes!I7,\"NA\")","v":"PIC"},null,{"$f":"SUM(K10:K30)","v":0}]
[null,null,null,null,null,null,null,{"$f":"Integrantes!S10","v":0},null,null,null,null,null,null,null,"Puntajes Asociados "]
[null,"No","Resultado/Producto esperado",null,"Descripción o detalles del producto esperado","Indicador","Cantidad","Total Puntos","Beneficiario de la optención del Prod.",null,null,null,null,"Abreviatura","IdClase","INV","IMP","PIC","INO","PRO","EMP","Clase ","Tipo de Productos","Indicadores","o"]
[null,1,null,null,null,{"$f":"IFERROR(VLOOKUP($C10,Tabla_prod,11,0),\" \")","v":" "},1,{"$f":"IFERROR(VLOOKUP($C10,Tabla_prod,$H$7,0)*G10,0)","v":0},null,null,{"$f":"IF(C10<>0,IF(AND(E10<>0,I10<>0),0,1),0)","v":0},{"$f":"IFERROR(VLOOKUP($C10,$N$9:$O$201,2,0),0)","v":0},null,"Articulo Q1","GNC",60,60,0,0,0,0,"Productos de Generación de Nuevo Conocimiento (GNC) ","En Cuartil 1 (Q1) de Scimago ","Sometido","o"]
[null,2,null,null,null," ",1,{"$f":"IFERROR(VLOOKUP($C11,Tabla_prod,$H$7,0)*G11,0)","v":0},null,null,{"$f":"IF(C11<>0,IF(AND(E11<>0,I11<>0),0,1),0)","v":0},0,null,"Articulo Q2","GNC",50,50,0,0,0,0,"Productos de Generación de Nuevo Conocimiento (GNC) ","En Cuartil 2 (Q2) de Scimago ","Sometido","o"]
[null,3,null,null,null," ",1,0,null,null,0,0,null,"Articulo Q3","GNC",40,40,0,0,0,0,"Productos de Generación de Nuevo Conocimiento (GNC) ","En Cuartil 3 (Q3) de Scimago ","Sometido","o"]
[null,4,null,null,null," ",1,0,null,null,0,0,null,"Articulo Q4","GNC",30,30,0,0,0,0,"Productos de Generación de Nuevo Conocimiento (GNC) ","En Cuartil 4 (Q4) de Scimago ","Sometido","o"]
[null,5,null,null,null," ",1,0,null,null,0,0,null,"Articulo A1","GNC",20,20,20,0,0,0,"Productos de Generación de Nuevo Conocimiento (GNC) ","En A1  de  Publindex","Sometido","o"]
[null,6,null,null,null," ",1,0,null,null,0,0,null,"Articulo A2","GNC",16,16,16,0,0,0,"Productos de Generación de Nuevo Conocimiento (GNC) ","En A2  de  Publindex","Sometido","o"]
[null,7,null,null,null," ",1,0,null,null,0,0,null,"Articulo B","GNC",14,14,14,0,0,0,"Productos de Generación de Nuevo Conocimiento (GNC) ","En B  de  Publindex","Sometido","o"]
[null,8,null,null,null," ",1,0,null,null,0,0,null,"Articulo C","GNC",12,12,12,0,0,0,"Productos de Generación de Nuevo Conocimiento (GNC) ","En C  de  Publindex","Sometido","o"]
[null,9,null,null,null," ",1,0,null,null,0,0,null,"Articulo no indexado","GNC",0,0,1,null,null,null,"Productos de Generación de Nuevo Conocimiento (GNC) ","Artículo sin indexar","Sometido","o"]
[null,10,null,null,null," ",0,0,null,null,0,0,null,"Libro Completo","GNC",40,40,0,0,0,0,"Productos de Generación de Nuevo Conocimiento (GNC) ","Libro de Investigación ","Sometido","o"]
[null,11,null,null,null," ",0,0,null,null,0,0,null,"Cap. de Libro","GNC",15,15,0,0,0,0,"Productos de Generación de Nuevo Conocimiento (GNC) ","Capítulo de Libro de Investigación","Sometido","o"]
[null,12,null,null,null," ",0,0,null,null,0,0,null,"Patentes Invencion","GNC",60,60,0,0,0,0,"Productos de Generación de Nuevo Conocimiento (GNC) ","Productos o procesos tecnológicos patentados o registrados ","Resolución expedida SIC/ Patente","o"]
[null,13,null,null,null," ",0,{"$f":"IFERROR(VLOOKUP($C22,Tabla_prod,$H$7,0)*G22,0)","v":0},null,null,0,0,null,"Patentes Utilidad","GNC",30,30,0,0,0,0,"Productos de Generación de Nuevo Conocimiento (GNC) ","Productos o procesos tecnológicos patentados o registrados de modelo de utilidad","Resolución expedida SIC/ Patente","o"]
[null,14,null,null,null," ",0,0,null,null,0,0,null,"Software","GNC",20,20,0,0,0,0,"Productos de Generación de Nuevo Conocimiento (GNC) ","Software registrado","Registro ante dirección nacional de derechos de autor","o"]
[null,15,null,null,null," ",0,0,null,null,0,0,null,"Prototipo","GNC",15,15,0,0,0,0,"Productos de Generación de Nuevo Conocimiento (GNC) ","Productos o procesos tecnológicos usualmente no patentables (Prototipo) ","Modelo funcionalidad","o"]
[null,16,null,null,null," ",0,0,null,null,0,0,null,"Empresa","GNC",30,30,0,0,0,0,"Productos de Generación de Nuevo Conocimiento (GNC) ","Empresa SpinOff en proceso de incubación","Registro creación empresa","o"]
[null,17,null,null,null," ",0,0,null,null,0,0,null,"OVA","GNC",8,8,0,0,0,0,"Productos de Generación de Nuevo Conocimiento (GNC) ","Objeto Virtual de Aprendizaje","Copia Archivo de Seguridad","o"]
[null,18,null,null,null," ",0,0,null,null,0,0,null,"AVA","GNC",15,15,0,0,0,0,"Productos de Generación de Nuevo Conocimiento (GNC) ","Aula Virtual de Aprendizaje","Copia Archivo de Seguridad","o"]
[null,19,null,null,null," ",0,0,null,null,0,0,null,"Dir. Doctorado","FRH",30,30,0,0,0,0,"Formación de Recurso Humano (FRH) ","Dirección de Tesis de Doctorado en la UMNG con temática asociadas a línea de investigación a la que pertenece el proyecto","Acta del comité de de investigacion donde se designa al director y anteproyecto de tesis doctoral o Certificado de la unidad Academica.","o"]
[null,20,null,null,null," ",0,0,null,null,0,0,null,"Dir. Maestria","FRH",15,15,0,0,0,0,"Formación de Recurso Humano (FRH) ","Dirección de Trabajos de Maestría en la UMNG con  temática asociadas a línea de investigación a la que pertenece el proyecto ","Acta del comité de de investigacion donde se designa al tutor y anteproyecto o Certificado de la unidad Academica.","o"]
[null,null,null,null,null," ",0,0,null,null,0,0,null,"Dir. Trab. Grado","FRH",10,10,0,0,0,0,"Formación de Recurso Humano (FRH) ","Dirección de Trabajos de Grado en la UMNG con temática asociadas a línea de investigación a la que pertenece el proyecto ","Copia del acta sustentación de la del proyecto de grado","o"]
[null,"P","Presupuesto asignado por produtividad comprometida",null,null,null,{"$f":"SUM(G10:G30)","v":9},{"$f":"SUM(H10:H30)+H8","v":0},{"$f":"Presupuesto!#REF!","v":{"$error":"#REF!"}},null,null,null,null,"Dir. PIC","FRH",5,0,0,0,0,0,"Formación de Recurso Humano (FRH) ","Dirección de Proyectos de Iniciación Científica en la UMNG con temática asociadas a línea de investigación a la que pertenece  el proyecto ","Informe final","o"]
[null,null,null,null,null,null,null,null,null,null,null,null,null,"Jov. Investigador","FRH",10,10,0,0,0,0,"Formación de Recurso Humano (FRH) ","Contratación de Joven Investigador  UMNG","Contrato OPS Fotocopia","o"]
[null,null,null,null,null,null,null,null,null,null,null,null,null,"Asis. Graduado(IMP)","FRH","X",20,0,0,0,0,"Formación de Recurso Humano (FRH) ","Contratación de Asistente Graduado UMNG","Contrato OPS Fotocopia","o"]
[null,null,null,null,null,null,null,null,null,null,null,null,null,"Cond. Doctorado","FRH","X",10,0,0,0,0,"Formación de Recurso Humano (FRH) ","Conducción de asignatura en  Programa Doctoral con  temática asociadas a línea de investigación a la que perteneceel proyecto ","Certificación de la Unidad Académica.","o"]
[null,"N","Sigla","Clase ",null,null,null,"No",null,null,null,null,null,"Cond. Maestria","FRH","X",5,0,0,0,0,"Formación de Recurso Humano (FRH) ","Conducción de asignatura en Maestría de investigación con temática asociadas a línea de investigación a la que pertenece el proyecto ","Acta del comité curricular aprobado los contenidos y se  verifique la articulación con la línea de investigación, copia plan de trabajo o Certificado de la unidad Academica.","o"]
[null,1,"GNC","Productos de Generación de Nuevo Conocimiento (GNC) ",null,null,null,{"$f":"COUNTIF($L$10:$L$30,C36)","v":0},null,null,null,null,null,"Ponencia Inter.","SAC",8,8,8,0,0,0,"Socialización y Apropiacióndel Conocimiento (SAC) ","Ponencia en evento Internacional (**) ","Resumen publicado en  memoria del evento y/o certificado de ponente","o"]
[null,2,"FRH","Formación de Recurso Humano (FRH) ",null,null,null,{"$f":"COUNTIF($L$10:$L$30,C37)","v":0},null,null,null,null,null,"Ponencia Nac.","SAC",6,6,6,0,0,0,"Socialización y Apropiacióndel Conocimiento (SAC) ","Ponencia en evento nacional (***)","Resumen publicado en  memoria del evento y/o certificado de ponente","o"]
[null,3,"SAC","Socialización y Apropiacióndel Conocimiento (SAC) ",null,null,null,{"$f":"COUNTIF($L$10:$L$30,C38)","v":0},null,null,null,null,null,"Ponencia Insti.","SAC",4,0,4,0,0,0,"Socialización y Apropiacióndel Conocimiento (SAC) ","Ponencia en evento Institucional ","Resumen publicado en  memoria del evento y/o certificado de ponente","o"]
[null,4,"GI","Gestión de Investigación (GI) ",null,null,null,{"$f":"COUNTIF($L$10:$L$30,C39)","v":0},null,null,null,null,null,"Org. Evento Inter.","SAC",8,8,0,0,0,0,"Socialización y Apropiacióndel Conocimiento (SAC) ","Organización de Eventos de alcance  Internacional con temáticas asociadas al tema de investigación del grupo ","Certificado de la participación de la organización del evento","o"]
[null,null,null,null,null,null,null,{"$f":"SUM(H36:H39)","v":0},null,null,null,null,null,"Org. Evento Nac.","SAC",4,4,0,0,0,0,"Socialización y Apropiacióndel Conocimiento (SAC) ","Organización de Eventos de alcance nacional con temáticas asociadas al tema de investigación del grupo ","Certificado de la participación de la organización del evento","o"]
[null,null,null,null,null,null,null,null,null,null,null,null,null,"Org. Evento Insti.","SAC",2,0,0,0,0,0,"Socialización y Apropiacióndel Conocimiento (SAC) ","Organización de Eventos de alcance  institucional contemáticas  asociadas al temde investigación del grupo ","Resumen publicado en libro de memoria del evento","o"]
[null,null,null,null,null,null,null,null,null,null,null,null,null,"Premios Inter.","SAC",5,5,0,0,0,0,"Socialización y Apropiacióndel Conocimiento (SAC) ","Recepción de Premios internacionales por resultados derivados del  proyecto ","Certificado","o"]
[null,null,null,null,null,null,null,null,null,null,null,null,null,"Premios Nac.","SAC",2.5,2.5,0,0,0,0,"Socialización y Apropiacióndel Conocimiento (SAC) ","Recepción de Premios Nacionales poresultados derivados delproyecto ","Certificado","o"]
[null,null,null,null,null,null,null,null,null,null,null,null,null,"Mat. Divulgativo","SAC",2.5,0,0,0,0,0,"Socialización y Apropiacióndel Conocimiento (SAC) ","Publicación de material  divulgativo (con ISBN) o  publicaciones en revistas no indexadas ","Sometido","o"]
[null,null,null,null,null,null,null,null,null,null,null,null,null,"Proyecto Coop. Inter.","GI",12,12,0,0,0,0,"Gestión de Investigación (GI) ","Presentación de nuevo proyecto en la misma temática del proyecto financiado con la actual convocatoria, para desarrollar en cofinanciación con entidad académica o científica extranjera. Esta nueva propuesta debe acompañarse mínimo de Carta de Acuerdo de la entidad con la que se desarrollará la cooperación internacional. ","Acuerdo o Contrato","o"]
[null,null,null,null,null,null,null,null,null,null,null,null,null,"Proyecto Coop. Nac.","GI",6,6,0,0,0,0,"Gestión de Investigación (GI) ","Presentación de nuevo proyecto en la misma temática del proyecto financiado con la actual convocatoria, para desarrollar en cofinanciación con entidad académica o científica nacional. Esta nueva propuesta debe acompañarse mínimo de Carta de Acuerdo de la entidad con la que se desarrollará la cooperación nacional. ","Registro resultados Convocatoria","o","Convenio marco o carta institucional de compromiso internacional."]
[null,null,null,null,null,null,null,null,null,null,null,null,null,"Informe final Proy.","GI",0,0,1,0,0,0,"Gestión de Investigación (GI) ","Informe final del proyecto","Documento Dilgenciado con firmas Avaladas","o","Carta u oficio donde se expresen las experiencias adquiridas."]
[null,null,null,null,null,null,null,null,null,null,null,null,null,"Informe estudiante","GI",0,0,1,0,0,0,"Gestión de Investigación (GI) ","Informe de los estudiantes participantes (en donde describan, la experiencia adquirida, y las conclusiones personales del PIC desarrollado).\n","Carta u oficio donde se expresen las experiencias adquiridas.","o"]
[null,null,null,null,null,null,null,null,null,null,null,null,null,"Cartilla","GI",0,0,2,0,0,0,"Productos de Generación de Nuevo Conocimiento (GNC) ","Cartilla o Manual de los resultados obtenidos por los estudiantes vinculados a los PIC","No aplica","o"]

{"sheet":"Integrantes","index":10,"n_rows":32,"n_cols":15,"rows_kept":32,"cut":false,"hidden":false,"merged":[[9,1,11,1],[14,4,14,8],[12,1,14,1],[15,1,17,1],[17,4,17,8],[10,7,10,8],[9,3,9,4],[9,5,9,6],[10,3,10,4],[12,3,12,4],[12,5,12,6],[11,4,11,8],[8,3,8,4],[8,5,8,6],[3,1,4,8],[31,1,31,8],[13,7,13,8],[16,7,16,8],[15,3,15,4],[15,5,15,6],[16,3,16,4],[13,3,13,4],[18,3,18,4],[19,3,19,4],[18,1,20,1],[18,5,18,6],[19,7,19,8],[20,4,20,8]]}
[]
[]
[]
[null,{"$f":"Datos_Generales!B3","v":"PRESENTACIÓN DE PROYECTOS \nDE INICIACIÓN CIENTIFÍCA 2020 - 1"}]
[]
[]
[null,"15.","Imformacion de Integrantes del Proyecto",null,null,null,{"$f":"\"FunProy_\"&I7","v":"FunProy_PIC"},{"$f":"\"FunProy_\"&J7","v":"FunProy_"},{"$f":"IFERROR(VLOOKUP(Elec_Conv,Opciones!$K$1:$L$7,2,0),\"NA\")","v":"PIC"}]
[null,null,null,null,null,null,null,5]
[null,"No","Identificacion","Nombres",null,"Apellidos",null,"Mes","Horas",null,null,null,"N","Funcion"]
[{"$f":"B9","v":"No"},1,null,null,null,null,null,5,null,null,null,null,1,"Tutor ",{"$f":"COUNTIF($G$11:$G$31,N10)","v":1}]
[{"$f":"B10","v":1},null,"Nivel Academico->",null,null,"Función ->","Tutor ",null,null,null,null,null,2,"Doc.Acompañante",{"$f":"COUNTIF($G$11:$G$31,N11)","v":0}]
[null,null,"Nucleo Básico de Conocimiento",null,null,null,null,null,null,null,null,null,3,"Estudiante",{"$f":"COUNTIF($G$11:$G$31,N12)","v":0}]
[null,2,null,null,null,null,null,{"$f":"$H$8","v":5}]
[null,null,"Nivel Academico->",null,null,"Función ->"]
[null,null,"Nucleo Básico de Conocimiento"]
[null,3,null,null,null,null,null,{"$f":"$H$8","v":5},null,{"$f":"K14","v":0},0]
[null,null,"Nivel Academico->",null,null,"Función ->",null,null,null,{"$f":"K16","v":0},{"$f":"L16","v":0}]
[null,null,"Nucleo Básico de Conocimiento",null,null,null,null,null,null,0,0,null,null,"Funcion","Vinculo"]
[null,4,null,null,null,null,null,{"$f":"$H$8","v":5},null,0,0,null,null,"Tutor ","Doc. Carrera TC"]
[null,null,"Nivel Academico->",null,null,"Función ->",null,null,null,0,0,null,null,"Tutor ","Doc. Carrera MT"]
[null,null,"Nucleo Básico de Conocimiento",null,null,null,null,null,null,0,0,null,null,"Tutor ","Doc. Ocasional"]
[null,null,null,null,null,null,null,null,null,null,0,null,null,"Doc.Acompañante","Doc. Carrera TC"]
[null,null,null,null,null,null,null,null,null,null,0,null,null,"Doc.Acompañante","Doc. Carrera MT"]
[null,null,null,null,null,null,null,null,null,null,0,null,null,"Estudiante","Auxiliar"]
[null,null,null,null,null,null,null,null,null,null,0]
[null,null,null,null,null,null,null,null,null,null,0]
[null,null,null,null,null,null,null,null,null,null,0]
[]
[]
[]
[]
[null,"* Ingresar los integrantes del proyectos en orden descendente, comenzando por: personal de planta, ocasionales y estudiantes."]

{"sheet":"Presupuesto","index":11,"n_rows":85,"n_cols":15,"rows_kept":85,"cut":false,"hidden":false,"merged":[[37,4,37,5],[38,4,38,5],[44,4,44,5],[45,4,45,5],[46,4,46,5],[39,4,39,5],[40,4,40,5],[41,4,41,5],[42,4,42,5],[43,4,43,5],[32,4,32,5],[33,4,33,5],[34,4,34,5],[35,4,35,5],[36,4,36,5],[27,2,27,8],[28,3,28,8],[30,4,30,5],[31,4,31,5],[3,1,4,8],[57,2,57,8],[58,3,58,8],[63,2,63,4],[74,4,78,5],[81,4,81,8],[81,1,81,3]]}
[]
[]
[]
[null,{"$f":"Datos_Generales!B3","v":"PRESENTACIÓN DE PROYECTOS \nDE INICIACIÓN CIENTIFÍCA 2020 - 1"}]
[]
[]
[null,"12.","Anexo Para el calculo de presupuesto contrapartida por parte de personal investigativo.",null,null,null,null,{"$f":"Integrantes!I7","v":"PIC"},{"$f":"INT(PD!H31)","v":0}]
[]
[null,"A.","Personal de Planta integrado al proyecto.",null,null,1.61]
[]
[null,"No","Sueldo Neto","Factor ","Tipo de Vinculo","Numero de meses ","Número Horas / Semanal","Valor Final","Identificación"]
[null,1,null,{"$f":"F9","v":1.61},{"$f":"INDIRECT(\"integrantes!h\"&$J12+1,1)","v":0},{"$f":"INDIRECT(\"integrantes!h\"&$J12,1)","v":5},{"$f":"INDIRECT(\"integrantes!I\"&$J12,1)","v":0},{"$f":"INT((C12*F12)/40)*G12","v":0},{"$f":"VLOOKUP($B12,Integrantes!$B$9:$I$33,2,0)","v":0},10]
[null,{"$f":"B12+1","v":2},null,{"$f":"D12","v":1.61},{"$f":"INDIRECT(\"integrantes!h\"&$J13+1,1)","v":0},{"$f":"INDIRECT(\"integrantes!h\"&$J13,1)","v":5},{"$f":"INDIRECT(\"integrantes!I\"&$J13,1)","v":0},{"$f":"INT((C13*F13)/40)*G13","v":0},{"$f":"VLOOKUP($B13,Integrantes!$B$9:$I$33,2,0)","v":0},{"$f":"J12+3","v":13}]
[]
[]
[]
[]
[]
[]
[]
[]
[null,null,"Sumatoria del calculo de personal de planta \"Valor va en Centro\": ",null,null,null,null,{"$f":"SUM(H12:H21)","v":0},{"$f":"COUNTIF(I12:I21,\">\"&0)","v":0}]
[]
[]
[]
[null,"13.","Información financiera  (Plan de compras) .",null,null,null,"Puntos :",{"$f":"Integrantes!H7","v":"FunProy_"},{"$f":"Integrantes!I7","v":"PIC"}]
[null,null,null,null,null,null,null,null,null,null,null,null,null,"OPS- Asistentes"]
[null,null,{"$f":"\"Proyecto títulado : \"&Datos_Generales!$D$10","v":"Proyecto títulado : "},null,null,null,null,null,null,null,null,null,null,"OPS- UMNG"]
[null,null,"Líder Responsable",{"$f":"Datos_Generales!$D$12","v":0},null,null,null,null,null,null,null,"Máximo Numero  Digitado",null,"OPS- Practica"]
[null,null,"* En proyectos IMP se debe discriminar por año el presupuesto a utilizar sin superar el la mitad del total.",null,null,null,null,null,null,null,null,1000000]
[null,"No","Rubro","Año","Descripción",null,"Vicein $","Facultad $","Externo /Otros $"]
[null,1,"Personal",1,null,null,"No Aplica",{"$f":"H22","v":0}]
[null,2,null,1,null,null,null,null,null,null,null,"TERMINOS DE REFERENCIA 2014 1"]
[null,3,null,1,null,null,null,null,null,null,null,"Cuadro de consolidación"]
[null,4,null,1,null,null,null,null,null,null,null,"RUBRO","Max","Valor Actual","% Actual"]
[null,5,null,1,null,null,null,null,null,null,null,"Personal",{"$f":"K66","v":0},{"$f":"F65","v":0},{"$f":"D65","v":0}]
[null,6,null,1,null,null,null,null,null,null,null,"Equipos",{"$f":"K67","v":1},0,0]
[null,7,null,1,null,null,null,null,null,null,null,"Software",{"$f":"K69","v":1},0,0]
[null,8,null,1,null,null,null,null,null,null,null,"Licenciamiento",{"$f":"K70","v":1},{"$f":"F69","v":0},{"$f":"D69","v":0}]
[null,9,null,1,null,null,null,null,null,null,null,"Materiales",{"$f":"K70","v":1},{"$f":"F69","v":0},{"$f":"D69","v":0}]
[null,10,null,1,null,null,null,null,null,null,null,"Salidas de Campo",0.1,0,0]
[null,11,null,1,null,null,null,null,null,null,null,"Servicios Técnicos",{"$f":"K72","v":0.5},0,0]
[null,12,null,1,null,null,null,null,null,null,null,"Recursos Biblograficos",{"$f":"K73","v":0},0,0]
[null,13,null,1,null,null,null,null,null,null,null,"Papelería",{"$f":"K74","v":0.05},0,0]
[null,14,null,1,null,null,null,null,null,null,null,"Movilidad",{"$f":"K75","v":0},0,0]
[null,15,null,1,null,null,null,null,null,null,null,"Total Presupuesto Actual",1,{"$f":"SUM(N36:N44)","v":0}]
[]
[null,null,"Totales Generales",null,null,{"$f":"SUM(G48:I48)","v":0},{"$f":"SUM(G32:G47)","v":0},{"$f":"SUM(H32:H47)","v":0},0]
[null,null,null,null,"Total Presupuesto Año 1 :",null,{"$f":"SUMIF($D$32:$D$47,1,$G$32:$G$47)","v":0},{"$f":"SUMIF($D$32:$D$47,1,$H$32:$H$47)","v":0},0,null,null,{"$f":"COUNTIF(G48,\">\"&1000000)","v":0},"No puede superar el monto de un millon de pesos"]
[null,null,{"$f":"IF(L49>0,M49,\"\")","v":""},null,null,null,{"$f":"SUMIF($D$32:$D$47,2,$G$32:$G$47)","v":0},{"$f":"SUMIF($D$32:$D$47,2,$H$32:$H$47)","v":0},0]
[null,null,null,null,null,null,null,null,null,null,null,"Software"]
[null,"Firma Investigador Principal",null,null,null,null,null,null,null,null,null,{"$f":"L39","v":"Licenciamiento"}]
[null,null,null,null,null,null,null,null,null,null,null,"Materiales"]
[null,null,null,null,null,null,null,null,null,null,null,"Servicios Técnicos"]
[]
[]
[null,"a.) ","Título de proyecto de investigación:"]
[null,null,{"$f":"C28","v":"Proyecto títulado : "}]
[null,null,"Líder Responsable",{"$f":"D29","v":0}]
[]
[null,"14.","Información total financiera por rubro de financiación ."]
[]
[]
[null,"No","RUBRO",null,null,"$ Financiación solicitada a VICEIN","$ Contrapartida Facultad","$ Contrapartida Externa","$ Total Rubro"]
[null,1,"Personal",{"$f":"IFERROR(F65/$E$80,0)","v":0},{"$f":"D65","v":0},0,{"$f":"H22","v":0},0,{"$f":"SUM(F65:H65)","v":0},null,"%Max (Vicein)",null,"INV - IMP","PIC"]
[null,{"$f":"B65+1","v":2},"Equipos",0,{"$f":"D66","v":0},{"$f":"SUMIF($C$32:$C$48,$C66,$G$32:$G$48)","v":0},{"$f":"SUMIF($C$32:$C$48,$C66,$H$32:$H$48)","v":0},0,{"$f":"SUM(F66:H66)","v":0},null,{"$f":"IFERROR(IF($L$66=\"PIC\",$N66,$M66),0)","v":0},{"$f":"PD!$J$7","v":"PIC"},1,0]
[null,{"$f":"B66+1","v":3},"Software",0,{"$f":"D67","v":0},0,0,0,0,null,{"$f":"IFERROR(IF($L$66=\"PIC\",$N67,$M67),0)","v":1},"Personal",1,1]
[null,4,{"$f":"L39","v":"Licenciamiento"},0,{"$f":"D68","v":0},0,0,0,{"$f":"SUM(F68:H68)","v":0}]
[null,{"$f":"B67+1","v":4},"Materiales",0,0,0,0,0,{"$f":"SUM(F69:H69)","v":0},null,{"$f":"IFERROR(IF($L$66=\"PIC\",$N69,$M69),0)","v":1},"Equipos",1,1]
[null,5,"Salidas de Campo",0,0,0,0,0,0,null,1,"Software",1,1]
[null,6,"Servicios Técnicos",0,0,0,0,0,0,null,0,"Materiales",0.1,0]
[null,7,"Recursos Biblograficos",0,0,0,0,0,0,null,0.5,"Salidas de Campo",1,0.5]
[null,8,"Papelería",0,{"$f":"D73","v":0},0,0,0,0,null,0,"Servicios Técnicos",1,0]
[null,9,"Movilidad",0,0,0,0,0,0,null,0.05,"Recursos Biblograficos",0.02,0.05]
[null,10,"Publicaciones",{"$f":"IFERROR(F75/$F$80,0)","v":0},"Estos Rubros no son Financiables por recursos de la VICEIN por lo que cualquier valor asociado a estos rubros en el presupuesto de la vicerrectoría no serán aprobados y se descartaran.",null,0,0,0,null,0,"Papelería",0.15,0]
[null,11,"Viajes",{"$f":"IFERROR(F76/$F$80,0)","v":0},null,null,0,0,0,null,null,"Movilidad"]
[null,12,"Construcciones",{"$f":"IFERROR(F77/$F$80,0)","v":0},null,null,0,0,0]
[null,13,"Mantenimiento",{"$f":"IFERROR(F78/$F$80,0)","v":0},null,null,0,0,0]
[null,14,"Administración",{"$f":"IFERROR(F79/$F$80,0)","v":0},null,null,0,0,0]
[null,"T","$ Total General",{"$f":"PD!J7","v":"PIC"},1000000,{"$f":"SUM(F65:F79)","v":0},{"$f":"SUM(G65:G79)","v":0},0,{"$f":"SUM(I65:I79)","v":0}]
[]
[null,"Nombre Institución Externa :",null,null,"No Aplica"]
[]
[]
[null,null,null,null,null,null,null,"Firma Investigador Principal"]

{"sheet":"Impactos","index":12,"n_rows":21,"n_cols":12,"rows_kept":21,"cut":false,"hidden":false,"merged":[[3,2,4,6],[14,4,14,8],[19,4,19,8],[9,4,9,8],[10,4,10,8],[11,4,11,8],[12,4,12,8],[13,4,13,8],[15,4,15,8],[16,4,16,8],[17,4,17,8],[18,4,18,8]]}
[]
[]
[]
[null,null,{"$f":"Datos_Generales!B3","v":"PRESENTACIÓN DE PROYECTOS \nDE INICIACIÓN CIENTIFÍCA 2020 - 1"},null,null,null,null,"Fecha de Emisión: 2014/07/31","IN-IV-F-14"]
[null,null,null,null,null,null,null,"Revision N°:\n1","Impactos Esperados",null,null,{"$f":"SUM(L10:L133)","v":0}]
[null,null,null,null,null,null,null,null,null,null,null,{"$f":"COUNTIF(L11:L21,\"<>\"&0)","v":0}]
[null,null,"17.","ESTRUCTURA DEL PROYECTO",null,null,null,null,null,null,null,"Tener en cuenta "]
[null,null,"c.","Pertinencia e impacto de la propuesta en el contexto social y académico.",null,null,null,null,null,null,null,"No debe tener mas de 999 caracteres por celda o de largo"]
[null,null,null,null,null,null,null,null,null,null,null,"Validación en número de caracteres"]
[null,null,"No. ","Tipo ","Descripción"]
[null,null,1,null,null,null,null,null,null,null,null,{"$f":"LEN(E11)","v":0}]
[null,null,{"$f":"C11+1","v":2},null,null,null,null,null,null,null,null,{"$f":"LEN(E12)","v":0}]
[null,null,{"$f":"C12+1","v":3},null,null,null,null,null,null,null,null,0]
[null,null,4,null,null,null,null,null,null,null,null,0]
[null,null,5,null,null,null,null,null,null,null,null,0]
[null,null,6,null,null,null,null,null,null,null,null,0]
[null,null,7,null,null,null,null,null,null,null,null,0]
[null,null,8,null,null,null,null,null,null,null,null,0]
[null,null,9,null,null,null,null,null,null,null,null,0]
[null,null,10,null,null,null,null,null,null,null,null,0]
[null,null,null,null,null,null,null,null,null,null,null,0]

{"sheet":"Grupo","index":13,"n_rows":33,"n_cols":12,"rows_kept":33,"cut":false,"hidden":false,"merged":[[3,2,4,6],[17,3,17,8],[20,3,20,8],[29,3,29,8],[32,3,32,8],[10,3,10,8],[14,3,14,8],[11,4,11,8],[23,3,23,8],[26,3,26,8]]}
[]
[]
[]
[null,null,{"$f":"Datos_Generales!B3","v":"PRESENTACIÓN DE PROYECTOS \nDE INICIACIÓN CIENTIFÍCA 2020 - 1"},null,null,null,null,"Fecha de Emisión: 2014/07/31","IN-IV-F-14"]
[null,null,null,null,null,null,null,"Revision N°:\n1","Grupo de Investigación ",null,null,{"$f":"COUNTIF(L11:L35,0)","v":9}]
[null,null,null,null,null,null,null,null,null,null,null,"Tener en cuenta "]
[null,null,"18.","CONFORMACIÓN Y TRAYECTORIA DEL GRUPO DE INVESTIGACIÓN-",null,null,null,null,null,null,null,"No debe tener mas de 999 caracteres por celda o de largo"]
[null,null,null,"Se puede utilizar la convinación de teclas (Atl + Enter) para adicionar una nueva linea en las celdas o adicionar Filas "]
[]
[null,null,"a.","Nombre del grupo de Investigación:",null,null,null,null,null,null,null,{"$f":"SUM(L11:L35)","v":0}]
[null,null,null,null,null,null,null,null,null,null,null,{"$f":"LEN(D11)","v":0}]
[null,null,null,"Link Grup Lac:",null,null,null,null,null,null,null,{"$f":"LEN(E12)","v":0}]
[null,null,null,null,null,null,null,null,null,null,null,"X"]
[null,null,"b","Nombre del lider del grupo:",null,null,null,null,null,null,null,"X"]
[null,null,null,null,null,null,null,null,null,null,null,0]
[null,null,null,null,null,null,null,null,null,null,null,"X"]
[null,null,"c.","Visión ",null,null,null,null,null,null,null,"X"]
[null,null,null,null,null,null,null,null,null,null,null,0]
[null,null,null,null,null,null,null,null,null,null,null,"X"]
[null,null,"d. Misión",null,null,null,null,null,null,null,null,"X"]
[null,null,null,null,null,null,null,null,null,null,null,0]
[null,null,null,null,null,null,null,null,null,null,null,"X"]
[null,null,"e. Objetivo General",null,null,null,null,null,null,null,null,"X"]
[null,null,null,null,null,null,null,null,null,null,null,0]
[null,null,null,null,null,null,null,null,null,null,null,"X"]
[null,null,"f.","Integrantes",null,null,null,null,null,null,null,"X"]
[null,null,null,null,null,null,null,null,null,null,null,0]
[null,null,null,null,null,null,null,null,null,null,null,"X"]
[null,null,"g. ","Proyectos:",null,null,null,null,null,null,null,"X"]
[null,null,null,null,null,null,null,null,null,null,null,0]
[null,null,null,null,null,null,null,null,null,null,null,"X"]
[null,null,"h. ","Productividad relacionada Grup:",null,null,null,null,null,null,null,"X"]
[null,null,null,null,null,null,null,null,null,null,null,0]

{"sheet":"Biblografia","index":14,"n_rows":19,"n_cols":12,"rows_kept":19,"cut":false,"hidden":false,"merged":[[9,3,9,8],[10,3,10,8],[11,3,11,8],[12,3,12,8],[3,2,4,8],[18,3,18,8],[13,3,13,8],[14,3,14,8],[15,3,15,8],[16,3,16,8],[17,3,17,8]]}
[]
[]
[]
[null,null,{"$f":"Datos_Generales!B3","v":"PRESENTACIÓN DE PROYECTOS \nDE INICIACIÓN CIENTIFÍCA 2020 - 1"},null,null,null,null,null,null,null,null,{"$f":"COUNTIF(L10:L70,\">\"&0)","v":0}]
[null,null,null,null,null,null,null,null,null,null,null,{"$f":"SUM(L10:L83)","v":0}]
[null,null,null,null,null,null,null,null,null,null,null,"Tener en cuenta "]
[null,null,"16.","ESTRUCTURA DEL PROYECTO",null,null,null,null,null,null,null,"No debe tener mas de 999 caracteres por celda o de largo"]
[null,null,"c.","Bibliografia citada en la  estructura del proyecto",null,null,null,null,null,null,null,"Validación en número de caracteres"]
[]
[null,null,1,null,null,null,null,null,null,null,null,{"$f":"LEN(D10)","v":0}]
[null,null,2,null,null,null,null,null,null,null,null,{"$f":"LEN(D11)","v":0}]
[null,null,{"$f":"C11+1","v":3},null,null,null,null,null,null,null,null,0]
[null,null,{"$f":"C12+1","v":4},null,null,null,null,null,null,null,null,0]
[null,null,5,null,null,null,null,null,null,null,null,0]
[null,null,6,null,null,null,null,null,null,null,null,0]
[null,null,7,null,null,null,null,null,null,null,null,0]
[null,null,8,null,null,null,null,null,null,null,null,0]
[null,null,9,null,null,null,null,null,null,null,null,0]
[null,null,10,null,null,null,null,null,null,null,null,0]

{"sheet":"Imagenes","index":15,"n_rows":18,"n_cols":13,"rows_kept":18,"cut":false,"hidden":false,"merged":[[3,1,4,7],[13,2,13,9],[9,2,9,9],[10,2,10,9],[11,2,11,9],[12,2,12,9],[14,2,14,9],[15,2,15,9],[16,2,16,9],[17,2,17,9],[18,2,18,9]]}
[]
[]
[]
[null,{"$f":"Datos_Generales!B3","v":"PRESENTACIÓN DE PROYECTOS \nDE INICIACIÓN CIENTIFÍCA 2020 - 1"},null,null,null,null,null,null,"Fecha de Emisión: 2014/07/31","IN-IV-F-14"]
[null,null,null,null,null,null,null,null,"Revision N°:\n1","Apartes"]
[]
[null,"20.","Imágenes que contiene el proyecto"]
[null,"1.","Hoja destinada para elementos que estructuralmente se ingresan en los apartes de la propuesta de investigación."]
[null,null,null,null,null,null,null,null,null,null,null,null,"No debe tener mas de 1024 caracteres o de largo"]
[null,1,null,null,null,null,null,null,null,null,null,null,{"$f":"LEN(C10)","v":0}]
[null,2,null,null,null,null,null,null,null,null,null,null,{"$f":"LEN(C11)","v":0}]
[null,3,null,null,null,null,null,null,null,null,null,null,0]
[null,4,null,null,null,null,null,null,null,null,null,null,0]
[null,5,null,null,null,null,null,null,null,null,null,null,0]
[null,6,null,null,null,null,null,null,null,null,null,null,0]
[null,7,null,null,null,null,null,null,null,null,null,null,0]
[null,8,null,null,null,null,null,null,null,null,null,null,0]
[null,9,null,null,null,null,null,null,null,null,null,null,0]

{"sheet":"Normas","index":16,"n_rows":27,"n_cols":12,"rows_kept":27,"cut":false,"hidden":false,"merged":[[19,4,19,8],[21,4,21,8],[15,4,15,8],[7,4,7,8],[2,2,3,6],[24,3,24,8],[8,4,8,8],[9,4,9,8],[10,4,10,8],[16,4,16,8],[18,4,18,8],[11,4,11,8],[12,4,12,8],[13,4,13,8],[14,4,14,8],[20,4,20,8],[22,4,22,8],[17,4,17,8],[23,4,23,8]]}
[]
[]
[null,null,{"$f":"Datos_Generales!B3","v":"PRESENTACIÓN DE PROYECTOS \nDE INICIACIÓN CIENTIFÍCA 2020 - 1"},null,null,null,null,"Fecha de Emisión: 2014/07/31","IN-IV-F-14"]
[null,null,null,null,null,null,null,"Revision N°:\n1","Normas"]
[]
[null,null,"1.","Normas para el diligenciamiento de formulación de proyecto",null,null,null,null,"(No Imprimir esta hoja) ",null,null,"Tener en cuenta "]
[null,null,null,null,null,null,null,null,null,null,null,"No debe tener mas de 1024 caracteres o de largo"]
[null,null,"No","Tema","Descripción"]
[null,null,1,"Fuentes de Finaciacion","Se entiende como Contrapartida todos los aportes que dedica la Unidad Académica (Facultades a través de los Centros de Investigaciones, Departamentos, Institutos) u otras entidades para apoyar el desarrollo del  proyecto. El objetivo de esta exigencia de contrapartida es comprometer a la Unidad Académica con el buen desarrollo de la investigación,  asegurando la continuidad y estabilidad del grupo investigador.",null,null,null,null,null,null,{"$f":"LEN(E9)","v":414}]
[null,null,2,"Rubros financiables con recursos  VICEIN UMNG","Con cargo a recursos de VICEIN UMNG (en modalidad de recuperación contingente) se podrán financiar solamente los siguientes rubros: Personal, Equipos, Software, Materiales, Salidas de Campo, Servicios Técnicos, Movilidades, Material Biblografico y Papeleria",null,null,null,null,null,null,{"$f":"LEN(E10)","v":257}]
[null,null,3,"Personal","Se refiere a profesionales investigadores y/o profesionales expertos nacionales e internacionales definidos como participantes en el proyecto y operarios o técnicos requeridos en el mismo. Para el cálculo de los recursos a solicitar en este rubro se debe tomar como base la escala salarial de la institución y el tiempo real dedicado por la persona al proyecto, el cual no podrá ser inferior a cinco horas semanales, tanto para personal financiado por VICEIN UMNG como por la contrapartida (Unidad Académica). ",null,null,null,null,null,null,{"$f":"LEN(E11)","v":510}]
[null,null,4,"Personal","Para el cálculo de los honorarios debe tomarse en cuenta el salario mensual del docente multiplicado por un factor de 1.6 multiplicado por el número de horas de dedicación al proyecto multiplicado por el número de meses que se vinculará con el proyecto: salario x 1.61 x porcentaje de dedicación al proyecto x No. Meses de vinculación al proyecto.  Debe tenerse en cuenta, sin embargo, que independientemente de las escalas salariales de las instituciones, existen límites máximos para los pagos del personal que financia VICEIN UMNG",null,null,null,null,null,null,{"$f":"LEN(E12)","v":533}]
[null,null,5,"Personal","(recuperación contingente) . De existir alguna diferencia ésta deberá  asumirla la contrapartida. Es importante especificar si el docente o investigador que se propone ya se encuentra vinculado con la UMNG. En caso de estar vinculado debe especificarse en que modalidad (Planta MT, TC, DE, o en HC). Al especificar la función del investigador dentro del proyecto se deben utilizar únicamente los siguientes términos: Investigador Principal, Coinvestigador, Auxiliar, Estudiante de maestría o doctorado. No se financiarán honorarios o bonificaciones especiales a personal de nómina de las Unidades Académicas de la UMNG. ",null,null,null,null,null,null,{"$f":"LEN(D13)","v":8}]
[null,null,6,"Equipos","La financiación para compra de equipos nuevos deberá estar sustentada en la estricta necesidad de los mismos para el desarrollo de la investigación. Es importante que los investigadores verifiquen si el equipo que necesitan ya existe en otra dependencia de su universidad o centro, o en otra institución, de la cual pudiese solicitarse en préstamo, arrendamiento o la prestación de servicios técnicos.",null,null,null,null,null,null,{"$f":"LEN(D14)","v":7}]
[null,null,7,"Equipos","Deberá separarse la compra de equipo nuevo o arrendado, del uso de equipo propio. Este último se refiere al que ya existe en la institución y que por utilizarse en la investigación se acepta también como contrapartida institucional por un valor máximo del 10% de su precio comercial al estar nuevo. Las cotizaciones de los equipos deberán estar disponibles para consulta de VICEIN UMNG en el caso en que esta entidad considere necesario verificar los costos de los equipos solicitados. ",null,null,null,null,null,null,7]
[null,null,8,"Viajes","No financiable. Se refiere a  viajes relacionados  con actividades del proyecto diferentes de salidas  de campo. VICEIN UMNG financia viajes para presentación de resultados del proyecto, pasantías o formación de redes por centros de costo diferente a presupuestos de proyectos de investigación.",null,null,null,null,null,null,6]
[null,null,9,"Salidas de campo","Se aplica a gastos de medios de transporte para el traslado a zonas de muestreo y ejecución de las labores de campo propias de la investigación. Se refiere principalmente a costos de combustible, aceite o alquiler de medios de transporte cuando se requiere. Deberán desglosarse y justificarse Aquí se incluyen los costos de desplazamiento y apoyos de estadía ",null,null,null,null,null,null,16]
[null,null,10,"Materiales, insumos y servicios técnicos","Corresponden a aquellos necesarios para el desarrollo de la investigación o de la tecnología y deben presentarse a manera de listado detallado agrupado por categorías sobre las cuales se debe hacer una justificación de su necesidad y uso dentro del proyecto. El tipo de servicios técnicos (exámenes, pruebas, análisis o servicios especializados) para los cuales se solicitan recursos VICEIN UMNG debe desglosarse ",null,null,null,null,null,null,40]
[null,null,11,"Publicaciones y patentes","No financiable. Este rubro se financia a través de un centro de costo diferente a los proyectos de investigación. Se refiere a los costos de edición y publicación de artículos científicos en revistas indexadas o divulgativas reconocidas, libros, manuales, videos, cartillas, etc. que presenten los resultados del proyecto y sirvan como estrategia de comunicación de éstos. También se financiarán los costos para la solicitud de patentes de innovaciones tecnológicas derivadas del proyecto",null,null,null,null,null,null,24]
[null,null,12,"Publicaciones y patentes","Todas las publicaciones y ponencias que se realicen, deben tener un enunciado que certifique la financiación por parte de la Vicerrectoría de Investigaciones de la UMNG",null,null,null,null,null,null,24]
[null,null,13,"Presupuesto ","Los rubros : Publicaciones, Viajes , Construcciones, Mantenimiento y adminsitración no son financiables por recursos frescos de la Vicerrectoría de investigaciones.",null,null,null,null,null,null,12]
[null,null,null,null,null,null,null,null,null,null,null,0]
[null,null,null,null,null,null,null,null,null,null,null,0]
[null,null,null,null,null,null,null,null,null,null,null,0]
[null,null,null,null,null,null,null,null,null,null,null,0]
[null,null,null,null,null,null,null,null,null,null,null,0]
[null,null,null,null,null,null,null,null,null,null,null,0]